{"text_format":"1","workbook":"xlsx","n_sheets":11,"sheets":["Registro de cambios","configuracion","DIGITADOR","DATOS","referentes","Otras referencias","AGD_MUESTREOS","AGD_PARAMETRO","AGD_MUESTRAS","AGD_MUESTRAS_VARIABLES","AGD_AUTORIAS"],"not_rendered":{"charts":0,"images":0,"macros":1,"external_links":1,"defined_names":21,"comments":2,"pivot_tables":0},"unopened":[],"bounds":{"document_bytes":16777216,"sheet_cells":100000,"rows_first":2000,"rows_last":500,"rows_between":2000,"halvings":0,"cell_chars":16384,"cell_head_chars":4096},"cells_cut":0,"cells_raw":0,"read":"whole","date_system":"1900"}

{"sheet":"Registro de cambios","index":0,"n_rows":6,"n_cols":7,"rows_kept":6,"cut":false,"hidden":true,"merged":[[2,3,2,6]]}
[]
[]
[null,null,null,"REGISTRO DE CAMBIOS"]
[null,null,null,"VERSIÓN No.","CAMBIO REALIZADO","AUTOR","VIGENTE DESDE\n(DD/MM/AAAA)"]
[null,null,null,"20240521i","Actualización del código de la macro.\n\nSe eliminó la URL de la antigua API de portete:\n       http://portete.invemar.org.co:7003/ArgosWebServices-RESTWebService-context-root/rest/1.0\n\nFue reemplazada por la URL de la API de ARGOS:\n       https://argos.invemar.org.co/api/\n\nLa API contiene End Points que permiten tener mayor control, facilitan la descarga de referentes (listas de usuarios, estaciones, especies, etc.) que corresponden a criterios específicos como el proyecto usado en la plantilla para evitar descargar data innecesaria.\n\nDel mismo modo, también permite la carga de información a la BDD del INVEMAR.\n\nLa macro toma los Endpoints desde la hoja configuracion de una tabla llamada \"Configuración referentes\", a la que se le puede modificar las rutas de la API o agregar nuevas. cabe resaltar que se puede \"quemar\" directamente en la macro los Endpoints que lo requieran.","Kevin Moreno","21/05/2024"]
[null,null,null,"20230813i","Se creó la plantilla de cero (0), los elementos que componen la plantilla funcionan para la temática de PASTOS - Abundancia.\n\nSe modificó la hoja de DIGITADOR añadiendo listas de valores como el responsable de la entrega de datos y atributos adicionales como 'Observaciones generales'.\n\nSe crearon todas las columnas que componente la hoja de DATOS, se obtienen valores como la fecha, estación, censo errante, especie, cantidad de peces, etc .\n\nSe mapeó toda la hoja de CONFIGURACIÓN para tomar los valores de los muestreos y muestras. De ese modo, se generan las tablas que sirven para subir la información al sistema.\n","Kevin Moreno","13/8/2023"]

{"sheet":"configuracion","index":1,"n_rows":71,"n_cols":8,"rows_kept":71,"cut":false,"hidden":true,"merged":[[61,0,61,2],[23,0,26,0],[0,0,2,0],[3,0,5,0],[7,0,8,0],[9,0,15,0],[17,0,21,0],[28,0,35,0],[37,0,42,0],[45,0,45,1],[45,5,45,7]]}
["general","urlServicio","https://argos.invemar.org.co/api/"]
[null,"fila de inicio",3]
[null,"fila de fin",303]
["metodologias","Metodologias",{"$f":"DIGITADOR!B4","v":818}]
[null,"Referentes",300]
[null,"Cantidad maxima de referentes ",300]
["estaciones/investigadores","proyectos",3036]
["Lista especies","metodologias",818]
[null,"proyectos",3036]
["MUESTREOS","ID_MUESTREO","DATOS,B"]
[null,"ID_ESTACION","DATOS,E"]
[null,"ID_PROYECTO",{"$f":"DIGITADOR!B11","v":3036}]
[null,"ID_METODOLOGIA",{"$f":"DIGITADOR!B4","v":818}]
[null,"ID_TEMATICAS",{"$f":"IF(C4=\"\",\"\",VLOOKUP(C4,'Otras referencias'!N7:P9,2,FALSE))","v":222}]
[null,"FECHA","DATOS,H"]
[null,"NOTAS","DIGITADOR,B,28"]
[null,"cantidad",303]
["MUESTREOS PARAMETROS","ID_MUESTREO","DATOS,B","DATOS,B","DATOS,B","DATOS,B"]
[null,"ID_PARAMETRO",1169,1055,1170,127]
[null,"ID_METODOLOGIA",{"$f":"DIGITADOR!$B$4","v":818},{"$f":"DIGITADOR!$B$4","v":818},{"$f":"DIGITADOR!$B$4","v":818},{"$f":"DIGITADOR!$B$4","v":818}]
[null,"ID_UNIDAD_MEDIDA",100,100,100,100]
[null,"VALOR","DIGITADOR,B,14","DIGITADOR,B,7","DIGITADOR,B,13","DIGITADOR,B,12"]
[null,"cantidad",303,303,303,303]
["MUESTRAS","ID_MUESTRA","DATOS,D"]
[null,"ID_MUESTREO","DATOS,C"]
[null,"NOTAS","DATOS,S"]
[null,"ES_REPLICA",1]
[null,"cantidad",303]
["MUESTRAS VARIABLES","ID_PARAMETRO",732,585,831]
[null,"ID_METODOLOGIA",{"$f":"DIGITADOR!$B$4","v":818},{"$f":"DIGITADOR!$B$4","v":818},{"$f":"DIGITADOR!$B$4","v":818}]
[null,"ID_UNIDAD_MEDIDA",100,100,19]
[null,"ID_MUESTRA","DATOS,D","DATOS,D","DATOS,D"]
[null,"ID_METODO",95,732,95]
[null,"VALOR","DATOS,O","DATOS,Q","DATOS,R"]
[null,"QUALITY_FLAG"]
[null,"PRECISION"]
[null,"cantidad",303,303,303]
["AUTORIAS","ID_FUNCIONARIO","DIGITADOR,B,2","DIGITADOR,B,18","DIGITADOR,B,20","DIGITADOR,B,22","DIGITADOR,B,24"]
[null,"ID_TAREA",5,"DIGITADOR,A,18","DIGITADOR,A,20","DIGITADOR,A,22","DIGITADOR,A,24"]
[null,"ORDEN",1,2,3,4,5]
[null,"FECHA","DIGITADOR,B,9","DATOS,H","DATOS,H","DATOS,H","DATOS,H"]
[null,"ID_MUESTREO","DATOS,B","DATOS,B","DATOS,B","DATOS,B","DATOS,B"]
[null,"ENTIDAD","DIGITADOR,B,6","DIGITADOR,B,6","DIGITADOR,B,6","DIGITADOR,B,6","DIGITADOR,B,6"]
[null,"cantidad",303,303,303,303,303]
[]
["REGISTROS GENERADOS",null,"REGISTROS CARGADOS",null,null,"PASTOS ABUNDANCIA - METODOLOGIA 818"]
["MUESTREOS",null,null,null,null,"ID_PARAMETRO","NOMBRE_COLUMNA","ID_UNIDAD_MEDIDA"]
["parametro muestreo",null,null,null,null,585,"ESPECIE",100]
["muestra",null,null,null,null,828,"ENTIDAD",100]
["muestra variable",null,null,null,null,127,"PROYECTO",100]
["autoria",null,null,null,null,121,"CLASE_SUSTRATO",100]
["registros correctos",null,null,null,null,1170,"ARCHIVO_FUENTE",100]
["Fecha de carga",null,null,null,null,579,"SUSTRATO",100]
["json error",null,null,null,null,135,"TRANSECTO",100]
["error",null,null,null,null,1169,"URL_METADATO",100]
[null,null,null,null,null,732,"CENSO_ERRANTE",100]
[null,null,null,null,null,831,"CANTIDAD_PECES",19]
["Atributo","Descripción","Código",null,null,1055,"VERSION_PLANTILLA",100]
["Tipo Nodo","Estaciones",{"$f":"VLOOKUP(B59,'Otras referencias'!N12:P22,2,FALSE)","v":40}]
[]
[]
["CONFIGURACION REFERENTES"]
["Ruta de la API","Endpoint","Descripción"]
["URL - AGM Campo",{"$f":"CONCATENATE(\"parametros/agmcampo/\",$C$4,\"\")","v":"parametros/agmcampo/818"},"Listado de referentes AGM_CAMPO"]
["URL - Especies",{"$f":"IF($C$8=\"\",\"\",CONCATENATE(\"especies/filt/\",$C$9,\",\",$C$8,\"/\"))","v":"especies/filt/3036,818/"},"Especies por proyecto\n(No todos los proyectos tienen asociados una lista de especies)"]
["URL - Estaciones",{"$f":"CONCATENATE(\"estaciones/\", $C$59, \"/\",$C$9,\"\")","v":"estaciones/40/3036"},"Estaciones/parcelas por proyecto, cambia dependiendo del Tipo de Nodo, cuyo estado sea VIGENTE."]
["URL - Usuarios",{"$f":"CONCATENATE(\"parametros/usersByProject/\",$C$7,\"\")","v":"parametros/usersByProject/3036"},"Usuarios por proyecto."]
["URL - Entidades","estaciones/get-entidades","Listado de entidades."]
["Atributos de la API","codigo_in","nombre_in"]
["Rango de atributos de la API","B70:C71","nombre_in"]
["URL - Plantillas","plantillas/","Endpoint para la carga de datos al sistema."]

{"sheet":"DIGITADOR","index":2,"n_rows":38,"n_cols":4,"rows_kept":38,"cut":false,"hidden":false,"merged":[[37,1,37,2],[36,1,36,2],[0,0,0,1],[15,3,15,9],[16,3,16,9],[1,3,9,9],[10,3,14,9],[7,0,8,0],[26,0,26,1],[29,0,29,1]]}
["Recolección de Datos Monitoreo Pastos Abundancia Peces"]
["Código Digitador",{"$f":"IF(B3=\"\",\"\",INDEX(referentes!$Z$2:$AA$60,MATCH(DIGITADOR!B3,referentes!$AA$2:$AA$60,0),1))","v":""},null,"Recomendaciones generales: \n¡Precaución! No inserte Filas o Columnas.\nEn los casos en que falte un valor a ingresar que provenga de la hoja de referencias, informe para que el administrador del sistema haga las adiciones necesarias.\nEsta es una plantilla programada. Las columnas de color oscuro se llenan automaticamente, principalmente a partir de los contenidos de la hoja de referencias. \nNO UTILICE PUNTO Y COMA (;) en ningun campo, por ser el separador de variables (columnas). Las unidades de medida son las especificadas en la cabecera de la hoja.\nPara el correcto funcionamiento de la hoja debe estar activa la opcion de Excel de ejecutar macros (al abrir la hoja acepte la opcion habilitar macros, mensaje de Excel que aparece en la parte superior de la hoja en un recuadro amarillo). La extensión del archivo debe ser .xlsm.. \nAl finalizar, renombre el archivo de modo que su contenido sea claro, ejemplo:\nAAAAMMDD_METODOLOGIA_TEMATICA_ESTACION.xlsm. El nombre no debe tener espacios en blanco vocales tildadas o ñ."]
["Nombre del responsable",null,{"$f":"IF(G3=\"\",\"\",CONCATENATE(DIGITADOR!$M$1,G3,E3))","v":""}]
["Código Monitoreo",{"$f":"IF(B5=\"\",\"\",INDEX('Otras referencias'!$K$7:$L$9,MATCH(DIGITADOR!B5,'Otras referencias'!$L$7:$L$9,0),1))","v":818}]
["Monitoreo","Pastos-Abundancia Peces"]
["Entidad","Instituto de Investigaciones Marinas y Costeras"]
["Versión de la plantilla",{"$f":"'Registro de cambios'!$D$5","v":"20240521i"}]
["Fecha en la que ingresa los datos en esta hoja","DD/MM/AAAA"]
[null,"3000-12-12"]
[]
["Código del proyecto",{"$f":"IF(B12=\"\",\"\",INDEX('Otras referencias'!$D$7:$E$7,MATCH(DIGITADOR!B12,'Otras referencias'!$E$7:$E$7,0),1))","v":3036},null,"Previamente a iniciar el llenado de la plantilla, debe presionar el botón \"Descargar referentes\" para que los referentes de ésta plantilla sean actualizados. \nLuego de llenar completamente la plantilla verifique que:\na. No haya celdas con valores como \"#N/A\" o \"#¡REF!\".\nb. No se estén aplicando filtros en la hoja de datos.\nEnvíe la plantilla diligenciada al correo kevin.moreno@invemar.org.co"]
["Proyecto que financia","Monitoreo Pastos - BPIN"]
["Nombre del Archivo",{"$f":"MID(CELL(\"FILENAME\",N63),FIND(\"[\",CELL(\"FILENAME\",N63))+1,   FIND(\"]\",CELL(\"FILENAME\",N63))-FIND(\"[\",CELL(\"FILENAME\",N63))-1)","v":"PASTOS_ABUNDANCIA_20240521i.xlsm"}]
["DOI Metadato"]
["Fuente Plantilla ","http://cinto.invemar.org.co/download/Plantillas_ARGOS_Plus/"]
[null,null,null,"Si requiere ayuda contacte a:\nKevin S. Moreno (kevin.moreno@invemar.org.co)"]
["ROLES INVOLUCRADOS","NOMBRE DE LA PERSONA",null,"El custodio de los datos es el único autorizado para distribuir este conjunto de datos. El observador y el digitador se comprometen a tomar las medidas necesarias para salvaguardar este conjunto de datos de modo que copia de los mismos no sean obtenidas y/o usadas por terceros no relacionados con el propósito para la cual se recolectó."]
[{"$f":"IF(A19=\"\",\"\",INDEX('Otras referencias'!$H$6:$I$9,MATCH(DIGITADOR!A19,'Otras referencias'!$I$6:$I$9,0),1))","v":""},{"$f":"IF(B19=\"\",\"\",INDEX(referentes!$Z$2:$AA$60,MATCH(DIGITADOR!B19,referentes!$AA$2:$AA$60,0),1))","v":""}]
[]
[{"$f":"IF(A21=\"\",\"\",INDEX('Otras referencias'!$H$6:$I$9,MATCH(DIGITADOR!A21,'Otras referencias'!$I$6:$I$9,0),1))","v":""},{"$f":"IF(B21=\"\",\"\",INDEX(referentes!$Z$2:$AA$60,MATCH(DIGITADOR!B21,referentes!$AA$2:$AA$60,0),1))","v":""}]
[]
[{"$f":"IF(A23=\"\",\"\",INDEX('Otras referencias'!$H$6:$I$9,MATCH(DIGITADOR!A23,'Otras referencias'!$I$6:$I$9,0),1))","v":""},{"$f":"IF(B23=\"\",\"\",INDEX(referentes!$Z$2:$AA$60,MATCH(DIGITADOR!B23,referentes!$AA$2:$AA$60,0),1))","v":""}]
[]
[{"$f":"IF(A25=\"\",\"\",INDEX('Otras referencias'!$H$6:$I$9,MATCH(DIGITADOR!A25,'Otras referencias'!$I$6:$I$9,0),1))","v":""},{"$f":"IF(B25=\"\",\"\",INDEX(referentes!$Z$2:$AA$60,MATCH(DIGITADOR!B25,referentes!$AA$2:$AA$60,0),1))","v":""}]
[]
[]
["ATRIBUTOS ADICIONALES"]
["Observaciones generales"]
[]
["REGISTROS GENERADOS",null,"CARGADOS"]
["Muestreos",{"$f":"IF(configuracion!B47=\"\",\"\",configuracion!B47)","v":""},{"$f":"IF(configuracion!C47=\"\",\"\",configuracion!C47)","v":""}]
["Parámetros del muestreo",{"$f":"IF(configuracion!B48=\"\",\"\",configuracion!B48)","v":""},{"$f":"IF(configuracion!C48=\"\",\"\",configuracion!C48)","v":""}]
["Registros",{"$f":"IF(configuracion!B49=\"\",\"\",configuracion!B49)","v":""},{"$f":"IF(configuracion!C49=\"\",\"\",configuracion!C49)","v":""}]
["Variables",{"$f":"IF(configuracion!B50=\"\",\"\",configuracion!B50)","v":""},{"$f":"IF(configuracion!C50=\"\",\"\",configuracion!C50)","v":""}]
["Autorías",{"$f":"IF(configuracion!B51=\"\",\"\",configuracion!B51)","v":""},{"$f":"IF(configuracion!C51=\"\",\"\",configuracion!C51)","v":""}]
["Registros correctos",{"$f":"IF(configuracion!B52=\"\",\"\",configuracion!B52)","v":""},{"$f":"IF(configuracion!C52=\"\",\"\",configuracion!C52)","v":""}]
["json error",{"$f":"IF(C41=\"\",\"\",IF(C41=0,0,IF(B41-C41=0,C41,\"Fallaron \"&B41-C41&\" registros\")))","v":""}]
["error",{"$f":"IF(C42=\"\",\"\",IF(C42=0,0,IF(B42-C42=0,C42,\"Fallaron \"&B42-C42&\" registros\")))","v":""}]

{"sheet":"DATOS","index":3,"n_rows":303,"n_cols":19,"rows_kept":303,"cut":false,"hidden":false,"merged":[[0,6,0,9],[0,11,0,18]]}
[null,null,null,null,null,null,"MUESTREO ",null,null,null,null,"MUESTRA"]
[{"$f":"TEXT(DIGITADOR!$B$9,\"yyyymmdd\")","v":"30001212"},"AGM MUESTREO","ID MUESTREO","ID MUESTRA","ID ESTACION",null,"Estación","Fecha\n(DD/MM/AAAA)",null,null,null,null,null,null,"Censo Errante\n(Replica)","ESPECIE","ID Especie","Cantidad de Peces","Observaciones"]
[null,{"$f":"IF(C3=\"\",\"\",IF(COUNTIF($C$3:C3, C3)>1, \"\", C3))","v":""},{"$f":"IF(H3=\"\",\"\",IF(G3=\"\",\"\",CONCATENATE(DIGITADOR!$M$1,H3,E3)))","v":""},{"$f":"IF(C3=\"\",\"\",CONCATENATE(C3,ROW()-2))","v":""},{"$f":"IF(G3=\"\",\"\",VLOOKUP(G3,'Otras referencias'!$A$24:$E$48,2,FALSE))","v":""},null,null,null,null,null,null,null,null,null,null,{"$f":"IF(Q3=\"\",\"\",VLOOKUP(Q3,referentes!$K$2:$R$209,2,FALSE))","v":""}]
[null,{"$f":"IF(C4=\"\",\"\",IF(COUNTIF($C$3:C4, C4)>1, \"\", C4))","v":""},{"$f":"IF(H4=\"\",\"\",CONCATENATE(DIGITADOR!$M$1,H4,E4))","v":""},{"$f":"IF(C4=\"\",\"\",CONCATENATE(C4,ROW()-2))","v":""},{"$f":"IF(G4=\"\",\"\",VLOOKUP(G4,'Otras referencias'!$A$24:$E$48,2,FALSE))","v":""},null,null,null,null,null,null,null,null,null,null,{"$f":"IF(Q4=\"\",\"\",VLOOKUP(Q4,referentes!$K$2:$R$209,2,FALSE))","v":""}]
[null,{"$f":"IF(C5=\"\",\"\",IF(COUNTIF($C$3:C5, C5)>1, \"\", C5))","v":""},{"$f":"IF(H5=\"\",\"\",CONCATENATE(DIGITADOR!$M$1,H5,E5))","v":""},"",{"$f":"IF(G5=\"\",\"\",VLOOKUP(G5,'Otras referencias'!$A$24:$E$48,2,FALSE))","v":""},null,null,null,null,null,null,null,null,null,null,{"$f":"IF(Q5=\"\",\"\",VLOOKUP(Q5,referentes!$K$2:$R$209,2,FALSE))","v":""}]
[null,{"$f":"IF(C6=\"\",\"\",IF(COUNTIF($C$3:C6, C6)>1, \"\", C6))","v":""},{"$f":"IF(H6=\"\",\"\",CONCATENATE(DIGITADOR!$M$1,H6,E6))","v":""},"",{"$f":"IF(G6=\"\",\"\",VLOOKUP(G6,'Otras referencias'!$A$24:$E$48,2,FALSE))","v":""},null,null,null,null,null,null,null,null,null,null,{"$f":"IF(Q6=\"\",\"\",VLOOKUP(Q6,referentes!$K$2:$R$209,2,FALSE))","v":""}]
[null,{"$f":"IF(C7=\"\",\"\",IF(COUNTIF($C$3:C7, C7)>1, \"\", C7))","v":""},{"$f":"IF(H7=\"\",\"\",CONCATENATE(DIGITADOR!$M$1,H7,E7))","v":""},"",{"$f":"IF(G7=\"\",\"\",VLOOKUP(G7,'Otras referencias'!$A$24:$E$48,2,FALSE))","v":""},null,null,null,null,null,null,null,null,null,null,{"$f":"IF(Q7=\"\",\"\",VLOOKUP(Q7,referentes!$K$2:$R$209,2,FALSE))","v":""}]
[null,{"$f":"IF(C8=\"\",\"\",IF(COUNTIF($C$3:C8, C8)>1, \"\", C8))","v":""},{"$f":"IF(H8=\"\",\"\",CONCATENATE(DIGITADOR!$M$1,H8,E8))","v":""},"",{"$f":"IF(G8=\"\",\"\",VLOOKUP(G8,'Otras referencias'!$A$24:$E$48,2,FALSE))","v":""},null,null,null,null,null,null,null,null,null,null,{"$f":"IF(Q8=\"\",\"\",VLOOKUP(Q8,referentes!$K$2:$R$209,2,FALSE))","v":""}]
[null,{"$f":"IF(C9=\"\",\"\",IF(COUNTIF($C$3:C9, C9)>1, \"\", C9))","v":""},{"$f":"IF(H9=\"\",\"\",CONCATENATE(DIGITADOR!$M$1,H9,E9))","v":""},"",{"$f":"IF(G9=\"\",\"\",VLOOKUP(G9,'Otras referencias'!$A$24:$E$48,2,FALSE))","v":""},null,null,null,null,null,null,null,null,null,null,{"$f":"IF(Q9=\"\",\"\",VLOOKUP(Q9,referentes!$K$2:$R$209,2,FALSE))","v":""}]
[null,{"$f":"IF(C10=\"\",\"\",IF(COUNTIF($C$3:C10, C10)>1, \"\", C10))","v":""},{"$f":"IF(H10=\"\",\"\",CONCATENATE(DIGITADOR!$M$1,H10,E10))","v":""},"",{"$f":"IF(G10=\"\",\"\",VLOOKUP(G10,'Otras referencias'!$A$24:$E$48,2,FALSE))","v":""},null,null,null,null,null,null,null,null,null,null,{"$f":"IF(Q10=\"\",\"\",VLOOKUP(Q10,referentes!$K$2:$R$209,2,FALSE))","v":""}]
[null,{"$f":"IF(C11=\"\",\"\",IF(COUNTIF($C$3:C11, C11)>1, \"\", C11))","v":""},{"$f":"IF(H11=\"\",\"\",CONCATENATE(DIGITADOR!$M$1,H11,E11))","v":""},"",{"$f":"IF(G11=\"\",\"\",VLOOKUP(G11,'Otras referencias'!$A$24:$E$48,2,FALSE))","v":""},null,null,null,null,null,null,null,null,null,null,{"$f":"IF(Q11=\"\",\"\",VLOOKUP(Q11,referentes!$K$2:$R$209,2,FALSE))","v":""}]
[null,{"$f":"IF(C12=\"\",\"\",IF(COUNTIF($C$3:C12, C12)>1, \"\", C12))","v":""},{"$f":"IF(H12=\"\",\"\",CONCATENATE(DIGITADOR!$M$1,H12,E12))","v":""},"",{"$f":"IF(G12=\"\",\"\",VLOOKUP(G12,'Otras referencias'!$A$24:$E$48,2,FALSE))","v":""},null,null,null,null,null,null,null,null,null,null,{"$f":"IF(Q12=\"\",\"\",VLOOKUP(Q12,referentes!$K$2:$R$209,2,FALSE))","v":""}]
[null,{"$f":"IF(C13=\"\",\"\",IF(COUNTIF($C$3:C13, C13)>1, \"\", C13))","v":""},{"$f":"IF(H13=\"\",\"\",CONCATENATE(DIGITADOR!$M$1,H13,E13))","v":""},"",{"$f":"IF(G13=\"\",\"\",VLOOKUP(G13,'Otras referencias'!$A$24:$E$48,2,FALSE))","v":""},null,null,null,null,null,null,null,null,null,null,{"$f":"IF(Q13=\"\",\"\",VLOOKUP(Q13,referentes!$K$2:$R$209,2,FALSE))","v":""}]
[null,{"$f":"IF(C14=\"\",\"\",IF(COUNTIF($C$3:C14, C14)>1, \"\", C14))","v":""},{"$f":"IF(H14=\"\",\"\",CONCATENATE(DIGITADOR!$M$1,H14,E14))","v":""},"",{"$f":"IF(G14=\"\",\"\",VLOOKUP(G14,'Otras referencias'!$A$24:$E$48,2,FALSE))","v":""},null,null,null,null,null,null,null,null,null,null,{"$f":"IF(Q14=\"\",\"\",VLOOKUP(Q14,referentes!$K$2:$R$209,2,FALSE))","v":""}]
[null,{"$f":"IF(C15=\"\",\"\",IF(COUNTIF($C$3:C15, C15)>1, \"\", C15))","v":""},{"$f":"IF(H15=\"\",\"\",CONCATENATE(DIGITADOR!$M$1,H15,E15))","v":""},"",{"$f":"IF(G15=\"\",\"\",VLOOKUP(G15,'Otras referencias'!$A$24:$E$48,2,FALSE))","v":""},null,null,null,null,null,null,null,null,null,null,{"$f":"IF(Q15=\"\",\"\",VLOOKUP(Q15,referentes!$K$2:$R$209,2,FALSE))","v":""}]
[null,{"$f":"IF(C16=\"\",\"\",IF(COUNTIF($C$3:C16, C16)>1, \"\", C16))","v":""},{"$f":"IF(H16=\"\",\"\",CONCATENATE(DIGITADOR!$M$1,H16,E16))","v":""},"",{"$f":"IF(G16=\"\",\"\",VLOOKUP(G16,'Otras referencias'!$A$24:$E$48,2,FALSE))","v":""},null,null,null,null,null,null,null,null,null,null,{"$f":"IF(Q16=\"\",\"\",VLOOKUP(Q16,referentes!$K$2:$R$209,2,FALSE))","v":""}]
[null,{"$f":"IF(C17=\"\",\"\",IF(COUNTIF($C$3:C17, C17)>1, \"\", C17))","v":""},{"$f":"IF(H17=\"\",\"\",CONCATENATE(DIGITADOR!$M$1,H17,E17))","v":""},"",{"$f":"IF(G17=\"\",\"\",VLOOKUP(G17,'Otras referencias'!$A$24:$E$48,2,FALSE))","v":""},null,null,null,null,null,null,null,null,null,null,{"$f":"IF(Q17=\"\",\"\",VLOOKUP(Q17,referentes!$K$2:$R$209,2,FALSE))","v":""}]
[null,{"$f":"IF(C18=\"\",\"\",IF(COUNTIF($C$3:C18, C18)>1, \"\", C18))","v":""},{"$f":"IF(H18=\"\",\"\",CONCATENATE(DIGITADOR!$M$1,H18,E18))","v":""},"",{"$f":"IF(G18=\"\",\"\",VLOOKUP(G18,'Otras referencias'!$A$24:$E$48,2,FALSE))","v":""},null,null,null,null,null,null,null,null,null,null,{"$f":"IF(Q18=\"\",\"\",VLOOKUP(Q18,referentes!$K$2:$R$209,2,FALSE))","v":""}]
[null,{"$f":"IF(C19=\"\",\"\",IF(COUNTIF($C$3:C19, C19)>1, \"\", C19))","v":""},{"$f":"IF(H19=\"\",\"\",CONCATENATE(DIGITADOR!$M$1,H19,E19))","v":""},"",{"$f":"IF(G19=\"\",\"\",VLOOKUP(G19,'Otras referencias'!$A$24:$E$48,2,FALSE))","v":""},null,null,null,null,null,null,null,null,null,null,{"$f":"IF(Q19=\"\",\"\",VLOOKUP(Q19,referentes!$K$2:$R$209,2,FALSE))","v":""}]
[null,{"$f":"IF(C20=\"\",\"\",IF(COUNTIF($C$3:C20, C20)>1, \"\", C20))","v":""},{"$f":"IF(H20=\"\",\"\",CONCATENATE(DIGITADOR!$M$1,H20,E20))","v":""},"",{"$f":"IF(G20=\"\",\"\",VLOOKUP(G20,'Otras referencias'!$A$24:$E$48,2,FALSE))","v":""},null,null,null,null,null,null,null,null,null,null,{"$f":"IF(Q20=\"\",\"\",VLOOKUP(Q20,referentes!$K$2:$R$209,2,FALSE))","v":""}]
[null,{"$f":"IF(C21=\"\",\"\",IF(COUNTIF($C$3:C21, C21)>1, \"\", C21))","v":""},{"$f":"IF(H21=\"\",\"\",CONCATENATE(DIGITADOR!$M$1,H21,E21))","v":""},"",{"$f":"IF(G21=\"\",\"\",VLOOKUP(G21,'Otras referencias'!$A$24:$E$48,2,FALSE))","v":""},null,null,null,null,null,null,null,null,null,null,{"$f":"IF(Q21=\"\",\"\",VLOOKUP(Q21,referentes!$K$2:$R$209,2,FALSE))","v":""}]
[null,{"$f":"IF(C22=\"\",\"\",IF(COUNTIF($C$3:C22, C22)>1, \"\", C22))","v":""},{"$f":"IF(H22=\"\",\"\",CONCATENATE(DIGITADOR!$M$1,H22,E22))","v":""},"",{"$f":"IF(G22=\"\",\"\",VLOOKUP(G22,'Otras referencias'!$A$24:$E$48,2,FALSE))","v":""},null,null,null,null,null,null,null,null,null,null,{"$f":"IF(Q22=\"\",\"\",VLOOKUP(Q22,referentes!$K$2:$R$209,2,FALSE))","v":""}]
[null,{"$f":"IF(C23=\"\",\"\",IF(COUNTIF($C$3:C23, C23)>1, \"\", C23))","v":""},{"$f":"IF(H23=\"\",\"\",CONCATENATE(DIGITADOR!$M$1,H23,E23))","v":""},"",{"$f":"IF(G23=\"\",\"\",VLOOKUP(G23,'Otras referencias'!$A$24:$E$48,2,FALSE))","v":""},null,null,null,null,null,null,null,null,null,null,{"$f":"IF(Q23=\"\",\"\",VLOOKUP(Q23,referentes!$K$2:$R$209,2,FALSE))","v":""}]
[null,{"$f":"IF(C24=\"\",\"\",IF(COUNTIF($C$3:C24, C24)>1, \"\", C24))","v":""},{"$f":"IF(H24=\"\",\"\",CONCATENATE(DIGITADOR!$M$1,H24,E24))","v":""},"",{"$f":"IF(G24=\"\",\"\",VLOOKUP(G24,'Otras referencias'!$A$24:$E$48,2,FALSE))","v":""},null,null,null,null,null,null,null,null,null,null,{"$f":"IF(Q24=\"\",\"\",VLOOKUP(Q24,referentes!$K$2:$R$209,2,FALSE))","v":""}]
[null,{"$f":"IF(C25=\"\",\"\",IF(COUNTIF($C$3:C25, C25)>1, \"\", C25))","v":""},{"$f":"IF(H25=\"\",\"\",CONCATENATE(DIGITADOR!$M$1,H25,E25))","v":""},"",{"$f":"IF(G25=\"\",\"\",VLOOKUP(G25,'Otras referencias'!$A$24:$E$48,2,FALSE))","v":""},null,null,null,null,null,null,null,null,null,null,{"$f":"IF(Q25=\"\",\"\",VLOOKUP(Q25,referentes!$K$2:$R$209,2,FALSE))","v":""}]
[null,{"$f":"IF(C26=\"\",\"\",IF(COUNTIF($C$3:C26, C26)>1, \"\", C26))","v":""},{"$f":"IF(H26=\"\",\"\",CONCATENATE(DIGITADOR!$M$1,H26,E26))","v":""},"",{"$f":"IF(G26=\"\",\"\",VLOOKUP(G26,'Otras referencias'!$A$24:$E$48,2,FALSE))","v":""},null,null,null,null,null,null,null,null,null,null,{"$f":"IF(Q26=\"\",\"\",VLOOKUP(Q26,referentes!$K$2:$R$209,2,FALSE))","v":""}]
[null,{"$f":"IF(C27=\"\",\"\",IF(COUNTIF($C$3:C27, C27)>1, \"\", C27))","v":""},{"$f":"IF(H27=\"\",\"\",CONCATENATE(DIGITADOR!$M$1,H27,E27))","v":""},"",{"$f":"IF(G27=\"\",\"\",VLOOKUP(G27,'Otras referencias'!$A$24:$E$48,2,FALSE))","v":""},null,null,null,null,null,null,null,null,null,null,{"$f":"IF(Q27=\"\",\"\",VLOOKUP(Q27,referentes!$K$2:$R$209,2,FALSE))","v":""}]
[null,{"$f":"IF(C28=\"\",\"\",IF(COUNTIF($C$3:C28, C28)>1, \"\", C28))","v":""},{"$f":"IF(H28=\"\",\"\",CONCATENATE(DIGITADOR!$M$1,H28,E28))","v":""},"",{"$f":"IF(G28=\"\",\"\",VLOOKUP(G28,'Otras referencias'!$A$24:$E$48,2,FALSE))","v":""},null,null,null,null,null,null,null,null,null,null,{"$f":"IF(Q28=\"\",\"\",VLOOKUP(Q28,referentes!$K$2:$R$209,2,FALSE))","v":""}]
[null,{"$f":"IF(C29=\"\",\"\",IF(COUNTIF($C$3:C29, C29)>1, \"\", C29))","v":""},{"$f":"IF(H29=\"\",\"\",CONCATENATE(DIGITADOR!$M$1,H29,E29))","v":""},"",{"$f":"IF(G29=\"\",\"\",VLOOKUP(G29,'Otras referencias'!$A$24:$E$48,2,FALSE))","v":""},null,null,null,null,null,null,null,null,null,null,{"$f":"IF(Q29=\"\",\"\",VLOOKUP(Q29,referentes!$K$2:$R$209,2,FALSE))","v":""}]
[null,{"$f":"IF(C30=\"\",\"\",IF(COUNTIF($C$3:C30, C30)>1, \"\", C30))","v":""},{"$f":"IF(H30=\"\",\"\",CONCATENATE(DIGITADOR!$M$1,H30,E30))","v":""},"",{"$f":"IF(G30=\"\",\"\",VLOOKUP(G30,'Otras referencias'!$A$24:$E$48,2,FALSE))","v":""},null,null,null,null,null,null,null,null,null,null,{"$f":"IF(Q30=\"\",\"\",VLOOKUP(Q30,referentes!$K$2:$R$209,2,FALSE))","v":""}]
[null,{"$f":"IF(C31=\"\",\"\",IF(COUNTIF($C$3:C31, C31)>1, \"\", C31))","v":""},{"$f":"IF(H31=\"\",\"\",CONCATENATE(DIGITADOR!$M$1,H31,E31))","v":""},"",{"$f":"IF(G31=\"\",\"\",VLOOKUP(G31,'Otras referencias'!$A$24:$E$48,2,FALSE))","v":""},null,null,null,null,null,null,null,null,null,null,{"$f":"IF(Q31=\"\",\"\",VLOOKUP(Q31,referentes!$K$2:$R$209,2,FALSE))","v":""}]
[null,{"$f":"IF(C32=\"\",\"\",IF(COUNTIF($C$3:C32, C32)>1, \"\", C32))","v":""},{"$f":"IF(H32=\"\",\"\",CONCATENATE(DIGITADOR!$M$1,H32,E32))","v":""},"",{"$f":"IF(G32=\"\",\"\",VLOOKUP(G32,'Otras referencias'!$A$24:$E$48,2,FALSE))","v":""},null,null,null,null,null,null,null,null,null,null,{"$f":"IF(Q32=\"\",\"\",VLOOKUP(Q32,referentes!$K$2:$R$209,2,FALSE))","v":""}]
[null,{"$f":"IF(C33=\"\",\"\",IF(COUNTIF($C$3:C33, C33)>1, \"\", C33))","v":""},{"$f":"IF(H33=\"\",\"\",CONCATENATE(DIGITADOR!$M$1,H33,E33))","v":""},"",{"$f":"IF(G33=\"\",\"\",VLOOKUP(G33,'Otras referencias'!$A$24:$E$48,2,FALSE))","v":""},null,null,null,null,null,null,null,null,null,null,{"$f":"IF(Q33=\"\",\"\",VLOOKUP(Q33,referentes!$K$2:$R$209,2,FALSE))","v":""}]
[null,{"$f":"IF(C34=\"\",\"\",IF(COUNTIF($C$3:C34, C34)>1, \"\", C34))","v":""},{"$f":"IF(H34=\"\",\"\",CONCATENATE(DIGITADOR!$M$1,H34,E34))","v":""},"",{"$f":"IF(G34=\"\",\"\",VLOOKUP(G34,'Otras referencias'!$A$24:$E$48,2,FALSE))","v":""},null,null,null,null,null,null,null,null,null,null,{"$f":"IF(Q34=\"\",\"\",VLOOKUP(Q34,referentes!$K$2:$R$209,2,FALSE))","v":""}]
[null,{"$f":"IF(C35=\"\",\"\",IF(COUNTIF($C$3:C35, C35)>1, \"\", C35))","v":""},{"$f":"IF(H35=\"\",\"\",CONCATENATE(DIGITADOR!$M$1,H35,E35))","v":""},"",{"$f":"IF(G35=\"\",\"\",VLOOKUP(G35,'Otras referencias'!$A$24:$E$48,2,FALSE))","v":""},null,null,null,null,null,null,null,null,null,null,{"$f":"IF(Q35=\"\",\"\",VLOOKUP(Q35,referentes!$K$2:$R$209,2,FALSE))","v":""}]
[null,{"$f":"IF(C36=\"\",\"\",IF(COUNTIF($C$3:C36, C36)>1, \"\", C36))","v":""},{"$f":"IF(H36=\"\",\"\",CONCATENATE(DIGITADOR!$M$1,H36,E36))","v":""},"",{"$f":"IF(G36=\"\",\"\",VLOOKUP(G36,'Otras referencias'!$A$24:$E$48,2,FALSE))","v":""},null,null,null,null,null,null,null,null,null,null,{"$f":"IF(Q36=\"\",\"\",VLOOKUP(Q36,referentes!$K$2:$R$209,2,FALSE))","v":""}]
[null,{"$f":"IF(C37=\"\",\"\",IF(COUNTIF($C$3:C37, C37)>1, \"\", C37))","v":""},{"$f":"IF(H37=\"\",\"\",CONCATENATE(DIGITADOR!$M$1,H37,E37))","v":""},"",{"$f":"IF(G37=\"\",\"\",VLOOKUP(G37,'Otras referencias'!$A$24:$E$48,2,FALSE))","v":""},null,null,null,null,null,null,null,null,null,null,{"$f":"IF(Q37=\"\",\"\",VLOOKUP(Q37,referentes!$K$2:$R$209,2,FALSE))","v":""}]
[null,{"$f":"IF(C38=\"\",\"\",IF(COUNTIF($C$3:C38, C38)>1, \"\", C38))","v":""},{"$f":"IF(H38=\"\",\"\",CONCATENATE(DIGITADOR!$M$1,H38,E38))","v":""},"",{"$f":"IF(G38=\"\",\"\",VLOOKUP(G38,'Otras referencias'!$A$24:$E$48,2,FALSE))","v":""},null,null,null,null,null,null,null,null,null,null,{"$f":"IF(Q38=\"\",\"\",VLOOKUP(Q38,referentes!$K$2:$R$209,2,FALSE))","v":""}]
[null,{"$f":"IF(C39=\"\",\"\",IF(COUNTIF($C$3:C39, C39)>1, \"\", C39))","v":""},{"$f":"IF(H39=\"\",\"\",CONCATENATE(DIGITADOR!$M$1,H39,E39))","v":""},"",{"$f":"IF(G39=\"\",\"\",VLOOKUP(G39,'Otras referencias'!$A$24:$E$48,2,FALSE))","v":""},null,null,null,null,null,null,null,null,null,null,{"$f":"IF(Q39=\"\",\"\",VLOOKUP(Q39,referentes!$K$2:$R$209,2,FALSE))","v":""}]
[null,{"$f":"IF(C40=\"\",\"\",IF(COUNTIF($C$3:C40, C40)>1, \"\", C40))","v":""},{"$f":"IF(H40=\"\",\"\",CONCATENATE(DIGITADOR!$M$1,H40,E40))","v":""},"",{"$f":"IF(G40=\"\",\"\",VLOOKUP(G40,'Otras referencias'!$A$24:$E$48,2,FALSE))","v":""},null,null,null,null,null,null,null,null,null,null,{"$f":"IF(Q40=\"\",\"\",VLOOKUP(Q40,referentes!$K$2:$R$209,2,FALSE))","v":""}]
[null,{"$f":"IF(C41=\"\",\"\",IF(COUNTIF($C$3:C41, C41)>1, \"\", C41))","v":""},{"$f":"IF(H41=\"\",\"\",CONCATENATE(DIGITADOR!$M$1,H41,E41))","v":""},"",{"$f":"IF(G41=\"\",\"\",VLOOKUP(G41,'Otras referencias'!$A$24:$E$48,2,FALSE))","v":""},null,null,null,null,null,null,null,null,null,null,{"$f":"IF(Q41=\"\",\"\",VLOOKUP(Q41,referentes!$K$2:$R$209,2,FALSE))","v":""}]
[null,{"$f":"IF(C42=\"\",\"\",IF(COUNTIF($C$3:C42, C42)>1, \"\", C42))","v":""},{"$f":"IF(H42=\"\",\"\",CONCATENATE(DIGITADOR!$M$1,H42,E42))","v":""},"",{"$f":"IF(G42=\"\",\"\",VLOOKUP(G42,'Otras referencias'!$A$24:$E$48,2,FALSE))","v":""},null,null,null,null,null,null,null,null,null,null,{"$f":"IF(Q42=\"\",\"\",VLOOKUP(Q42,referentes!$K$2:$R$209,2,FALSE))","v":""}]
[null,{"$f":"IF(C43=\"\",\"\",IF(COUNTIF($C$3:C43, C43)>1, \"\", C43))","v":""},{"$f":"IF(H43=\"\",\"\",CONCATENATE(DIGITADOR!$M$1,H43,E43))","v":""},"",{"$f":"IF(G43=\"\",\"\",VLOOKUP(G43,'Otras referencias'!$A$24:$E$48,2,FALSE))","v":""},null,null,null,null,null,null,null,null,null,null,{"$f":"IF(Q43=\"\",\"\",VLOOKUP(Q43,referentes!$K$2:$R$209,2,FALSE))","v":""}]
[null,{"$f":"IF(C44=\"\",\"\",IF(COUNTIF($C$3:C44, C44)>1, \"\", C44))","v":""},{"$f":"IF(H44=\"\",\"\",CONCATENATE(DIGITADOR!$M$1,H44,E44))","v":""},"",{"$f":"IF(G44=\"\",\"\",VLOOKUP(G44,'Otras referencias'!$A$24:$E$48,2,FALSE))","v":""},null,null,null,null,null,null,null,null,null,null,{"$f":"IF(Q44=\"\",\"\",VLOOKUP(Q44,referentes!$K$2:$R$209,2,FALSE))","v":""}]
[null,{"$f":"IF(C45=\"\",\"\",IF(COUNTIF($C$3:C45, C45)>1, \"\", C45))","v":""},{"$f":"IF(H45=\"\",\"\",CONCATENATE(DIGITADOR!$M$1,H45,E45))","v":""},"",{"$f":"IF(G45=\"\",\"\",VLOOKUP(G45,'Otras referencias'!$A$24:$E$48,2,FALSE))","v":""},null,null,null,null,null,null,null,null,null,null,{"$f":"IF(Q45=\"\",\"\",VLOOKUP(Q45,referentes!$K$2:$R$209,2,FALSE))","v":""}]
[null,{"$f":"IF(C46=\"\",\"\",IF(COUNTIF($C$3:C46, C46)>1, \"\", C46))","v":""},{"$f":"IF(H46=\"\",\"\",CONCATENATE(DIGITADOR!$M$1,H46,E46))","v":""},"",{"$f":"IF(G46=\"\",\"\",VLOOKUP(G46,'Otras referencias'!$A$24:$E$48,2,FALSE))","v":""},null,null,null,null,null,null,null,null,null,null,{"$f":"IF(Q46=\"\",\"\",VLOOKUP(Q46,referentes!$K$2:$R$209,2,FALSE))","v":""}]
[null,{"$f":"IF(C47=\"\",\"\",IF(COUNTIF($C$3:C47, C47)>1, \"\", C47))","v":""},{"$f":"IF(H47=\"\",\"\",CONCATENATE(DIGITADOR!$M$1,H47,E47))","v":""},"",{"$f":"IF(G47=\"\",\"\",VLOOKUP(G47,'Otras referencias'!$A$24:$E$48,2,FALSE))","v":""},null,null,null,null,null,null,null,null,null,null,{"$f":"IF(Q47=\"\",\"\",VLOOKUP(Q47,referentes!$K$2:$R$209,2,FALSE))","v":""}]
[null,{"$f":"IF(C48=\"\",\"\",IF(COUNTIF($C$3:C48, C48)>1, \"\", C48))","v":""},{"$f":"IF(H48=\"\",\"\",CONCATENATE(DIGITADOR!$M$1,H48,E48))","v":""},"",{"$f":"IF(G48=\"\",\"\",VLOOKUP(G48,'Otras referencias'!$A$24:$E$48,2,FALSE))","v":""},null,null,null,null,null,null,null,null,null,null,{"$f":"IF(Q48=\"\",\"\",VLOOKUP(Q48,referentes!$K$2:$R$209,2,FALSE))","v":""}]
[null,{"$f":"IF(C49=\"\",\"\",IF(COUNTIF($C$3:C49, C49)>1, \"\", C49))","v":""},{"$f":"IF(H49=\"\",\"\",CONCATENATE(DIGITADOR!$M$1,H49,E49))","v":""},"",{"$f":"IF(G49=\"\",\"\",VLOOKUP(G49,'Otras referencias'!$A$24:$E$48,2,FALSE))","v":""},null,null,null,null,null,null,null,null,null,null,{"$f":"IF(Q49=\"\",\"\",VLOOKUP(Q49,referentes!$K$2:$R$209,2,FALSE))","v":""}]
[null,{"$f":"IF(C50=\"\",\"\",IF(COUNTIF($C$3:C50, C50)>1, \"\", C50))","v":""},{"$f":"IF(H50=\"\",\"\",CONCATENATE(DIGITADOR!$M$1,H50,E50))","v":""},"",{"$f":"IF(G50=\"\",\"\",VLOOKUP(G50,'Otras referencias'!$A$24:$E$48,2,FALSE))","v":""},null,null,null,null,null,null,null,null,null,null,{"$f":"IF(Q50=\"\",\"\",VLOOKUP(Q50,referentes!$K$2:$R$209,2,FALSE))","v":""}]
[null,{"$f":"IF(C51=\"\",\"\",IF(COUNTIF($C$3:C51, C51)>1, \"\", C51))","v":""},{"$f":"IF(H51=\"\",\"\",CONCATENATE(DIGITADOR!$M$1,H51,E51))","v":""},"",{"$f":"IF(G51=\"\",\"\",VLOOKUP(G51,'Otras referencias'!$A$24:$E$48,2,FALSE))","v":""},null,null,null,null,null,null,null,null,null,null,{"$f":"IF(Q51=\"\",\"\",VLOOKUP(Q51,referentes!$K$2:$R$209,2,FALSE))","v":""}]
[null,{"$f":"IF(C52=\"\",\"\",IF(COUNTIF($C$3:C52, C52)>1, \"\", C52))","v":""},{"$f":"IF(H52=\"\",\"\",CONCATENATE(DIGITADOR!$M$1,H52,E52))","v":""},"",{"$f":"IF(G52=\"\",\"\",VLOOKUP(G52,'Otras referencias'!$A$24:$E$48,2,FALSE))","v":""},null,null,null,null,null,null,null,null,null,null,{"$f":"IF(Q52=\"\",\"\",VLOOKUP(Q52,referentes!$K$2:$R$209,2,FALSE))","v":""}]
[null,{"$f":"IF(C53=\"\",\"\",IF(COUNTIF($C$3:C53, C53)>1, \"\", C53))","v":""},{"$f":"IF(H53=\"\",\"\",CONCATENATE(DIGITADOR!$M$1,H53,E53))","v":""},"",{"$f":"IF(G53=\"\",\"\",VLOOKUP(G53,'Otras referencias'!$A$24:$E$48,2,FALSE))","v":""},null,null,null,null,null,null,null,null,null,null,{"$f":"IF(Q53=\"\",\"\",VLOOKUP(Q53,referentes!$K$2:$R$209,2,FALSE))","v":""}]
[null,{"$f":"IF(C54=\"\",\"\",IF(COUNTIF($C$3:C54, C54)>1, \"\", C54))","v":""},{"$f":"IF(H54=\"\",\"\",CONCATENATE(DIGITADOR!$M$1,H54,E54))","v":""},"",{"$f":"IF(G54=\"\",\"\",VLOOKUP(G54,'Otras referencias'!$A$24:$E$48,2,FALSE))","v":""},null,null,null,null,null,null,null,null,null,null,{"$f":"IF(Q54=\"\",\"\",VLOOKUP(Q54,referentes!$K$2:$R$209,2,FALSE))","v":""}]
[null,{"$f":"IF(C55=\"\",\"\",IF(COUNTIF($C$3:C55, C55)>1, \"\", C55))","v":""},{"$f":"IF(H55=\"\",\"\",CONCATENATE(DIGITADOR!$M$1,H55,E55))","v":""},"",{"$f":"IF(G55=\"\",\"\",VLOOKUP(G55,'Otras referencias'!$A$24:$E$48,2,FALSE))","v":""},null,null,null,null,null,null,null,null,null,null,{"$f":"IF(Q55=\"\",\"\",VLOOKUP(Q55,referentes!$K$2:$R$209,2,FALSE))","v":""}]
[null,{"$f":"IF(C56=\"\",\"\",IF(COUNTIF($C$3:C56, C56)>1, \"\", C56))","v":""},{"$f":"IF(H56=\"\",\"\",CONCATENATE(DIGITADOR!$M$1,H56,E56))","v":""},"",{"$f":"IF(G56=\"\",\"\",VLOOKUP(G56,'Otras referencias'!$A$24:$E$48,2,FALSE))","v":""},null,null,null,null,null,null,null,null,null,null,{"$f":"IF(Q56=\"\",\"\",VLOOKUP(Q56,referentes!$K$2:$R$209,2,FALSE))","v":""}]
[null,{"$f":"IF(C57=\"\",\"\",IF(COUNTIF($C$3:C57, C57)>1, \"\", C57))","v":""},{"$f":"IF(H57=\"\",\"\",CONCATENATE(DIGITADOR!$M$1,H57,E57))","v":""},"",{"$f":"IF(G57=\"\",\"\",VLOOKUP(G57,'Otras referencias'!$A$24:$E$48,2,FALSE))","v":""},null,null,null,null,null,null,null,null,null,null,{"$f":"IF(Q57=\"\",\"\",VLOOKUP(Q57,referentes!$K$2:$R$209,2,FALSE))","v":""}]
[null,{"$f":"IF(C58=\"\",\"\",IF(COUNTIF($C$3:C58, C58)>1, \"\", C58))","v":""},{"$f":"IF(H58=\"\",\"\",CONCATENATE(DIGITADOR!$M$1,H58,E58))","v":""},"",{"$f":"IF(G58=\"\",\"\",VLOOKUP(G58,'Otras referencias'!$A$24:$E$48,2,FALSE))","v":""},null,null,null,null,null,null,null,null,null,null,{"$f":"IF(Q58=\"\",\"\",VLOOKUP(Q58,referentes!$K$2:$R$209,2,FALSE))","v":""}]
[null,{"$f":"IF(C59=\"\",\"\",IF(COUNTIF($C$3:C59, C59)>1, \"\", C59))","v":""},{"$f":"IF(H59=\"\",\"\",CONCATENATE(DIGITADOR!$M$1,H59,E59))","v":""},"",{"$f":"IF(G59=\"\",\"\",VLOOKUP(G59,'Otras referencias'!$A$24:$E$48,2,FALSE))","v":""},null,null,null,null,null,null,null,null,null,null,{"$f":"IF(Q59=\"\",\"\",VLOOKUP(Q59,referentes!$K$2:$R$209,2,FALSE))","v":""}]
[null,{"$f":"IF(C60=\"\",\"\",IF(COUNTIF($C$3:C60, C60)>1, \"\", C60))","v":""},{"$f":"IF(H60=\"\",\"\",CONCATENATE(DIGITADOR!$M$1,H60,E60))","v":""},"",{"$f":"IF(G60=\"\",\"\",VLOOKUP(G60,'Otras referencias'!$A$24:$E$48,2,FALSE))","v":""},null,null,null,null,null,null,null,null,null,null,{"$f":"IF(Q60=\"\",\"\",VLOOKUP(Q60,referentes!$K$2:$R$209,2,FALSE))","v":""}]
[null,{"$f":"IF(C61=\"\",\"\",IF(COUNTIF($C$3:C61, C61)>1, \"\", C61))","v":""},{"$f":"IF(H61=\"\",\"\",CONCATENATE(DIGITADOR!$M$1,H61,E61))","v":""},"",{"$f":"IF(G61=\"\",\"\",VLOOKUP(G61,'Otras referencias'!$A$24:$E$48,2,FALSE))","v":""},null,null,null,null,null,null,null,null,null,null,{"$f":"IF(Q61=\"\",\"\",VLOOKUP(Q61,referentes!$K$2:$R$209,2,FALSE))","v":""}]
[null,{"$f":"IF(C62=\"\",\"\",IF(COUNTIF($C$3:C62, C62)>1, \"\", C62))","v":""},{"$f":"IF(H62=\"\",\"\",CONCATENATE(DIGITADOR!$M$1,H62,E62))","v":""},"",{"$f":"IF(G62=\"\",\"\",VLOOKUP(G62,'Otras referencias'!$A$24:$E$48,2,FALSE))","v":""},null,null,null,null,null,null,null,null,null,null,{"$f":"IF(Q62=\"\",\"\",VLOOKUP(Q62,referentes!$K$2:$R$209,2,FALSE))","v":""}]
[null,{"$f":"IF(C63=\"\",\"\",IF(COUNTIF($C$3:C63, C63)>1, \"\", C63))","v":""},{"$f":"IF(H63=\"\",\"\",CONCATENATE(DIGITADOR!$M$1,H63,E63))","v":""},"",{"$f":"IF(G63=\"\",\"\",VLOOKUP(G63,'Otras referencias'!$A$24:$E$48,2,FALSE))","v":""},null,null,null,null,null,null,null,null,null,null,{"$f":"IF(Q63=\"\",\"\",VLOOKUP(Q63,referentes!$K$2:$R$209,2,FALSE))","v":""}]
[null,{"$f":"IF(C64=\"\",\"\",IF(COUNTIF($C$3:C64, C64)>1, \"\", C64))","v":""},{"$f":"IF(H64=\"\",\"\",CONCATENATE(DIGITADOR!$M$1,H64,E64))","v":""},"",{"$f":"IF(G64=\"\",\"\",VLOOKUP(G64,'Otras referencias'!$A$24:$E$48,2,FALSE))","v":""},null,null,null,null,null,null,null,null,null,null,{"$f":"IF(Q64=\"\",\"\",VLOOKUP(Q64,referentes!$K$2:$R$209,2,FALSE))","v":""}]
[null,{"$f":"IF(C65=\"\",\"\",IF(COUNTIF($C$3:C65, C65)>1, \"\", C65))","v":""},{"$f":"IF(H65=\"\",\"\",CONCATENATE(DIGITADOR!$M$1,H65,E65))","v":""},"",{"$f":"IF(G65=\"\",\"\",VLOOKUP(G65,'Otras referencias'!$A$24:$E$48,2,FALSE))","v":""},null,null,null,null,null,null,null,null,null,null,{"$f":"IF(Q65=\"\",\"\",VLOOKUP(Q65,referentes!$K$2:$R$209,2,FALSE))","v":""}]
[null,{"$f":"IF(C66=\"\",\"\",IF(COUNTIF($C$3:C66, C66)>1, \"\", C66))","v":""},{"$f":"IF(H66=\"\",\"\",CONCATENATE(DIGITADOR!$M$1,H66,E66))","v":""},"",{"$f":"IF(G66=\"\",\"\",VLOOKUP(G66,'Otras referencias'!$A$24:$E$48,2,FALSE))","v":""},null,null,null,null,null,null,null,null,null,null,{"$f":"IF(Q66=\"\",\"\",VLOOKUP(Q66,referentes!$K$2:$R$209,2,FALSE))","v":""}]
[null,{"$f":"IF(C67=\"\",\"\",IF(COUNTIF($C$3:C67, C67)>1, \"\", C67))","v":""},{"$f":"IF(H67=\"\",\"\",CONCATENATE(DIGITADOR!$M$1,H67,E67))","v":""},"",{"$f":"IF(G67=\"\",\"\",VLOOKUP(G67,'Otras referencias'!$A$24:$E$48,2,FALSE))","v":""},null,null,null,null,null,null,null,null,null,null,{"$f":"IF(Q67=\"\",\"\",VLOOKUP(Q67,referentes!$K$2:$R$209,2,FALSE))","v":""}]
[null,{"$f":"IF(C68=\"\",\"\",IF(COUNTIF($C$3:C68, C68)>1, \"\", C68))","v":""},{"$f":"IF(H68=\"\",\"\",CONCATENATE(DIGITADOR!$M$1,H68,E68))","v":""},{"$f":"IF(C68=\"\",\"\",CONCATENATE(C68,ROW()-2))","v":""},{"$f":"IF(G68=\"\",\"\",VLOOKUP(G68,'Otras referencias'!$A$24:$E$48,2,FALSE))","v":""},null,null,null,null,null,null,null,null,null,null,{"$f":"IF(Q68=\"\",\"\",VLOOKUP(Q68,referentes!$K$2:$R$209,2,FALSE))","v":""}]
[null,{"$f":"IF(C69=\"\",\"\",IF(COUNTIF($C$3:C69, C69)>1, \"\", C69))","v":""},{"$f":"IF(H69=\"\",\"\",CONCATENATE(DIGITADOR!$M$1,H69,E69))","v":""},"",{"$f":"IF(G69=\"\",\"\",VLOOKUP(G69,'Otras referencias'!$A$24:$E$48,2,FALSE))","v":""},null,null,null,null,null,null,null,null,null,null,{"$f":"IF(Q69=\"\",\"\",VLOOKUP(Q69,referentes!$K$2:$R$209,2,FALSE))","v":""}]
[null,{"$f":"IF(C70=\"\",\"\",IF(COUNTIF($C$3:C70, C70)>1, \"\", C70))","v":""},{"$f":"IF(H70=\"\",\"\",CONCATENATE(DIGITADOR!$M$1,H70,E70))","v":""},"",{"$f":"IF(G70=\"\",\"\",VLOOKUP(G70,'Otras referencias'!$A$24:$E$48,2,FALSE))","v":""},null,null,null,null,null,null,null,null,null,null,{"$f":"IF(Q70=\"\",\"\",VLOOKUP(Q70,referentes!$K$2:$R$209,2,FALSE))","v":""}]
[null,{"$f":"IF(C71=\"\",\"\",IF(COUNTIF($C$3:C71, C71)>1, \"\", C71))","v":""},{"$f":"IF(H71=\"\",\"\",CONCATENATE(DIGITADOR!$M$1,H71,E71))","v":""},"",{"$f":"IF(G71=\"\",\"\",VLOOKUP(G71,'Otras referencias'!$A$24:$E$48,2,FALSE))","v":""},null,null,null,null,null,null,null,null,null,null,{"$f":"IF(Q71=\"\",\"\",VLOOKUP(Q71,referentes!$K$2:$R$209,2,FALSE))","v":""}]
[null,{"$f":"IF(C72=\"\",\"\",IF(COUNTIF($C$3:C72, C72)>1, \"\", C72))","v":""},{"$f":"IF(H72=\"\",\"\",CONCATENATE(DIGITADOR!$M$1,H72,E72))","v":""},"",{"$f":"IF(G72=\"\",\"\",VLOOKUP(G72,'Otras referencias'!$A$24:$E$48,2,FALSE))","v":""},null,null,null,null,null,null,null,null,null,null,{"$f":"IF(Q72=\"\",\"\",VLOOKUP(Q72,referentes!$K$2:$R$209,2,FALSE))","v":""}]
[null,{"$f":"IF(C73=\"\",\"\",IF(COUNTIF($C$3:C73, C73)>1, \"\", C73))","v":""},{"$f":"IF(H73=\"\",\"\",CONCATENATE(DIGITADOR!$M$1,H73,E73))","v":""},"",{"$f":"IF(G73=\"\",\"\",VLOOKUP(G73,'Otras referencias'!$A$24:$E$48,2,FALSE))","v":""},null,null,null,null,null,null,null,null,null,null,{"$f":"IF(Q73=\"\",\"\",VLOOKUP(Q73,referentes!$K$2:$R$209,2,FALSE))","v":""}]
[null,{"$f":"IF(C74=\"\",\"\",IF(COUNTIF($C$3:C74, C74)>1, \"\", C74))","v":""},{"$f":"IF(H74=\"\",\"\",CONCATENATE(DIGITADOR!$M$1,H74,E74))","v":""},"",{"$f":"IF(G74=\"\",\"\",VLOOKUP(G74,'Otras referencias'!$A$24:$E$48,2,FALSE))","v":""},null,null,null,null,null,null,null,null,null,null,{"$f":"IF(Q74=\"\",\"\",VLOOKUP(Q74,referentes!$K$2:$R$209,2,FALSE))","v":""}]
[null,{"$f":"IF(C75=\"\",\"\",IF(COUNTIF($C$3:C75, C75)>1, \"\", C75))","v":""},{"$f":"IF(H75=\"\",\"\",CONCATENATE(DIGITADOR!$M$1,H75,E75))","v":""},"",{"$f":"IF(G75=\"\",\"\",VLOOKUP(G75,'Otras referencias'!$A$24:$E$48,2,FALSE))","v":""},null,null,null,null,null,null,null,null,null,null,{"$f":"IF(Q75=\"\",\"\",VLOOKUP(Q75,referentes!$K$2:$R$209,2,FALSE))","v":""}]
[null,{"$f":"IF(C76=\"\",\"\",IF(COUNTIF($C$3:C76, C76)>1, \"\", C76))","v":""},{"$f":"IF(H76=\"\",\"\",CONCATENATE(DIGITADOR!$M$1,H76,E76))","v":""},"",{"$f":"IF(G76=\"\",\"\",VLOOKUP(G76,'Otras referencias'!$A$24:$E$48,2,FALSE))","v":""},null,null,null,null,null,null,null,null,null,null,{"$f":"IF(Q76=\"\",\"\",VLOOKUP(Q76,referentes!$K$2:$R$209,2,FALSE))","v":""}]
[null,{"$f":"IF(C77=\"\",\"\",IF(COUNTIF($C$3:C77, C77)>1, \"\", C77))","v":""},{"$f":"IF(H77=\"\",\"\",CONCATENATE(DIGITADOR!$M$1,H77,E77))","v":""},"",{"$f":"IF(G77=\"\",\"\",VLOOKUP(G77,'Otras referencias'!$A$24:$E$48,2,FALSE))","v":""},null,null,null,null,null,null,null,null,null,null,{"$f":"IF(Q77=\"\",\"\",VLOOKUP(Q77,referentes!$K$2:$R$209,2,FALSE))","v":""}]
[null,{"$f":"IF(C78=\"\",\"\",IF(COUNTIF($C$3:C78, C78)>1, \"\", C78))","v":""},{"$f":"IF(H78=\"\",\"\",CONCATENATE(DIGITADOR!$M$1,H78,E78))","v":""},"",{"$f":"IF(G78=\"\",\"\",VLOOKUP(G78,'Otras referencias'!$A$24:$E$48,2,FALSE))","v":""},null,null,null,null,null,null,null,null,null,null,{"$f":"IF(Q78=\"\",\"\",VLOOKUP(Q78,referentes!$K$2:$R$209,2,FALSE))","v":""}]
[null,{"$f":"IF(C79=\"\",\"\",IF(COUNTIF($C$3:C79, C79)>1, \"\", C79))","v":""},{"$f":"IF(H79=\"\",\"\",CONCATENATE(DIGITADOR!$M$1,H79,E79))","v":""},"",{"$f":"IF(G79=\"\",\"\",VLOOKUP(G79,'Otras referencias'!$A$24:$E$48,2,FALSE))","v":""},null,null,null,null,null,null,null,null,null,null,{"$f":"IF(Q79=\"\",\"\",VLOOKUP(Q79,referentes!$K$2:$R$209,2,FALSE))","v":""}]
[null,{"$f":"IF(C80=\"\",\"\",IF(COUNTIF($C$3:C80, C80)>1, \"\", C80))","v":""},{"$f":"IF(H80=\"\",\"\",CONCATENATE(DIGITADOR!$M$1,H80,E80))","v":""},"",{"$f":"IF(G80=\"\",\"\",VLOOKUP(G80,'Otras referencias'!$A$24:$E$48,2,FALSE))","v":""},null,null,null,null,null,null,null,null,null,null,{"$f":"IF(Q80=\"\",\"\",VLOOKUP(Q80,referentes!$K$2:$R$209,2,FALSE))","v":""}]
[null,{"$f":"IF(C81=\"\",\"\",IF(COUNTIF($C$3:C81, C81)>1, \"\", C81))","v":""},{"$f":"IF(H81=\"\",\"\",CONCATENATE(DIGITADOR!$M$1,H81,E81))","v":""},"",{"$f":"IF(G81=\"\",\"\",VLOOKUP(G81,'Otras referencias'!$A$24:$E$48,2,FALSE))","v":""},null,null,null,null,null,null,null,null,null,null,{"$f":"IF(Q81=\"\",\"\",VLOOKUP(Q81,referentes!$K$2:$R$209,2,FALSE))","v":""}]
[null,{"$f":"IF(C82=\"\",\"\",IF(COUNTIF($C$3:C82, C82)>1, \"\", C82))","v":""},{"$f":"IF(H82=\"\",\"\",CONCATENATE(DIGITADOR!$M$1,H82,E82))","v":""},"",{"$f":"IF(G82=\"\",\"\",VLOOKUP(G82,'Otras referencias'!$A$24:$E$48,2,FALSE))","v":""},null,null,null,null,null,null,null,null,null,null,{"$f":"IF(Q82=\"\",\"\",VLOOKUP(Q82,referentes!$K$2:$R$209,2,FALSE))","v":""}]
[null,{"$f":"IF(C83=\"\",\"\",IF(COUNTIF($C$3:C83, C83)>1, \"\", C83))","v":""},{"$f":"IF(H83=\"\",\"\",CONCATENATE(DIGITADOR!$M$1,H83,E83))","v":""},"",{"$f":"IF(G83=\"\",\"\",VLOOKUP(G83,'Otras referencias'!$A$24:$E$48,2,FALSE))","v":""},null,null,null,null,null,null,null,null,null,null,{"$f":"IF(Q83=\"\",\"\",VLOOKUP(Q83,referentes!$K$2:$R$209,2,FALSE))","v":""}]
[null,{"$f":"IF(C84=\"\",\"\",IF(COUNTIF($C$3:C84, C84)>1, \"\", C84))","v":""},{"$f":"IF(H84=\"\",\"\",CONCATENATE(DIGITADOR!$M$1,H84,E84))","v":""},"",{"$f":"IF(G84=\"\",\"\",VLOOKUP(G84,'Otras referencias'!$A$24:$E$48,2,FALSE))","v":""},null,null,null,null,null,null,null,null,null,null,{"$f":"IF(Q84=\"\",\"\",VLOOKUP(Q84,referentes!$K$2:$R$209,2,FALSE))","v":""}]
[null,{"$f":"IF(C85=\"\",\"\",IF(COUNTIF($C$3:C85, C85)>1, \"\", C85))","v":""},{"$f":"IF(H85=\"\",\"\",CONCATENATE(DIGITADOR!$M$1,H85,E85))","v":""},"",{"$f":"IF(G85=\"\",\"\",VLOOKUP(G85,'Otras referencias'!$A$24:$E$48,2,FALSE))","v":""},null,null,null,null,null,null,null,null,null,null,{"$f":"IF(Q85=\"\",\"\",VLOOKUP(Q85,referentes!$K$2:$R$209,2,FALSE))","v":""}]
[null,{"$f":"IF(C86=\"\",\"\",IF(COUNTIF($C$3:C86, C86)>1, \"\", C86))","v":""},{"$f":"IF(H86=\"\",\"\",CONCATENATE(DIGITADOR!$M$1,H86,E86))","v":""},"",{"$f":"IF(G86=\"\",\"\",VLOOKUP(G86,'Otras referencias'!$A$24:$E$48,2,FALSE))","v":""},null,null,null,null,null,null,null,null,null,null,{"$f":"IF(Q86=\"\",\"\",VLOOKUP(Q86,referentes!$K$2:$R$209,2,FALSE))","v":""}]
[null,{"$f":"IF(C87=\"\",\"\",IF(COUNTIF($C$3:C87, C87)>1, \"\", C87))","v":""},{"$f":"IF(H87=\"\",\"\",CONCATENATE(DIGITADOR!$M$1,H87,E87))","v":""},"",{"$f":"IF(G87=\"\",\"\",VLOOKUP(G87,'Otras referencias'!$A$24:$E$48,2,FALSE))","v":""},null,null,null,null,null,null,null,null,null,null,{"$f":"IF(Q87=\"\",\"\",VLOOKUP(Q87,referentes!$K$2:$R$209,2,FALSE))","v":""}]
[null,{"$f":"IF(C88=\"\",\"\",IF(COUNTIF($C$3:C88, C88)>1, \"\", C88))","v":""},{"$f":"IF(H88=\"\",\"\",CONCATENATE(DIGITADOR!$M$1,H88,E88))","v":""},"",{"$f":"IF(G88=\"\",\"\",VLOOKUP(G88,'Otras referencias'!$A$24:$E$48,2,FALSE))","v":""},null,null,null,null,null,null,null,null,null,null,{"$f":"IF(Q88=\"\",\"\",VLOOKUP(Q88,referentes!$K$2:$R$209,2,FALSE))","v":""}]
[null,{"$f":"IF(C89=\"\",\"\",IF(COUNTIF($C$3:C89, C89)>1, \"\", C89))","v":""},{"$f":"IF(H89=\"\",\"\",CONCATENATE(DIGITADOR!$M$1,H89,E89))","v":""},"",{"$f":"IF(G89=\"\",\"\",VLOOKUP(G89,'Otras referencias'!$A$24:$E$48,2,FALSE))","v":""},null,null,null,null,null,null,null,null,null,null,{"$f":"IF(Q89=\"\",\"\",VLOOKUP(Q89,referentes!$K$2:$R$209,2,FALSE))","v":""}]
[null,{"$f":"IF(C90=\"\",\"\",IF(COUNTIF($C$3:C90, C90)>1, \"\", C90))","v":""},{"$f":"IF(H90=\"\",\"\",CONCATENATE(DIGITADOR!$M$1,H90,E90))","v":""},"",{"$f":"IF(G90=\"\",\"\",VLOOKUP(G90,'Otras referencias'!$A$24:$E$48,2,FALSE))","v":""},null,null,null,null,null,null,null,null,null,null,{"$f":"IF(Q90=\"\",\"\",VLOOKUP(Q90,referentes!$K$2:$R$209,2,FALSE))","v":""}]
[null,{"$f":"IF(C91=\"\",\"\",IF(COUNTIF($C$3:C91, C91)>1, \"\", C91))","v":""},{"$f":"IF(H91=\"\",\"\",CONCATENATE(DIGITADOR!$M$1,H91,E91))","v":""},"",{"$f":"IF(G91=\"\",\"\",VLOOKUP(G91,'Otras referencias'!$A$24:$E$48,2,FALSE))","v":""},null,null,null,null,null,null,null,null,null,null,{"$f":"IF(Q91=\"\",\"\",VLOOKUP(Q91,referentes!$K$2:$R$209,2,FALSE))","v":""}]
[null,{"$f":"IF(C92=\"\",\"\",IF(COUNTIF($C$3:C92, C92)>1, \"\", C92))","v":""},{"$f":"IF(H92=\"\",\"\",CONCATENATE(DIGITADOR!$M$1,H92,E92))","v":""},"",{"$f":"IF(G92=\"\",\"\",VLOOKUP(G92,'Otras referencias'!$A$24:$E$48,2,FALSE))","v":""},null,null,null,null,null,null,null,null,null,null,{"$f":"IF(Q92=\"\",\"\",VLOOKUP(Q92,referentes!$K$2:$R$209,2,FALSE))","v":""}]
[null,{"$f":"IF(C93=\"\",\"\",IF(COUNTIF($C$3:C93, C93)>1, \"\", C93))","v":""},{"$f":"IF(H93=\"\",\"\",CONCATENATE(DIGITADOR!$M$1,H93,E93))","v":""},"",{"$f":"IF(G93=\"\",\"\",VLOOKUP(G93,'Otras referencias'!$A$24:$E$48,2,FALSE))","v":""},null,null,null,null,null,null,null,null,null,null,{"$f":"IF(Q93=\"\",\"\",VLOOKUP(Q93,referentes!$K$2:$R$209,2,FALSE))","v":""}]
[null,{"$f":"IF(C94=\"\",\"\",IF(COUNTIF($C$3:C94, C94)>1, \"\", C94))","v":""},{"$f":"IF(H94=\"\",\"\",CONCATENATE(DIGITADOR!$M$1,H94,E94))","v":""},"",{"$f":"IF(G94=\"\",\"\",VLOOKUP(G94,'Otras referencias'!$A$24:$E$48,2,FALSE))","v":""},null,null,null,null,null,null,null,null,null,null,{"$f":"IF(Q94=\"\",\"\",VLOOKUP(Q94,referentes!$K$2:$R$209,2,FALSE))","v":""}]
[null,{"$f":"IF(C95=\"\",\"\",IF(COUNTIF($C$3:C95, C95)>1, \"\", C95))","v":""},{"$f":"IF(H95=\"\",\"\",CONCATENATE(DIGITADOR!$M$1,H95,E95))","v":""},"",{"$f":"IF(G95=\"\",\"\",VLOOKUP(G95,'Otras referencias'!$A$24:$E$48,2,FALSE))","v":""},null,null,null,null,null,null,null,null,null,null,{"$f":"IF(Q95=\"\",\"\",VLOOKUP(Q95,referentes!$K$2:$R$209,2,FALSE))","v":""}]
[null,{"$f":"IF(C96=\"\",\"\",IF(COUNTIF($C$3:C96, C96)>1, \"\", C96))","v":""},{"$f":"IF(H96=\"\",\"\",CONCATENATE(DIGITADOR!$M$1,H96,E96))","v":""},"",{"$f":"IF(G96=\"\",\"\",VLOOKUP(G96,'Otras referencias'!$A$24:$E$48,2,FALSE))","v":""},null,null,null,null,null,null,null,null,null,null,{"$f":"IF(Q96=\"\",\"\",VLOOKUP(Q96,referentes!$K$2:$R$209,2,FALSE))","v":""}]
[null,{"$f":"IF(C97=\"\",\"\",IF(COUNTIF($C$3:C97, C97)>1, \"\", C97))","v":""},{"$f":"IF(H97=\"\",\"\",CONCATENATE(DIGITADOR!$M$1,H97,E97))","v":""},"",{"$f":"IF(G97=\"\",\"\",VLOOKUP(G97,'Otras referencias'!$A$24:$E$48,2,FALSE))","v":""},null,null,null,null,null,null,null,null,null,null,{"$f":"IF(Q97=\"\",\"\",VLOOKUP(Q97,referentes!$K$2:$R$209,2,FALSE))","v":""}]
[null,{"$f":"IF(C98=\"\",\"\",IF(COUNTIF($C$3:C98, C98)>1, \"\", C98))","v":""},{"$f":"IF(H98=\"\",\"\",CONCATENATE(DIGITADOR!$M$1,H98,E98))","v":""},"",{"$f":"IF(G98=\"\",\"\",VLOOKUP(G98,'Otras referencias'!$A$24:$E$48,2,FALSE))","v":""},null,null,null,null,null,null,null,null,null,null,{"$f":"IF(Q98=\"\",\"\",VLOOKUP(Q98,referentes!$K$2:$R$209,2,FALSE))","v":""}]
[null,{"$f":"IF(C99=\"\",\"\",IF(COUNTIF($C$3:C99, C99)>1, \"\", C99))","v":""},{"$f":"IF(H99=\"\",\"\",CONCATENATE(DIGITADOR!$M$1,H99,E99))","v":""},"",{"$f":"IF(G99=\"\",\"\",VLOOKUP(G99,'Otras referencias'!$A$24:$E$48,2,FALSE))","v":""},null,null,null,null,null,null,null,null,null,null,{"$f":"IF(Q99=\"\",\"\",VLOOKUP(Q99,referentes!$K$2:$R$209,2,FALSE))","v":""}]
[null,{"$f":"IF(C100=\"\",\"\",IF(COUNTIF($C$3:C100, C100)>1, \"\", C100))","v":""},{"$f":"IF(H100=\"\",\"\",CONCATENATE(DIGITADOR!$M$1,H100,E100))","v":""},"",{"$f":"IF(G100=\"\",\"\",VLOOKUP(G100,'Otras referencias'!$A$24:$E$48,2,FALSE))","v":""},null,null,null,null,null,null,null,null,null,null,{"$f":"IF(Q100=\"\",\"\",VLOOKUP(Q100,referentes!$K$2:$R$209,2,FALSE))","v":""}]
[null,{"$f":"IF(C101=\"\",\"\",IF(COUNTIF($C$3:C101, C101)>1, \"\", C101))","v":""},{"$f":"IF(H101=\"\",\"\",CONCATENATE(DIGITADOR!$M$1,H101,E101))","v":""},"",{"$f":"IF(G101=\"\",\"\",VLOOKUP(G101,'Otras referencias'!$A$24:$E$48,2,FALSE))","v":""},null,null,null,null,null,null,null,null,null,null,{"$f":"IF(Q101=\"\",\"\",VLOOKUP(Q101,referentes!$K$2:$R$209,2,FALSE))","v":""}]
[null,{"$f":"IF(C102=\"\",\"\",IF(COUNTIF($C$3:C102, C102)>1, \"\", C102))","v":""},{"$f":"IF(H102=\"\",\"\",CONCATENATE(DIGITADOR!$M$1,H102,E102))","v":""},"",{"$f":"IF(G102=\"\",\"\",VLOOKUP(G102,'Otras referencias'!$A$24:$E$48,2,FALSE))","v":""},null,null,null,null,null,null,null,null,null,null,{"$f":"IF(Q102=\"\",\"\",VLOOKUP(Q102,referentes!$K$2:$R$209,2,FALSE))","v":""}]
[null,{"$f":"IF(C103=\"\",\"\",IF(COUNTIF($C$3:C103, C103)>1, \"\", C103))","v":""},{"$f":"IF(H103=\"\",\"\",CONCATENATE(DIGITADOR!$M$1,H103,E103))","v":""},"",{"$f":"IF(G103=\"\",\"\",VLOOKUP(G103,'Otras referencias'!$A$24:$E$48,2,FALSE))","v":""},null,null,null,null,null,null,null,null,null,null,{"$f":"IF(Q103=\"\",\"\",VLOOKUP(Q103,referentes!$K$2:$R$209,2,FALSE))","v":""}]
[null,{"$f":"IF(C104=\"\",\"\",IF(COUNTIF($C$3:C104, C104)>1, \"\", C104))","v":""},{"$f":"IF(H104=\"\",\"\",CONCATENATE(DIGITADOR!$M$1,H104,E104))","v":""},"",{"$f":"IF(G104=\"\",\"\",VLOOKUP(G104,'Otras referencias'!$A$24:$E$48,2,FALSE))","v":""},null,null,null,null,null,null,null,null,null,null,{"$f":"IF(Q104=\"\",\"\",VLOOKUP(Q104,referentes!$K$2:$R$209,2,FALSE))","v":""}]
[null,{"$f":"IF(C105=\"\",\"\",IF(COUNTIF($C$3:C105, C105)>1, \"\", C105))","v":""},{"$f":"IF(H105=\"\",\"\",CONCATENATE(DIGITADOR!$M$1,H105,E105))","v":""},"",{"$f":"IF(G105=\"\",\"\",VLOOKUP(G105,'Otras referencias'!$A$24:$E$48,2,FALSE))","v":""},null,null,null,null,null,null,null,null,null,null,{"$f":"IF(Q105=\"\",\"\",VLOOKUP(Q105,referentes!$K$2:$R$209,2,FALSE))","v":""}]
[null,{"$f":"IF(C106=\"\",\"\",IF(COUNTIF($C$3:C106, C106)>1, \"\", C106))","v":""},{"$f":"IF(H106=\"\",\"\",CONCATENATE(DIGITADOR!$M$1,H106,E106))","v":""},"",{"$f":"IF(G106=\"\",\"\",VLOOKUP(G106,'Otras referencias'!$A$24:$E$48,2,FALSE))","v":""},null,null,null,null,null,null,null,null,null,null,{"$f":"IF(Q106=\"\",\"\",VLOOKUP(Q106,referentes!$K$2:$R$209,2,FALSE))","v":""}]
[null,{"$f":"IF(C107=\"\",\"\",IF(COUNTIF($C$3:C107, C107)>1, \"\", C107))","v":""},{"$f":"IF(H107=\"\",\"\",CONCATENATE(DIGITADOR!$M$1,H107,E107))","v":""},"",{"$f":"IF(G107=\"\",\"\",VLOOKUP(G107,'Otras referencias'!$A$24:$E$48,2,FALSE))","v":""},null,null,null,null,null,null,null,null,null,null,{"$f":"IF(Q107=\"\",\"\",VLOOKUP(Q107,referentes!$K$2:$R$209,2,FALSE))","v":""}]
[null,{"$f":"IF(C108=\"\",\"\",IF(COUNTIF($C$3:C108, C108)>1, \"\", C108))","v":""},{"$f":"IF(H108=\"\",\"\",CONCATENATE(DIGITADOR!$M$1,H108,E108))","v":""},"",{"$f":"IF(G108=\"\",\"\",VLOOKUP(G108,'Otras referencias'!$A$24:$E$48,2,FALSE))","v":""},null,null,null,null,null,null,null,null,null,null,{"$f":"IF(Q108=\"\",\"\",VLOOKUP(Q108,referentes!$K$2:$R$209,2,FALSE))","v":""}]
[null,{"$f":"IF(C109=\"\",\"\",IF(COUNTIF($C$3:C109, C109)>1, \"\", C109))","v":""},{"$f":"IF(H109=\"\",\"\",CONCATENATE(DIGITADOR!$M$1,H109,E109))","v":""},"",{"$f":"IF(G109=\"\",\"\",VLOOKUP(G109,'Otras referencias'!$A$24:$E$48,2,FALSE))","v":""},null,null,null,null,null,null,null,null,null,null,{"$f":"IF(Q109=\"\",\"\",VLOOKUP(Q109,referentes!$K$2:$R$209,2,FALSE))","v":""}]
[null,{"$f":"IF(C110=\"\",\"\",IF(COUNTIF($C$3:C110, C110)>1, \"\", C110))","v":""},{"$f":"IF(H110=\"\",\"\",CONCATENATE(DIGITADOR!$M$1,H110,E110))","v":""},"",{"$f":"IF(G110=\"\",\"\",VLOOKUP(G110,'Otras referencias'!$A$24:$E$48,2,FALSE))","v":""},null,null,null,null,null,null,null,null,null,null,{"$f":"IF(Q110=\"\",\"\",VLOOKUP(Q110,referentes!$K$2:$R$209,2,FALSE))","v":""}]
[null,{"$f":"IF(C111=\"\",\"\",IF(COUNTIF($C$3:C111, C111)>1, \"\", C111))","v":""},{"$f":"IF(H111=\"\",\"\",CONCATENATE(DIGITADOR!$M$1,H111,E111))","v":""},"",{"$f":"IF(G111=\"\",\"\",VLOOKUP(G111,'Otras referencias'!$A$24:$E$48,2,FALSE))","v":""},null,null,null,null,null,null,null,null,null,null,{"$f":"IF(Q111=\"\",\"\",VLOOKUP(Q111,referentes!$K$2:$R$209,2,FALSE))","v":""}]
[null,{"$f":"IF(C112=\"\",\"\",IF(COUNTIF($C$3:C112, C112)>1, \"\", C112))","v":""},{"$f":"IF(H112=\"\",\"\",CONCATENATE(DIGITADOR!$M$1,H112,E112))","v":""},"",{"$f":"IF(G112=\"\",\"\",VLOOKUP(G112,'Otras referencias'!$A$24:$E$48,2,FALSE))","v":""},null,null,null,null,null,null,null,null,null,null,{"$f":"IF(Q112=\"\",\"\",VLOOKUP(Q112,referentes!$K$2:$R$209,2,FALSE))","v":""}]
[null,{"$f":"IF(C113=\"\",\"\",IF(COUNTIF($C$3:C113, C113)>1, \"\", C113))","v":""},{"$f":"IF(H113=\"\",\"\",CONCATENATE(DIGITADOR!$M$1,H113,E113))","v":""},"",{"$f":"IF(G113=\"\",\"\",VLOOKUP(G113,'Otras referencias'!$A$24:$E$48,2,FALSE))","v":""},null,null,null,null,null,null,null,null,null,null,{"$f":"IF(Q113=\"\",\"\",VLOOKUP(Q113,referentes!$K$2:$R$209,2,FALSE))","v":""}]
[null,{"$f":"IF(C114=\"\",\"\",IF(COUNTIF($C$3:C114, C114)>1, \"\", C114))","v":""},{"$f":"IF(H114=\"\",\"\",CONCATENATE(DIGITADOR!$M$1,H114,E114))","v":""},"",{"$f":"IF(G114=\"\",\"\",VLOOKUP(G114,'Otras referencias'!$A$24:$E$48,2,FALSE))","v":""},null,null,null,null,null,null,null,null,null,null,{"$f":"IF(Q114=\"\",\"\",VLOOKUP(Q114,referentes!$K$2:$R$209,2,FALSE))","v":""}]
[null,{"$f":"IF(C115=\"\",\"\",IF(COUNTIF($C$3:C115, C115)>1, \"\", C115))","v":""},{"$f":"IF(H115=\"\",\"\",CONCATENATE(DIGITADOR!$M$1,H115,E115))","v":""},"",{"$f":"IF(G115=\"\",\"\",VLOOKUP(G115,'Otras referencias'!$A$24:$E$48,2,FALSE))","v":""},null,null,null,null,null,null,null,null,null,null,{"$f":"IF(Q115=\"\",\"\",VLOOKUP(Q115,referentes!$K$2:$R$209,2,FALSE))","v":""}]
[null,{"$f":"IF(C116=\"\",\"\",IF(COUNTIF($C$3:C116, C116)>1, \"\", C116))","v":""},{"$f":"IF(H116=\"\",\"\",CONCATENATE(DIGITADOR!$M$1,H116,E116))","v":""},"",{"$f":"IF(G116=\"\",\"\",VLOOKUP(G116,'Otras referencias'!$A$24:$E$48,2,FALSE))","v":""},null,null,null,null,null,null,null,null,null,null,{"$f":"IF(Q116=\"\",\"\",VLOOKUP(Q116,referentes!$K$2:$R$209,2,FALSE))","v":""}]
[null,{"$f":"IF(C117=\"\",\"\",IF(COUNTIF($C$3:C117, C117)>1, \"\", C117))","v":""},{"$f":"IF(H117=\"\",\"\",CONCATENATE(DIGITADOR!$M$1,H117,E117))","v":""},"",{"$f":"IF(G117=\"\",\"\",VLOOKUP(G117,'Otras referencias'!$A$24:$E$48,2,FALSE))","v":""},null,null,null,null,null,null,null,null,null,null,{"$f":"IF(Q117=\"\",\"\",VLOOKUP(Q117,referentes!$K$2:$R$209,2,FALSE))","v":""}]
[null,{"$f":"IF(C118=\"\",\"\",IF(COUNTIF($C$3:C118, C118)>1, \"\", C118))","v":""},{"$f":"IF(H118=\"\",\"\",CONCATENATE(DIGITADOR!$M$1,H118,E118))","v":""},"",{"$f":"IF(G118=\"\",\"\",VLOOKUP(G118,'Otras referencias'!$A$24:$E$48,2,FALSE))","v":""},null,null,null,null,null,null,null,null,null,null,{"$f":"IF(Q118=\"\",\"\",VLOOKUP(Q118,referentes!$K$2:$R$209,2,FALSE))","v":""}]
[null,{"$f":"IF(C119=\"\",\"\",IF(COUNTIF($C$3:C119, C119)>1, \"\", C119))","v":""},{"$f":"IF(H119=\"\",\"\",CONCATENATE(DIGITADOR!$M$1,H119,E119))","v":""},"",{"$f":"IF(G119=\"\",\"\",VLOOKUP(G119,'Otras referencias'!$A$24:$E$48,2,FALSE))","v":""},null,null,null,null,null,null,null,null,null,null,{"$f":"IF(Q119=\"\",\"\",VLOOKUP(Q119,referentes!$K$2:$R$209,2,FALSE))","v":""}]
[null,{"$f":"IF(C120=\"\",\"\",IF(COUNTIF($C$3:C120, C120)>1, \"\", C120))","v":""},{"$f":"IF(H120=\"\",\"\",CONCATENATE(DIGITADOR!$M$1,H120,E120))","v":""},"",{"$f":"IF(G120=\"\",\"\",VLOOKUP(G120,'Otras referencias'!$A$24:$E$48,2,FALSE))","v":""},null,null,null,null,null,null,null,null,null,null,{"$f":"IF(Q120=\"\",\"\",VLOOKUP(Q120,referentes!$K$2:$R$209,2,FALSE))","v":""}]
[null,{"$f":"IF(C121=\"\",\"\",IF(COUNTIF($C$3:C121, C121)>1, \"\", C121))","v":""},{"$f":"IF(H121=\"\",\"\",CONCATENATE(DIGITADOR!$M$1,H121,E121))","v":""},"",{"$f":"IF(G121=\"\",\"\",VLOOKUP(G121,'Otras referencias'!$A$24:$E$48,2,FALSE))","v":""},null,null,null,null,null,null,null,null,null,null,{"$f":"IF(Q121=\"\",\"\",VLOOKUP(Q121,referentes!$K$2:$R$209,2,FALSE))","v":""}]
[null,{"$f":"IF(C122=\"\",\"\",IF(COUNTIF($C$3:C122, C122)>1, \"\", C122))","v":""},{"$f":"IF(H122=\"\",\"\",CONCATENATE(DIGITADOR!$M$1,H122,E122))","v":""},"",{"$f":"IF(G122=\"\",\"\",VLOOKUP(G122,'Otras referencias'!$A$24:$E$48,2,FALSE))","v":""},null,null,null,null,null,null,null,null,null,null,{"$f":"IF(Q122=\"\",\"\",VLOOKUP(Q122,referentes!$K$2:$R$209,2,FALSE))","v":""}]
[null,{"$f":"IF(C123=\"\",\"\",IF(COUNTIF($C$3:C123, C123)>1, \"\", C123))","v":""},{"$f":"IF(H123=\"\",\"\",CONCATENATE(DIGITADOR!$M$1,H123,E123))","v":""},"",{"$f":"IF(G123=\"\",\"\",VLOOKUP(G123,'Otras referencias'!$A$24:$E$48,2,FALSE))","v":""},null,null,null,null,null,null,null,null,null,null,{"$f":"IF(Q123=\"\",\"\",VLOOKUP(Q123,referentes!$K$2:$R$209,2,FALSE))","v":""}]
[null,{"$f":"IF(C124=\"\",\"\",IF(COUNTIF($C$3:C124, C124)>1, \"\", C124))","v":""},{"$f":"IF(H124=\"\",\"\",CONCATENATE(DIGITADOR!$M$1,H124,E124))","v":""},"",{"$f":"IF(G124=\"\",\"\",VLOOKUP(G124,'Otras referencias'!$A$24:$E$48,2,FALSE))","v":""},null,null,null,null,null,null,null,null,null,null,{"$f":"IF(Q124=\"\",\"\",VLOOKUP(Q124,referentes!$K$2:$R$209,2,FALSE))","v":""}]
[null,{"$f":"IF(C125=\"\",\"\",IF(COUNTIF($C$3:C125, C125)>1, \"\", C125))","v":""},{"$f":"IF(H125=\"\",\"\",CONCATENATE(DIGITADOR!$M$1,H125,E125))","v":""},"",{"$f":"IF(G125=\"\",\"\",VLOOKUP(G125,'Otras referencias'!$A$24:$E$48,2,FALSE))","v":""},null,null,null,null,null,null,null,null,null,null,{"$f":"IF(Q125=\"\",\"\",VLOOKUP(Q125,referentes!$K$2:$R$209,2,FALSE))","v":""}]
[null,{"$f":"IF(C126=\"\",\"\",IF(COUNTIF($C$3:C126, C126)>1, \"\", C126))","v":""},{"$f":"IF(H126=\"\",\"\",CONCATENATE(DIGITADOR!$M$1,H126,E126))","v":""},"",{"$f":"IF(G126=\"\",\"\",VLOOKUP(G126,'Otras referencias'!$A$24:$E$48,2,FALSE))","v":""},null,null,null,null,null,null,null,null,null,null,{"$f":"IF(Q126=\"\",\"\",VLOOKUP(Q126,referentes!$K$2:$R$209,2,FALSE))","v":""}]
[null,{"$f":"IF(C127=\"\",\"\",IF(COUNTIF($C$3:C127, C127)>1, \"\", C127))","v":""},{"$f":"IF(H127=\"\",\"\",CONCATENATE(DIGITADOR!$M$1,H127,E127))","v":""},"",{"$f":"IF(G127=\"\",\"\",VLOOKUP(G127,'Otras referencias'!$A$24:$E$48,2,FALSE))","v":""},null,null,null,null,null,null,null,null,null,null,{"$f":"IF(Q127=\"\",\"\",VLOOKUP(Q127,referentes!$K$2:$R$209,2,FALSE))","v":""}]
[null,{"$f":"IF(C128=\"\",\"\",IF(COUNTIF($C$3:C128, C128)>1, \"\", C128))","v":""},{"$f":"IF(H128=\"\",\"\",CONCATENATE(DIGITADOR!$M$1,H128,E128))","v":""},"",{"$f":"IF(G128=\"\",\"\",VLOOKUP(G128,'Otras referencias'!$A$24:$E$48,2,FALSE))","v":""},null,null,null,null,null,null,null,null,null,null,{"$f":"IF(Q128=\"\",\"\",VLOOKUP(Q128,referentes!$K$2:$R$209,2,FALSE))","v":""}]
[null,{"$f":"IF(C129=\"\",\"\",IF(COUNTIF($C$3:C129, C129)>1, \"\", C129))","v":""},{"$f":"IF(H129=\"\",\"\",CONCATENATE(DIGITADOR!$M$1,H129,E129))","v":""},"",{"$f":"IF(G129=\"\",\"\",VLOOKUP(G129,'Otras referencias'!$A$24:$E$48,2,FALSE))","v":""},null,null,null,null,null,null,null,null,null,null,{"$f":"IF(Q129=\"\",\"\",VLOOKUP(Q129,referentes!$K$2:$R$209,2,FALSE))","v":""}]
[null,{"$f":"IF(C130=\"\",\"\",IF(COUNTIF($C$3:C130, C130)>1, \"\", C130))","v":""},{"$f":"IF(H130=\"\",\"\",CONCATENATE(DIGITADOR!$M$1,H130,E130))","v":""},"",{"$f":"IF(G130=\"\",\"\",VLOOKUP(G130,'Otras referencias'!$A$24:$E$48,2,FALSE))","v":""},null,null,null,null,null,null,null,null,null,null,{"$f":"IF(Q130=\"\",\"\",VLOOKUP(Q130,referentes!$K$2:$R$209,2,FALSE))","v":""}]
[null,{"$f":"IF(C131=\"\",\"\",IF(COUNTIF($C$3:C131, C131)>1, \"\", C131))","v":""},{"$f":"IF(H131=\"\",\"\",CONCATENATE(DIGITADOR!$M$1,H131,E131))","v":""},"",{"$f":"IF(G131=\"\",\"\",VLOOKUP(G131,'Otras referencias'!$A$24:$E$48,2,FALSE))","v":""},null,null,null,null,null,null,null,null,null,null,{"$f":"IF(Q131=\"\",\"\",VLOOKUP(Q131,referentes!$K$2:$R$209,2,FALSE))","v":""}]
[null,{"$f":"IF(C132=\"\",\"\",IF(COUNTIF($C$3:C132, C132)>1, \"\", C132))","v":""},{"$f":"IF(H132=\"\",\"\",CONCATENATE(DIGITADOR!$M$1,H132,E132))","v":""},{"$f":"IF(C132=\"\",\"\",CONCATENATE(C132,ROW()-2))","v":""},{"$f":"IF(G132=\"\",\"\",VLOOKUP(G132,'Otras referencias'!$A$24:$E$48,2,FALSE))","v":""},null,null,null,null,null,null,null,null,null,null,{"$f":"IF(Q132=\"\",\"\",VLOOKUP(Q132,referentes!$K$2:$R$209,2,FALSE))","v":""}]
[null,{"$f":"IF(C133=\"\",\"\",IF(COUNTIF($C$3:C133, C133)>1, \"\", C133))","v":""},{"$f":"IF(H133=\"\",\"\",CONCATENATE(DIGITADOR!$M$1,H133,E133))","v":""},"",{"$f":"IF(G133=\"\",\"\",VLOOKUP(G133,'Otras referencias'!$A$24:$E$48,2,FALSE))","v":""},null,null,null,null,null,null,null,null,null,null,{"$f":"IF(Q133=\"\",\"\",VLOOKUP(Q133,referentes!$K$2:$R$209,2,FALSE))","v":""}]
[null,{"$f":"IF(C134=\"\",\"\",IF(COUNTIF($C$3:C134, C134)>1, \"\", C134))","v":""},{"$f":"IF(H134=\"\",\"\",CONCATENATE(DIGITADOR!$M$1,H134,E134))","v":""},"",{"$f":"IF(G134=\"\",\"\",VLOOKUP(G134,'Otras referencias'!$A$24:$E$48,2,FALSE))","v":""},null,null,null,null,null,null,null,null,null,null,{"$f":"IF(Q134=\"\",\"\",VLOOKUP(Q134,referentes!$K$2:$R$209,2,FALSE))","v":""}]
[null,{"$f":"IF(C135=\"\",\"\",IF(COUNTIF($C$3:C135, C135)>1, \"\", C135))","v":""},{"$f":"IF(H135=\"\",\"\",CONCATENATE(DIGITADOR!$M$1,H135,E135))","v":""},"",{"$f":"IF(G135=\"\",\"\",VLOOKUP(G135,'Otras referencias'!$A$24:$E$48,2,FALSE))","v":""},null,null,null,null,null,null,null,null,null,null,{"$f":"IF(Q135=\"\",\"\",VLOOKUP(Q135,referentes!$K$2:$R$209,2,FALSE))","v":""}]
[null,{"$f":"IF(C136=\"\",\"\",IF(COUNTIF($C$3:C136, C136)>1, \"\", C136))","v":""},{"$f":"IF(H136=\"\",\"\",CONCATENATE(DIGITADOR!$M$1,H136,E136))","v":""},"",{"$f":"IF(G136=\"\",\"\",VLOOKUP(G136,'Otras referencias'!$A$24:$E$48,2,FALSE))","v":""},null,null,null,null,null,null,null,null,null,null,{"$f":"IF(Q136=\"\",\"\",VLOOKUP(Q136,referentes!$K$2:$R$209,2,FALSE))","v":""}]
[null,{"$f":"IF(C137=\"\",\"\",IF(COUNTIF($C$3:C137, C137)>1, \"\", C137))","v":""},{"$f":"IF(H137=\"\",\"\",CONCATENATE(DIGITADOR!$M$1,H137,E137))","v":""},"",{"$f":"IF(G137=\"\",\"\",VLOOKUP(G137,'Otras referencias'!$A$24:$E$48,2,FALSE))","v":""},null,null,null,null,null,null,null,null,null,null,{"$f":"IF(Q137=\"\",\"\",VLOOKUP(Q137,referentes!$K$2:$R$209,2,FALSE))","v":""}]
[null,{"$f":"IF(C138=\"\",\"\",IF(COUNTIF($C$3:C138, C138)>1, \"\", C138))","v":""},{"$f":"IF(H138=\"\",\"\",CONCATENATE(DIGITADOR!$M$1,H138,E138))","v":""},"",{"$f":"IF(G138=\"\",\"\",VLOOKUP(G138,'Otras referencias'!$A$24:$E$48,2,FALSE))","v":""},null,null,null,null,null,null,null,null,null,null,{"$f":"IF(Q138=\"\",\"\",VLOOKUP(Q138,referentes!$K$2:$R$209,2,FALSE))","v":""}]
[null,{"$f":"IF(C139=\"\",\"\",IF(COUNTIF($C$3:C139, C139)>1, \"\", C139))","v":""},{"$f":"IF(H139=\"\",\"\",CONCATENATE(DIGITADOR!$M$1,H139,E139))","v":""},"",{"$f":"IF(G139=\"\",\"\",VLOOKUP(G139,'Otras referencias'!$A$24:$E$48,2,FALSE))","v":""},null,null,null,null,null,null,null,null,null,null,{"$f":"IF(Q139=\"\",\"\",VLOOKUP(Q139,referentes!$K$2:$R$209,2,FALSE))","v":""}]
[null,{"$f":"IF(C140=\"\",\"\",IF(COUNTIF($C$3:C140, C140)>1, \"\", C140))","v":""},{"$f":"IF(H140=\"\",\"\",CONCATENATE(DIGITADOR!$M$1,H140,E140))","v":""},"",{"$f":"IF(G140=\"\",\"\",VLOOKUP(G140,'Otras referencias'!$A$24:$E$48,2,FALSE))","v":""},null,null,null,null,null,null,null,null,null,null,{"$f":"IF(Q140=\"\",\"\",VLOOKUP(Q140,referentes!$K$2:$R$209,2,FALSE))","v":""}]
[null,{"$f":"IF(C141=\"\",\"\",IF(COUNTIF($C$3:C141, C141)>1, \"\", C141))","v":""},{"$f":"IF(H141=\"\",\"\",CONCATENATE(DIGITADOR!$M$1,H141,E141))","v":""},"",{"$f":"IF(G141=\"\",\"\",VLOOKUP(G141,'Otras referencias'!$A$24:$E$48,2,FALSE))","v":""},null,null,null,null,null,null,null,null,null,null,{"$f":"IF(Q141=\"\",\"\",VLOOKUP(Q141,referentes!$K$2:$R$209,2,FALSE))","v":""}]
[null,{"$f":"IF(C142=\"\",\"\",IF(COUNTIF($C$3:C142, C142)>1, \"\", C142))","v":""},{"$f":"IF(H142=\"\",\"\",CONCATENATE(DIGITADOR!$M$1,H142,E142))","v":""},"",{"$f":"IF(G142=\"\",\"\",VLOOKUP(G142,'Otras referencias'!$A$24:$E$48,2,FALSE))","v":""},null,null,null,null,null,null,null,null,null,null,{"$f":"IF(Q142=\"\",\"\",VLOOKUP(Q142,referentes!$K$2:$R$209,2,FALSE))","v":""}]
[null,{"$f":"IF(C143=\"\",\"\",IF(COUNTIF($C$3:C143, C143)>1, \"\", C143))","v":""},{"$f":"IF(H143=\"\",\"\",CONCATENATE(DIGITADOR!$M$1,H143,E143))","v":""},"",{"$f":"IF(G143=\"\",\"\",VLOOKUP(G143,'Otras referencias'!$A$24:$E$48,2,FALSE))","v":""},null,null,null,null,null,null,null,null,null,null,{"$f":"IF(Q143=\"\",\"\",VLOOKUP(Q143,referentes!$K$2:$R$209,2,FALSE))","v":""}]
[null,{"$f":"IF(C144=\"\",\"\",IF(COUNTIF($C$3:C144, C144)>1, \"\", C144))","v":""},{"$f":"IF(H144=\"\",\"\",CONCATENATE(DIGITADOR!$M$1,H144,E144))","v":""},"",{"$f":"IF(G144=\"\",\"\",VLOOKUP(G144,'Otras referencias'!$A$24:$E$48,2,FALSE))","v":""},null,null,null,null,null,null,null,null,null,null,{"$f":"IF(Q144=\"\",\"\",VLOOKUP(Q144,referentes!$K$2:$R$209,2,FALSE))","v":""}]
[null,{"$f":"IF(C145=\"\",\"\",IF(COUNTIF($C$3:C145, C145)>1, \"\", C145))","v":""},{"$f":"IF(H145=\"\",\"\",CONCATENATE(DIGITADOR!$M$1,H145,E145))","v":""},"",{"$f":"IF(G145=\"\",\"\",VLOOKUP(G145,'Otras referencias'!$A$24:$E$48,2,FALSE))","v":""},null,null,null,null,null,null,null,null,null,null,{"$f":"IF(Q145=\"\",\"\",VLOOKUP(Q145,referentes!$K$2:$R$209,2,FALSE))","v":""}]
[null,{"$f":"IF(C146=\"\",\"\",IF(COUNTIF($C$3:C146, C146)>1, \"\", C146))","v":""},{"$f":"IF(H146=\"\",\"\",CONCATENATE(DIGITADOR!$M$1,H146,E146))","v":""},"",{"$f":"IF(G146=\"\",\"\",VLOOKUP(G146,'Otras referencias'!$A$24:$E$48,2,FALSE))","v":""},null,null,null,null,null,null,null,null,null,null,{"$f":"IF(Q146=\"\",\"\",VLOOKUP(Q146,referentes!$K$2:$R$209,2,FALSE))","v":""}]
[null,{"$f":"IF(C147=\"\",\"\",IF(COUNTIF($C$3:C147, C147)>1, \"\", C147))","v":""},{"$f":"IF(H147=\"\",\"\",CONCATENATE(DIGITADOR!$M$1,H147,E147))","v":""},"",{"$f":"IF(G147=\"\",\"\",VLOOKUP(G147,'Otras referencias'!$A$24:$E$48,2,FALSE))","v":""},null,null,null,null,null,null,null,null,null,null,{"$f":"IF(Q147=\"\",\"\",VLOOKUP(Q147,referentes!$K$2:$R$209,2,FALSE))","v":""}]
[null,{"$f":"IF(C148=\"\",\"\",IF(COUNTIF($C$3:C148, C148)>1, \"\", C148))","v":""},{"$f":"IF(H148=\"\",\"\",CONCATENATE(DIGITADOR!$M$1,H148,E148))","v":""},"",{"$f":"IF(G148=\"\",\"\",VLOOKUP(G148,'Otras referencias'!$A$24:$E$48,2,FALSE))","v":""},null,null,null,null,null,null,null,null,null,null,{"$f":"IF(Q148=\"\",\"\",VLOOKUP(Q148,referentes!$K$2:$R$209,2,FALSE))","v":""}]
[null,{"$f":"IF(C149=\"\",\"\",IF(COUNTIF($C$3:C149, C149)>1, \"\", C149))","v":""},{"$f":"IF(H149=\"\",\"\",CONCATENATE(DIGITADOR!$M$1,H149,E149))","v":""},"",{"$f":"IF(G149=\"\",\"\",VLOOKUP(G149,'Otras referencias'!$A$24:$E$48,2,FALSE))","v":""},null,null,null,null,null,null,null,null,null,null,{"$f":"IF(Q149=\"\",\"\",VLOOKUP(Q149,referentes!$K$2:$R$209,2,FALSE))","v":""}]
[null,{"$f":"IF(C150=\"\",\"\",IF(COUNTIF($C$3:C150, C150)>1, \"\", C150))","v":""},{"$f":"IF(H150=\"\",\"\",CONCATENATE(DIGITADOR!$M$1,H150,E150))","v":""},"",{"$f":"IF(G150=\"\",\"\",VLOOKUP(G150,'Otras referencias'!$A$24:$E$48,2,FALSE))","v":""},null,null,null,null,null,null,null,null,null,null,{"$f":"IF(Q150=\"\",\"\",VLOOKUP(Q150,referentes!$K$2:$R$209,2,FALSE))","v":""}]
[null,{"$f":"IF(C151=\"\",\"\",IF(COUNTIF($C$3:C151, C151)>1, \"\", C151))","v":""},{"$f":"IF(H151=\"\",\"\",CONCATENATE(DIGITADOR!$M$1,H151,E151))","v":""},"",{"$f":"IF(G151=\"\",\"\",VLOOKUP(G151,'Otras referencias'!$A$24:$E$48,2,FALSE))","v":""},null,null,null,null,null,null,null,null,null,null,{"$f":"IF(Q151=\"\",\"\",VLOOKUP(Q151,referentes!$K$2:$R$209,2,FALSE))","v":""}]
[null,{"$f":"IF(C152=\"\",\"\",IF(COUNTIF($C$3:C152, C152)>1, \"\", C152))","v":""},{"$f":"IF(H152=\"\",\"\",CONCATENATE(DIGITADOR!$M$1,H152,E152))","v":""},"",{"$f":"IF(G152=\"\",\"\",VLOOKUP(G152,'Otras referencias'!$A$24:$E$48,2,FALSE))","v":""},null,null,null,null,null,null,null,null,null,null,{"$f":"IF(Q152=\"\",\"\",VLOOKUP(Q152,referentes!$K$2:$R$209,2,FALSE))","v":""}]
[null,{"$f":"IF(C153=\"\",\"\",IF(COUNTIF($C$3:C153, C153)>1, \"\", C153))","v":""},{"$f":"IF(H153=\"\",\"\",CONCATENATE(DIGITADOR!$M$1,H153,E153))","v":""},"",{"$f":"IF(G153=\"\",\"\",VLOOKUP(G153,'Otras referencias'!$A$24:$E$48,2,FALSE))","v":""},null,null,null,null,null,null,null,null,null,null,{"$f":"IF(Q153=\"\",\"\",VLOOKUP(Q153,referentes!$K$2:$R$209,2,FALSE))","v":""}]
[null,{"$f":"IF(C154=\"\",\"\",IF(COUNTIF($C$3:C154, C154)>1, \"\", C154))","v":""},{"$f":"IF(H154=\"\",\"\",CONCATENATE(DIGITADOR!$M$1,H154,E154))","v":""},"",{"$f":"IF(G154=\"\",\"\",VLOOKUP(G154,'Otras referencias'!$A$24:$E$48,2,FALSE))","v":""},null,null,null,null,null,null,null,null,null,null,{"$f":"IF(Q154=\"\",\"\",VLOOKUP(Q154,referentes!$K$2:$R$209,2,FALSE))","v":""}]
[null,{"$f":"IF(C155=\"\",\"\",IF(COUNTIF($C$3:C155, C155)>1, \"\", C155))","v":""},{"$f":"IF(H155=\"\",\"\",CONCATENATE(DIGITADOR!$M$1,H155,E155))","v":""},"",{"$f":"IF(G155=\"\",\"\",VLOOKUP(G155,'Otras referencias'!$A$24:$E$48,2,FALSE))","v":""},null,null,null,null,null,null,null,null,null,null,{"$f":"IF(Q155=\"\",\"\",VLOOKUP(Q155,referentes!$K$2:$R$209,2,FALSE))","v":""}]
[null,{"$f":"IF(C156=\"\",\"\",IF(COUNTIF($C$3:C156, C156)>1, \"\", C156))","v":""},{"$f":"IF(H156=\"\",\"\",CONCATENATE(DIGITADOR!$M$1,H156,E156))","v":""},"",{"$f":"IF(G156=\"\",\"\",VLOOKUP(G156,'Otras referencias'!$A$24:$E$48,2,FALSE))","v":""},null,null,null,null,null,null,null,null,null,null,{"$f":"IF(Q156=\"\",\"\",VLOOKUP(Q156,referentes!$K$2:$R$209,2,FALSE))","v":""}]
[null,{"$f":"IF(C157=\"\",\"\",IF(COUNTIF($C$3:C157, C157)>1, \"\", C157))","v":""},{"$f":"IF(H157=\"\",\"\",CONCATENATE(DIGITADOR!$M$1,H157,E157))","v":""},"",{"$f":"IF(G157=\"\",\"\",VLOOKUP(G157,'Otras referencias'!$A$24:$E$48,2,FALSE))","v":""},null,null,null,null,null,null,null,null,null,null,{"$f":"IF(Q157=\"\",\"\",VLOOKUP(Q157,referentes!$K$2:$R$209,2,FALSE))","v":""}]
[null,{"$f":"IF(C158=\"\",\"\",IF(COUNTIF($C$3:C158, C158)>1, \"\", C158))","v":""},{"$f":"IF(H158=\"\",\"\",CONCATENATE(DIGITADOR!$M$1,H158,E158))","v":""},"",{"$f":"IF(G158=\"\",\"\",VLOOKUP(G158,'Otras referencias'!$A$24:$E$48,2,FALSE))","v":""},null,null,null,null,null,null,null,null,null,null,{"$f":"IF(Q158=\"\",\"\",VLOOKUP(Q158,referentes!$K$2:$R$209,2,FALSE))","v":""}]
[null,{"$f":"IF(C159=\"\",\"\",IF(COUNTIF($C$3:C159, C159)>1, \"\", C159))","v":""},{"$f":"IF(H159=\"\",\"\",CONCATENATE(DIGITADOR!$M$1,H159,E159))","v":""},"",{"$f":"IF(G159=\"\",\"\",VLOOKUP(G159,'Otras referencias'!$A$24:$E$48,2,FALSE))","v":""},null,null,null,null,null,null,null,null,null,null,{"$f":"IF(Q159=\"\",\"\",VLOOKUP(Q159,referentes!$K$2:$R$209,2,FALSE))","v":""}]
[null,{"$f":"IF(C160=\"\",\"\",IF(COUNTIF($C$3:C160, C160)>1, \"\", C160))","v":""},{"$f":"IF(H160=\"\",\"\",CONCATENATE(DIGITADOR!$M$1,H160,E160))","v":""},"",{"$f":"IF(G160=\"\",\"\",VLOOKUP(G160,'Otras referencias'!$A$24:$E$48,2,FALSE))","v":""},null,null,null,null,null,null,null,null,null,null,{"$f":"IF(Q160=\"\",\"\",VLOOKUP(Q160,referentes!$K$2:$R$209,2,FALSE))","v":""}]
[null,{"$f":"IF(C161=\"\",\"\",IF(COUNTIF($C$3:C161, C161)>1, \"\", C161))","v":""},{"$f":"IF(H161=\"\",\"\",CONCATENATE(DIGITADOR!$M$1,H161,E161))","v":""},"",{"$f":"IF(G161=\"\",\"\",VLOOKUP(G161,'Otras referencias'!$A$24:$E$48,2,FALSE))","v":""},null,null,null,null,null,null,null,null,null,null,{"$f":"IF(Q161=\"\",\"\",VLOOKUP(Q161,referentes!$K$2:$R$209,2,FALSE))","v":""}]
[null,{"$f":"IF(C162=\"\",\"\",IF(COUNTIF($C$3:C162, C162)>1, \"\", C162))","v":""},{"$f":"IF(H162=\"\",\"\",CONCATENATE(DIGITADOR!$M$1,H162,E162))","v":""},"",{"$f":"IF(G162=\"\",\"\",VLOOKUP(G162,'Otras referencias'!$A$24:$E$48,2,FALSE))","v":""},null,null,null,null,null,null,null,null,null,null,{"$f":"IF(Q162=\"\",\"\",VLOOKUP(Q162,referentes!$K$2:$R$209,2,FALSE))","v":""}]
[null,{"$f":"IF(C163=\"\",\"\",IF(COUNTIF($C$3:C163, C163)>1, \"\", C163))","v":""},{"$f":"IF(H163=\"\",\"\",CONCATENATE(DIGITADOR!$M$1,H163,E163))","v":""},"",{"$f":"IF(G163=\"\",\"\",VLOOKUP(G163,'Otras referencias'!$A$24:$E$48,2,FALSE))","v":""},null,null,null,null,null,null,null,null,null,null,{"$f":"IF(Q163=\"\",\"\",VLOOKUP(Q163,referentes!$K$2:$R$209,2,FALSE))","v":""}]
[null,{"$f":"IF(C164=\"\",\"\",IF(COUNTIF($C$3:C164, C164)>1, \"\", C164))","v":""},{"$f":"IF(H164=\"\",\"\",CONCATENATE(DIGITADOR!$M$1,H164,E164))","v":""},"",{"$f":"IF(G164=\"\",\"\",VLOOKUP(G164,'Otras referencias'!$A$24:$E$48,2,FALSE))","v":""},null,null,null,null,null,null,null,null,null,null,{"$f":"IF(Q164=\"\",\"\",VLOOKUP(Q164,referentes!$K$2:$R$209,2,FALSE))","v":""}]
[null,{"$f":"IF(C165=\"\",\"\",IF(COUNTIF($C$3:C165, C165)>1, \"\", C165))","v":""},{"$f":"IF(H165=\"\",\"\",CONCATENATE(DIGITADOR!$M$1,H165,E165))","v":""},"",{"$f":"IF(G165=\"\",\"\",VLOOKUP(G165,'Otras referencias'!$A$24:$E$48,2,FALSE))","v":""},null,null,null,null,null,null,null,null,null,null,{"$f":"IF(Q165=\"\",\"\",VLOOKUP(Q165,referentes!$K$2:$R$209,2,FALSE))","v":""}]
[null,{"$f":"IF(C166=\"\",\"\",IF(COUNTIF($C$3:C166, C166)>1, \"\", C166))","v":""},{"$f":"IF(H166=\"\",\"\",CONCATENATE(DIGITADOR!$M$1,H166,E166))","v":""},"",{"$f":"IF(G166=\"\",\"\",VLOOKUP(G166,'Otras referencias'!$A$24:$E$48,2,FALSE))","v":""},null,null,null,null,null,null,null,null,null,null,{"$f":"IF(Q166=\"\",\"\",VLOOKUP(Q166,referentes!$K$2:$R$209,2,FALSE))","v":""}]
[null,{"$f":"IF(C167=\"\",\"\",IF(COUNTIF($C$3:C167, C167)>1, \"\", C167))","v":""},{"$f":"IF(H167=\"\",\"\",CONCATENATE(DIGITADOR!$M$1,H167,E167))","v":""},"",{"$f":"IF(G167=\"\",\"\",VLOOKUP(G167,'Otras referencias'!$A$24:$E$48,2,FALSE))","v":""},null,null,null,null,null,null,null,null,null,null,{"$f":"IF(Q167=\"\",\"\",VLOOKUP(Q167,referentes!$K$2:$R$209,2,FALSE))","v":""}]
[null,{"$f":"IF(C168=\"\",\"\",IF(COUNTIF($C$3:C168, C168)>1, \"\", C168))","v":""},{"$f":"IF(H168=\"\",\"\",CONCATENATE(DIGITADOR!$M$1,H168,E168))","v":""},"",{"$f":"IF(G168=\"\",\"\",VLOOKUP(G168,'Otras referencias'!$A$24:$E$48,2,FALSE))","v":""},null,null,null,null,null,null,null,null,null,null,{"$f":"IF(Q168=\"\",\"\",VLOOKUP(Q168,referentes!$K$2:$R$209,2,FALSE))","v":""}]
[null,{"$f":"IF(C169=\"\",\"\",IF(COUNTIF($C$3:C169, C169)>1, \"\", C169))","v":""},{"$f":"IF(H169=\"\",\"\",CONCATENATE(DIGITADOR!$M$1,H169,E169))","v":""},"",{"$f":"IF(G169=\"\",\"\",VLOOKUP(G169,'Otras referencias'!$A$24:$E$48,2,FALSE))","v":""},null,null,null,null,null,null,null,null,null,null,{"$f":"IF(Q169=\"\",\"\",VLOOKUP(Q169,referentes!$K$2:$R$209,2,FALSE))","v":""}]
[null,{"$f":"IF(C170=\"\",\"\",IF(COUNTIF($C$3:C170, C170)>1, \"\", C170))","v":""},{"$f":"IF(H170=\"\",\"\",CONCATENATE(DIGITADOR!$M$1,H170,E170))","v":""},"",{"$f":"IF(G170=\"\",\"\",VLOOKUP(G170,'Otras referencias'!$A$24:$E$48,2,FALSE))","v":""},null,null,null,null,null,null,null,null,null,null,{"$f":"IF(Q170=\"\",\"\",VLOOKUP(Q170,referentes!$K$2:$R$209,2,FALSE))","v":""}]
[null,{"$f":"IF(C171=\"\",\"\",IF(COUNTIF($C$3:C171, C171)>1, \"\", C171))","v":""},{"$f":"IF(H171=\"\",\"\",CONCATENATE(DIGITADOR!$M$1,H171,E171))","v":""},"",{"$f":"IF(G171=\"\",\"\",VLOOKUP(G171,'Otras referencias'!$A$24:$E$48,2,FALSE))","v":""},null,null,null,null,null,null,null,null,null,null,{"$f":"IF(Q171=\"\",\"\",VLOOKUP(Q171,referentes!$K$2:$R$209,2,FALSE))","v":""}]
[null,{"$f":"IF(C172=\"\",\"\",IF(COUNTIF($C$3:C172, C172)>1, \"\", C172))","v":""},{"$f":"IF(H172=\"\",\"\",CONCATENATE(DIGITADOR!$M$1,H172,E172))","v":""},"",{"$f":"IF(G172=\"\",\"\",VLOOKUP(G172,'Otras referencias'!$A$24:$E$48,2,FALSE))","v":""},null,null,null,null,null,null,null,null,null,null,{"$f":"IF(Q172=\"\",\"\",VLOOKUP(Q172,referentes!$K$2:$R$209,2,FALSE))","v":""}]
[null,{"$f":"IF(C173=\"\",\"\",IF(COUNTIF($C$3:C173, C173)>1, \"\", C173))","v":""},{"$f":"IF(H173=\"\",\"\",CONCATENATE(DIGITADOR!$M$1,H173,E173))","v":""},"",{"$f":"IF(G173=\"\",\"\",VLOOKUP(G173,'Otras referencias'!$A$24:$E$48,2,FALSE))","v":""},null,null,null,null,null,null,null,null,null,null,{"$f":"IF(Q173=\"\",\"\",VLOOKUP(Q173,referentes!$K$2:$R$209,2,FALSE))","v":""}]
[null,{"$f":"IF(C174=\"\",\"\",IF(COUNTIF($C$3:C174, C174)>1, \"\", C174))","v":""},{"$f":"IF(H174=\"\",\"\",CONCATENATE(DIGITADOR!$M$1,H174,E174))","v":""},"",{"$f":"IF(G174=\"\",\"\",VLOOKUP(G174,'Otras referencias'!$A$24:$E$48,2,FALSE))","v":""},null,null,null,null,null,null,null,null,null,null,{"$f":"IF(Q174=\"\",\"\",VLOOKUP(Q174,referentes!$K$2:$R$209,2,FALSE))","v":""}]
[null,{"$f":"IF(C175=\"\",\"\",IF(COUNTIF($C$3:C175, C175)>1, \"\", C175))","v":""},{"$f":"IF(H175=\"\",\"\",CONCATENATE(DIGITADOR!$M$1,H175,E175))","v":""},"",{"$f":"IF(G175=\"\",\"\",VLOOKUP(G175,'Otras referencias'!$A$24:$E$48,2,FALSE))","v":""},null,null,null,null,null,null,null,null,null,null,{"$f":"IF(Q175=\"\",\"\",VLOOKUP(Q175,referentes!$K$2:$R$209,2,FALSE))","v":""}]
[null,{"$f":"IF(C176=\"\",\"\",IF(COUNTIF($C$3:C176, C176)>1, \"\", C176))","v":""},{"$f":"IF(H176=\"\",\"\",CONCATENATE(DIGITADOR!$M$1,H176,E176))","v":""},"",{"$f":"IF(G176=\"\",\"\",VLOOKUP(G176,'Otras referencias'!$A$24:$E$48,2,FALSE))","v":""},null,null,null,null,null,null,null,null,null,null,{"$f":"IF(Q176=\"\",\"\",VLOOKUP(Q176,referentes!$K$2:$R$209,2,FALSE))","v":""}]
[null,{"$f":"IF(C177=\"\",\"\",IF(COUNTIF($C$3:C177, C177)>1, \"\", C177))","v":""},{"$f":"IF(H177=\"\",\"\",CONCATENATE(DIGITADOR!$M$1,H177,E177))","v":""},"",{"$f":"IF(G177=\"\",\"\",VLOOKUP(G177,'Otras referencias'!$A$24:$E$48,2,FALSE))","v":""},null,null,null,null,null,null,null,null,null,null,{"$f":"IF(Q177=\"\",\"\",VLOOKUP(Q177,referentes!$K$2:$R$209,2,FALSE))","v":""}]
[null,{"$f":"IF(C178=\"\",\"\",IF(COUNTIF($C$3:C178, C178)>1, \"\", C178))","v":""},{"$f":"IF(H178=\"\",\"\",CONCATENATE(DIGITADOR!$M$1,H178,E178))","v":""},"",{"$f":"IF(G178=\"\",\"\",VLOOKUP(G178,'Otras referencias'!$A$24:$E$48,2,FALSE))","v":""},null,null,null,null,null,null,null,null,null,null,{"$f":"IF(Q178=\"\",\"\",VLOOKUP(Q178,referentes!$K$2:$R$209,2,FALSE))","v":""}]
[null,{"$f":"IF(C179=\"\",\"\",IF(COUNTIF($C$3:C179, C179)>1, \"\", C179))","v":""},{"$f":"IF(H179=\"\",\"\",CONCATENATE(DIGITADOR!$M$1,H179,E179))","v":""},"",{"$f":"IF(G179=\"\",\"\",VLOOKUP(G179,'Otras referencias'!$A$24:$E$48,2,FALSE))","v":""},null,null,null,null,null,null,null,null,null,null,{"$f":"IF(Q179=\"\",\"\",VLOOKUP(Q179,referentes!$K$2:$R$209,2,FALSE))","v":""}]
[null,{"$f":"IF(C180=\"\",\"\",IF(COUNTIF($C$3:C180, C180)>1, \"\", C180))","v":""},{"$f":"IF(H180=\"\",\"\",CONCATENATE(DIGITADOR!$M$1,H180,E180))","v":""},"",{"$f":"IF(G180=\"\",\"\",VLOOKUP(G180,'Otras referencias'!$A$24:$E$48,2,FALSE))","v":""},null,null,null,null,null,null,null,null,null,null,{"$f":"IF(Q180=\"\",\"\",VLOOKUP(Q180,referentes!$K$2:$R$209,2,FALSE))","v":""}]
[null,{"$f":"IF(C181=\"\",\"\",IF(COUNTIF($C$3:C181, C181)>1, \"\", C181))","v":""},{"$f":"IF(H181=\"\",\"\",CONCATENATE(DIGITADOR!$M$1,H181,E181))","v":""},"",{"$f":"IF(G181=\"\",\"\",VLOOKUP(G181,'Otras referencias'!$A$24:$E$48,2,FALSE))","v":""},null,null,null,null,null,null,null,null,null,null,{"$f":"IF(Q181=\"\",\"\",VLOOKUP(Q181,referentes!$K$2:$R$209,2,FALSE))","v":""}]
[null,{"$f":"IF(C182=\"\",\"\",IF(COUNTIF($C$3:C182, C182)>1, \"\", C182))","v":""},{"$f":"IF(H182=\"\",\"\",CONCATENATE(DIGITADOR!$M$1,H182,E182))","v":""},"",{"$f":"IF(G182=\"\",\"\",VLOOKUP(G182,'Otras referencias'!$A$24:$E$48,2,FALSE))","v":""},null,null,null,null,null,null,null,null,null,null,{"$f":"IF(Q182=\"\",\"\",VLOOKUP(Q182,referentes!$K$2:$R$209,2,FALSE))","v":""}]
[null,{"$f":"IF(C183=\"\",\"\",IF(COUNTIF($C$3:C183, C183)>1, \"\", C183))","v":""},{"$f":"IF(H183=\"\",\"\",CONCATENATE(DIGITADOR!$M$1,H183,E183))","v":""},"",{"$f":"IF(G183=\"\",\"\",VLOOKUP(G183,'Otras referencias'!$A$24:$E$48,2,FALSE))","v":""},null,null,null,null,null,null,null,null,null,null,{"$f":"IF(Q183=\"\",\"\",VLOOKUP(Q183,referentes!$K$2:$R$209,2,FALSE))","v":""}]
[null,{"$f":"IF(C184=\"\",\"\",IF(COUNTIF($C$3:C184, C184)>1, \"\", C184))","v":""},{"$f":"IF(H184=\"\",\"\",CONCATENATE(DIGITADOR!$M$1,H184,E184))","v":""},"",{"$f":"IF(G184=\"\",\"\",VLOOKUP(G184,'Otras referencias'!$A$24:$E$48,2,FALSE))","v":""},null,null,null,null,null,null,null,null,null,null,{"$f":"IF(Q184=\"\",\"\",VLOOKUP(Q184,referentes!$K$2:$R$209,2,FALSE))","v":""}]
[null,{"$f":"IF(C185=\"\",\"\",IF(COUNTIF($C$3:C185, C185)>1, \"\", C185))","v":""},{"$f":"IF(H185=\"\",\"\",CONCATENATE(DIGITADOR!$M$1,H185,E185))","v":""},"",{"$f":"IF(G185=\"\",\"\",VLOOKUP(G185,'Otras referencias'!$A$24:$E$48,2,FALSE))","v":""},null,null,null,null,null,null,null,null,null,null,{"$f":"IF(Q185=\"\",\"\",VLOOKUP(Q185,referentes!$K$2:$R$209,2,FALSE))","v":""}]
[null,{"$f":"IF(C186=\"\",\"\",IF(COUNTIF($C$3:C186, C186)>1, \"\", C186))","v":""},{"$f":"IF(H186=\"\",\"\",CONCATENATE(DIGITADOR!$M$1,H186,E186))","v":""},"",{"$f":"IF(G186=\"\",\"\",VLOOKUP(G186,'Otras referencias'!$A$24:$E$48,2,FALSE))","v":""},null,null,null,null,null,null,null,null,null,null,{"$f":"IF(Q186=\"\",\"\",VLOOKUP(Q186,referentes!$K$2:$R$209,2,FALSE))","v":""}]
[null,{"$f":"IF(C187=\"\",\"\",IF(COUNTIF($C$3:C187, C187)>1, \"\", C187))","v":""},{"$f":"IF(H187=\"\",\"\",CONCATENATE(DIGITADOR!$M$1,H187,E187))","v":""},"",{"$f":"IF(G187=\"\",\"\",VLOOKUP(G187,'Otras referencias'!$A$24:$E$48,2,FALSE))","v":""},null,null,null,null,null,null,null,null,null,null,{"$f":"IF(Q187=\"\",\"\",VLOOKUP(Q187,referentes!$K$2:$R$209,2,FALSE))","v":""}]
[null,{"$f":"IF(C188=\"\",\"\",IF(COUNTIF($C$3:C188, C188)>1, \"\", C188))","v":""},{"$f":"IF(H188=\"\",\"\",CONCATENATE(DIGITADOR!$M$1,H188,E188))","v":""},"",{"$f":"IF(G188=\"\",\"\",VLOOKUP(G188,'Otras referencias'!$A$24:$E$48,2,FALSE))","v":""},null,null,null,null,null,null,null,null,null,null,{"$f":"IF(Q188=\"\",\"\",VLOOKUP(Q188,referentes!$K$2:$R$209,2,FALSE))","v":""}]
[null,{"$f":"IF(C189=\"\",\"\",IF(COUNTIF($C$3:C189, C189)>1, \"\", C189))","v":""},{"$f":"IF(H189=\"\",\"\",CONCATENATE(DIGITADOR!$M$1,H189,E189))","v":""},"",{"$f":"IF(G189=\"\",\"\",VLOOKUP(G189,'Otras referencias'!$A$24:$E$48,2,FALSE))","v":""},null,null,null,null,null,null,null,null,null,null,{"$f":"IF(Q189=\"\",\"\",VLOOKUP(Q189,referentes!$K$2:$R$209,2,FALSE))","v":""}]
[null,{"$f":"IF(C190=\"\",\"\",IF(COUNTIF($C$3:C190, C190)>1, \"\", C190))","v":""},{"$f":"IF(H190=\"\",\"\",CONCATENATE(DIGITADOR!$M$1,H190,E190))","v":""},"",{"$f":"IF(G190=\"\",\"\",VLOOKUP(G190,'Otras referencias'!$A$24:$E$48,2,FALSE))","v":""},null,null,null,null,null,null,null,null,null,null,{"$f":"IF(Q190=\"\",\"\",VLOOKUP(Q190,referentes!$K$2:$R$209,2,FALSE))","v":""}]
[null,{"$f":"IF(C191=\"\",\"\",IF(COUNTIF($C$3:C191, C191)>1, \"\", C191))","v":""},{"$f":"IF(H191=\"\",\"\",CONCATENATE(DIGITADOR!$M$1,H191,E191))","v":""},"",{"$f":"IF(G191=\"\",\"\",VLOOKUP(G191,'Otras referencias'!$A$24:$E$48,2,FALSE))","v":""},null,null,null,null,null,null,null,null,null,null,{"$f":"IF(Q191=\"\",\"\",VLOOKUP(Q191,referentes!$K$2:$R$209,2,FALSE))","v":""}]
[null,{"$f":"IF(C192=\"\",\"\",IF(COUNTIF($C$3:C192, C192)>1, \"\", C192))","v":""},{"$f":"IF(H192=\"\",\"\",CONCATENATE(DIGITADOR!$M$1,H192,E192))","v":""},"",{"$f":"IF(G192=\"\",\"\",VLOOKUP(G192,'Otras referencias'!$A$24:$E$48,2,FALSE))","v":""},null,null,null,null,null,null,null,null,null,null,{"$f":"IF(Q192=\"\",\"\",VLOOKUP(Q192,referentes!$K$2:$R$209,2,FALSE))","v":""}]
[null,{"$f":"IF(C193=\"\",\"\",IF(COUNTIF($C$3:C193, C193)>1, \"\", C193))","v":""},{"$f":"IF(H193=\"\",\"\",CONCATENATE(DIGITADOR!$M$1,H193,E193))","v":""},"",{"$f":"IF(G193=\"\",\"\",VLOOKUP(G193,'Otras referencias'!$A$24:$E$48,2,FALSE))","v":""},null,null,null,null,null,null,null,null,null,null,{"$f":"IF(Q193=\"\",\"\",VLOOKUP(Q193,referentes!$K$2:$R$209,2,FALSE))","v":""}]
[null,{"$f":"IF(C194=\"\",\"\",IF(COUNTIF($C$3:C194, C194)>1, \"\", C194))","v":""},{"$f":"IF(H194=\"\",\"\",CONCATENATE(DIGITADOR!$M$1,H194,E194))","v":""},"",{"$f":"IF(G194=\"\",\"\",VLOOKUP(G194,'Otras referencias'!$A$24:$E$48,2,FALSE))","v":""},null,null,null,null,null,null,null,null,null,null,{"$f":"IF(Q194=\"\",\"\",VLOOKUP(Q194,referentes!$K$2:$R$209,2,FALSE))","v":""}]
[null,{"$f":"IF(C195=\"\",\"\",IF(COUNTIF($C$3:C195, C195)>1, \"\", C195))","v":""},{"$f":"IF(H195=\"\",\"\",CONCATENATE(DIGITADOR!$M$1,H195,E195))","v":""},"",{"$f":"IF(G195=\"\",\"\",VLOOKUP(G195,'Otras referencias'!$A$24:$E$48,2,FALSE))","v":""},null,null,null,null,null,null,null,null,null,null,{"$f":"IF(Q195=\"\",\"\",VLOOKUP(Q195,referentes!$K$2:$R$209,2,FALSE))","v":""}]
[null,{"$f":"IF(C196=\"\",\"\",IF(COUNTIF($C$3:C196, C196)>1, \"\", C196))","v":""},{"$f":"IF(H196=\"\",\"\",CONCATENATE(DIGITADOR!$M$1,H196,E196))","v":""},{"$f":"IF(C196=\"\",\"\",CONCATENATE(C196,ROW()-2))","v":""},{"$f":"IF(G196=\"\",\"\",VLOOKUP(G196,'Otras referencias'!$A$24:$E$48,2,FALSE))","v":""},null,null,null,null,null,null,null,null,null,null,{"$f":"IF(Q196=\"\",\"\",VLOOKUP(Q196,referentes!$K$2:$R$209,2,FALSE))","v":""}]
[null,{"$f":"IF(C197=\"\",\"\",IF(COUNTIF($C$3:C197, C197)>1, \"\", C197))","v":""},{"$f":"IF(H197=\"\",\"\",CONCATENATE(DIGITADOR!$M$1,H197,E197))","v":""},"",{"$f":"IF(G197=\"\",\"\",VLOOKUP(G197,'Otras referencias'!$A$24:$E$48,2,FALSE))","v":""},null,null,null,null,null,null,null,null,null,null,{"$f":"IF(Q197=\"\",\"\",VLOOKUP(Q197,referentes!$K$2:$R$209,2,FALSE))","v":""}]
[null,{"$f":"IF(C198=\"\",\"\",IF(COUNTIF($C$3:C198, C198)>1, \"\", C198))","v":""},{"$f":"IF(H198=\"\",\"\",CONCATENATE(DIGITADOR!$M$1,H198,E198))","v":""},"",{"$f":"IF(G198=\"\",\"\",VLOOKUP(G198,'Otras referencias'!$A$24:$E$48,2,FALSE))","v":""},null,null,null,null,null,null,null,null,null,null,{"$f":"IF(Q198=\"\",\"\",VLOOKUP(Q198,referentes!$K$2:$R$209,2,FALSE))","v":""}]
[null,{"$f":"IF(C199=\"\",\"\",IF(COUNTIF($C$3:C199, C199)>1, \"\", C199))","v":""},{"$f":"IF(H199=\"\",\"\",CONCATENATE(DIGITADOR!$M$1,H199,E199))","v":""},"",{"$f":"IF(G199=\"\",\"\",VLOOKUP(G199,'Otras referencias'!$A$24:$E$48,2,FALSE))","v":""},null,null,null,null,null,null,null,null,null,null,{"$f":"IF(Q199=\"\",\"\",VLOOKUP(Q199,referentes!$K$2:$R$209,2,FALSE))","v":""}]
[null,{"$f":"IF(C200=\"\",\"\",IF(COUNTIF($C$3:C200, C200)>1, \"\", C200))","v":""},{"$f":"IF(H200=\"\",\"\",CONCATENATE(DIGITADOR!$M$1,H200,E200))","v":""},"",{"$f":"IF(G200=\"\",\"\",VLOOKUP(G200,'Otras referencias'!$A$24:$E$48,2,FALSE))","v":""},null,null,null,null,null,null,null,null,null,null,{"$f":"IF(Q200=\"\",\"\",VLOOKUP(Q200,referentes!$K$2:$R$209,2,FALSE))","v":""}]
[null,{"$f":"IF(C201=\"\",\"\",IF(COUNTIF($C$3:C201, C201)>1, \"\", C201))","v":""},{"$f":"IF(H201=\"\",\"\",CONCATENATE(DIGITADOR!$M$1,H201,E201))","v":""},"",{"$f":"IF(G201=\"\",\"\",VLOOKUP(G201,'Otras referencias'!$A$24:$E$48,2,FALSE))","v":""},null,null,null,null,null,null,null,null,null,null,{"$f":"IF(Q201=\"\",\"\",VLOOKUP(Q201,referentes!$K$2:$R$209,2,FALSE))","v":""}]
[null,{"$f":"IF(C202=\"\",\"\",IF(COUNTIF($C$3:C202, C202)>1, \"\", C202))","v":""},{"$f":"IF(H202=\"\",\"\",CONCATENATE(DIGITADOR!$M$1,H202,E202))","v":""},"",{"$f":"IF(G202=\"\",\"\",VLOOKUP(G202,'Otras referencias'!$A$24:$E$48,2,FALSE))","v":""},null,null,null,null,null,null,null,null,null,null,{"$f":"IF(Q202=\"\",\"\",VLOOKUP(Q202,referentes!$K$2:$R$209,2,FALSE))","v":""}]
[null,{"$f":"IF(C203=\"\",\"\",IF(COUNTIF($C$3:C203, C203)>1, \"\", C203))","v":""},{"$f":"IF(H203=\"\",\"\",CONCATENATE(DIGITADOR!$M$1,H203,E203))","v":""},"",{"$f":"IF(G203=\"\",\"\",VLOOKUP(G203,'Otras referencias'!$A$24:$E$48,2,FALSE))","v":""},null,null,null,null,null,null,null,null,null,null,{"$f":"IF(Q203=\"\",\"\",VLOOKUP(Q203,referentes!$K$2:$R$209,2,FALSE))","v":""}]
[null,{"$f":"IF(C204=\"\",\"\",IF(COUNTIF($C$3:C204, C204)>1, \"\", C204))","v":""},{"$f":"IF(H204=\"\",\"\",CONCATENATE(DIGITADOR!$M$1,H204,E204))","v":""},"",{"$f":"IF(G204=\"\",\"\",VLOOKUP(G204,'Otras referencias'!$A$24:$E$48,2,FALSE))","v":""},null,null,null,null,null,null,null,null,null,null,{"$f":"IF(Q204=\"\",\"\",VLOOKUP(Q204,referentes!$K$2:$R$209,2,FALSE))","v":""}]
[null,{"$f":"IF(C205=\"\",\"\",IF(COUNTIF($C$3:C205, C205)>1, \"\", C205))","v":""},{"$f":"IF(H205=\"\",\"\",CONCATENATE(DIGITADOR!$M$1,H205,E205))","v":""},"",{"$f":"IF(G205=\"\",\"\",VLOOKUP(G205,'Otras referencias'!$A$24:$E$48,2,FALSE))","v":""},null,null,null,null,null,null,null,null,null,null,{"$f":"IF(Q205=\"\",\"\",VLOOKUP(Q205,referentes!$K$2:$R$209,2,FALSE))","v":""}]
[null,{"$f":"IF(C206=\"\",\"\",IF(COUNTIF($C$3:C206, C206)>1, \"\", C206))","v":""},{"$f":"IF(H206=\"\",\"\",CONCATENATE(DIGITADOR!$M$1,H206,E206))","v":""},"",{"$f":"IF(G206=\"\",\"\",VLOOKUP(G206,'Otras referencias'!$A$24:$E$48,2,FALSE))","v":""},null,null,null,null,null,null,null,null,null,null,{"$f":"IF(Q206=\"\",\"\",VLOOKUP(Q206,referentes!$K$2:$R$209,2,FALSE))","v":""}]
[null,{"$f":"IF(C207=\"\",\"\",IF(COUNTIF($C$3:C207, C207)>1, \"\", C207))","v":""},{"$f":"IF(H207=\"\",\"\",CONCATENATE(DIGITADOR!$M$1,H207,E207))","v":""},"",{"$f":"IF(G207=\"\",\"\",VLOOKUP(G207,'Otras referencias'!$A$24:$E$48,2,FALSE))","v":""},null,null,null,null,null,null,null,null,null,null,{"$f":"IF(Q207=\"\",\"\",VLOOKUP(Q207,referentes!$K$2:$R$209,2,FALSE))","v":""}]
[null,{"$f":"IF(C208=\"\",\"\",IF(COUNTIF($C$3:C208, C208)>1, \"\", C208))","v":""},{"$f":"IF(H208=\"\",\"\",CONCATENATE(DIGITADOR!$M$1,H208,E208))","v":""},"",{"$f":"IF(G208=\"\",\"\",VLOOKUP(G208,'Otras referencias'!$A$24:$E$48,2,FALSE))","v":""},null,null,null,null,null,null,null,null,null,null,{"$f":"IF(Q208=\"\",\"\",VLOOKUP(Q208,referentes!$K$2:$R$209,2,FALSE))","v":""}]
[null,{"$f":"IF(C209=\"\",\"\",IF(COUNTIF($C$3:C209, C209)>1, \"\", C209))","v":""},{"$f":"IF(H209=\"\",\"\",CONCATENATE(DIGITADOR!$M$1,H209,E209))","v":""},"",{"$f":"IF(G209=\"\",\"\",VLOOKUP(G209,'Otras referencias'!$A$24:$E$48,2,FALSE))","v":""},null,null,null,null,null,null,null,null,null,null,{"$f":"IF(Q209=\"\",\"\",VLOOKUP(Q209,referentes!$K$2:$R$209,2,FALSE))","v":""}]
[null,{"$f":"IF(C210=\"\",\"\",IF(COUNTIF($C$3:C210, C210)>1, \"\", C210))","v":""},{"$f":"IF(H210=\"\",\"\",CONCATENATE(DIGITADOR!$M$1,H210,E210))","v":""},"",{"$f":"IF(G210=\"\",\"\",VLOOKUP(G210,'Otras referencias'!$A$24:$E$48,2,FALSE))","v":""},null,null,null,null,null,null,null,null,null,null,{"$f":"IF(Q210=\"\",\"\",VLOOKUP(Q210,referentes!$K$2:$R$209,2,FALSE))","v":""}]
[null,{"$f":"IF(C211=\"\",\"\",IF(COUNTIF($C$3:C211, C211)>1, \"\", C211))","v":""},{"$f":"IF(H211=\"\",\"\",CONCATENATE(DIGITADOR!$M$1,H211,E211))","v":""},"",{"$f":"IF(G211=\"\",\"\",VLOOKUP(G211,'Otras referencias'!$A$24:$E$48,2,FALSE))","v":""},null,null,null,null,null,null,null,null,null,null,{"$f":"IF(Q211=\"\",\"\",VLOOKUP(Q211,referentes!$K$2:$R$209,2,FALSE))","v":""}]
[null,{"$f":"IF(C212=\"\",\"\",IF(COUNTIF($C$3:C212, C212)>1, \"\", C212))","v":""},{"$f":"IF(H212=\"\",\"\",CONCATENATE(DIGITADOR!$M$1,H212,E212))","v":""},"",{"$f":"IF(G212=\"\",\"\",VLOOKUP(G212,'Otras referencias'!$A$24:$E$48,2,FALSE))","v":""},null,null,null,null,null,null,null,null,null,null,{"$f":"IF(Q212=\"\",\"\",VLOOKUP(Q212,referentes!$K$2:$R$209,2,FALSE))","v":""}]
[null,{"$f":"IF(C213=\"\",\"\",IF(COUNTIF($C$3:C213, C213)>1, \"\", C213))","v":""},{"$f":"IF(H213=\"\",\"\",CONCATENATE(DIGITADOR!$M$1,H213,E213))","v":""},"",{"$f":"IF(G213=\"\",\"\",VLOOKUP(G213,'Otras referencias'!$A$24:$E$48,2,FALSE))","v":""},null,null,null,null,null,null,null,null,null,null,{"$f":"IF(Q213=\"\",\"\",VLOOKUP(Q213,referentes!$K$2:$R$209,2,FALSE))","v":""}]
[null,{"$f":"IF(C214=\"\",\"\",IF(COUNTIF($C$3:C214, C214)>1, \"\", C214))","v":""},{"$f":"IF(H214=\"\",\"\",CONCATENATE(DIGITADOR!$M$1,H214,E214))","v":""},"",{"$f":"IF(G214=\"\",\"\",VLOOKUP(G214,'Otras referencias'!$A$24:$E$48,2,FALSE))","v":""},null,null,null,null,null,null,null,null,null,null,{"$f":"IF(Q214=\"\",\"\",VLOOKUP(Q214,referentes!$K$2:$R$209,2,FALSE))","v":""}]
[null,{"$f":"IF(C215=\"\",\"\",IF(COUNTIF($C$3:C215, C215)>1, \"\", C215))","v":""},{"$f":"IF(H215=\"\",\"\",CONCATENATE(DIGITADOR!$M$1,H215,E215))","v":""},"",{"$f":"IF(G215=\"\",\"\",VLOOKUP(G215,'Otras referencias'!$A$24:$E$48,2,FALSE))","v":""},null,null,null,null,null,null,null,null,null,null,{"$f":"IF(Q215=\"\",\"\",VLOOKUP(Q215,referentes!$K$2:$R$209,2,FALSE))","v":""}]
[null,{"$f":"IF(C216=\"\",\"\",IF(COUNTIF($C$3:C216, C216)>1, \"\", C216))","v":""},{"$f":"IF(H216=\"\",\"\",CONCATENATE(DIGITADOR!$M$1,H216,E216))","v":""},"",{"$f":"IF(G216=\"\",\"\",VLOOKUP(G216,'Otras referencias'!$A$24:$E$48,2,FALSE))","v":""},null,null,null,null,null,null,null,null,null,null,{"$f":"IF(Q216=\"\",\"\",VLOOKUP(Q216,referentes!$K$2:$R$209,2,FALSE))","v":""}]
[null,{"$f":"IF(C217=\"\",\"\",IF(COUNTIF($C$3:C217, C217)>1, \"\", C217))","v":""},{"$f":"IF(H217=\"\",\"\",CONCATENATE(DIGITADOR!$M$1,H217,E217))","v":""},"",{"$f":"IF(G217=\"\",\"\",VLOOKUP(G217,'Otras referencias'!$A$24:$E$48,2,FALSE))","v":""},null,null,null,null,null,null,null,null,null,null,{"$f":"IF(Q217=\"\",\"\",VLOOKUP(Q217,referentes!$K$2:$R$209,2,FALSE))","v":""}]
[null,{"$f":"IF(C218=\"\",\"\",IF(COUNTIF($C$3:C218, C218)>1, \"\", C218))","v":""},{"$f":"IF(H218=\"\",\"\",CONCATENATE(DIGITADOR!$M$1,H218,E218))","v":""},"",{"$f":"IF(G218=\"\",\"\",VLOOKUP(G218,'Otras referencias'!$A$24:$E$48,2,FALSE))","v":""},null,null,null,null,null,null,null,null,null,null,{"$f":"IF(Q218=\"\",\"\",VLOOKUP(Q218,referentes!$K$2:$R$209,2,FALSE))","v":""}]
[null,{"$f":"IF(C219=\"\",\"\",IF(COUNTIF($C$3:C219, C219)>1, \"\", C219))","v":""},{"$f":"IF(H219=\"\",\"\",CONCATENATE(DIGITADOR!$M$1,H219,E219))","v":""},"",{"$f":"IF(G219=\"\",\"\",VLOOKUP(G219,'Otras referencias'!$A$24:$E$48,2,FALSE))","v":""},null,null,null,null,null,null,null,null,null,null,{"$f":"IF(Q219=\"\",\"\",VLOOKUP(Q219,referentes!$K$2:$R$209,2,FALSE))","v":""}]
[null,{"$f":"IF(C220=\"\",\"\",IF(COUNTIF($C$3:C220, C220)>1, \"\", C220))","v":""},{"$f":"IF(H220=\"\",\"\",CONCATENATE(DIGITADOR!$M$1,H220,E220))","v":""},"",{"$f":"IF(G220=\"\",\"\",VLOOKUP(G220,'Otras referencias'!$A$24:$E$48,2,FALSE))","v":""},null,null,null,null,null,null,null,null,null,null,{"$f":"IF(Q220=\"\",\"\",VLOOKUP(Q220,referentes!$K$2:$R$209,2,FALSE))","v":""}]
[null,{"$f":"IF(C221=\"\",\"\",IF(COUNTIF($C$3:C221, C221)>1, \"\", C221))","v":""},{"$f":"IF(H221=\"\",\"\",CONCATENATE(DIGITADOR!$M$1,H221,E221))","v":""},"",{"$f":"IF(G221=\"\",\"\",VLOOKUP(G221,'Otras referencias'!$A$24:$E$48,2,FALSE))","v":""},null,null,null,null,null,null,null,null,null,null,{"$f":"IF(Q221=\"\",\"\",VLOOKUP(Q221,referentes!$K$2:$R$209,2,FALSE))","v":""}]
[null,{"$f":"IF(C222=\"\",\"\",IF(COUNTIF($C$3:C222, C222)>1, \"\", C222))","v":""},{"$f":"IF(H222=\"\",\"\",CONCATENATE(DIGITADOR!$M$1,H222,E222))","v":""},"",{"$f":"IF(G222=\"\",\"\",VLOOKUP(G222,'Otras referencias'!$A$24:$E$48,2,FALSE))","v":""},null,null,null,null,null,null,null,null,null,null,{"$f":"IF(Q222=\"\",\"\",VLOOKUP(Q222,referentes!$K$2:$R$209,2,FALSE))","v":""}]
[null,{"$f":"IF(C223=\"\",\"\",IF(COUNTIF($C$3:C223, C223)>1, \"\", C223))","v":""},{"$f":"IF(H223=\"\",\"\",CONCATENATE(DIGITADOR!$M$1,H223,E223))","v":""},"",{"$f":"IF(G223=\"\",\"\",VLOOKUP(G223,'Otras referencias'!$A$24:$E$48,2,FALSE))","v":""},null,null,null,null,null,null,null,null,null,null,{"$f":"IF(Q223=\"\",\"\",VLOOKUP(Q223,referentes!$K$2:$R$209,2,FALSE))","v":""}]
[null,{"$f":"IF(C224=\"\",\"\",IF(COUNTIF($C$3:C224, C224)>1, \"\", C224))","v":""},{"$f":"IF(H224=\"\",\"\",CONCATENATE(DIGITADOR!$M$1,H224,E224))","v":""},"",{"$f":"IF(G224=\"\",\"\",VLOOKUP(G224,'Otras referencias'!$A$24:$E$48,2,FALSE))","v":""},null,null,null,null,null,null,null,null,null,null,{"$f":"IF(Q224=\"\",\"\",VLOOKUP(Q224,referentes!$K$2:$R$209,2,FALSE))","v":""}]
[null,{"$f":"IF(C225=\"\",\"\",IF(COUNTIF($C$3:C225, C225)>1, \"\", C225))","v":""},{"$f":"IF(H225=\"\",\"\",CONCATENATE(DIGITADOR!$M$1,H225,E225))","v":""},"",{"$f":"IF(G225=\"\",\"\",VLOOKUP(G225,'Otras referencias'!$A$24:$E$48,2,FALSE))","v":""},null,null,null,null,null,null,null,null,null,null,{"$f":"IF(Q225=\"\",\"\",VLOOKUP(Q225,referentes!$K$2:$R$209,2,FALSE))","v":""}]
[null,{"$f":"IF(C226=\"\",\"\",IF(COUNTIF($C$3:C226, C226)>1, \"\", C226))","v":""},{"$f":"IF(H226=\"\",\"\",CONCATENATE(DIGITADOR!$M$1,H226,E226))","v":""},"",{"$f":"IF(G226=\"\",\"\",VLOOKUP(G226,'Otras referencias'!$A$24:$E$48,2,FALSE))","v":""},null,null,null,null,null,null,null,null,null,null,{"$f":"IF(Q226=\"\",\"\",VLOOKUP(Q226,referentes!$K$2:$R$209,2,FALSE))","v":""}]
[null,{"$f":"IF(C227=\"\",\"\",IF(COUNTIF($C$3:C227, C227)>1, \"\", C227))","v":""},{"$f":"IF(H227=\"\",\"\",CONCATENATE(DIGITADOR!$M$1,H227,E227))","v":""},"",{"$f":"IF(G227=\"\",\"\",VLOOKUP(G227,'Otras referencias'!$A$24:$E$48,2,FALSE))","v":""},null,null,null,null,null,null,null,null,null,null,{"$f":"IF(Q227=\"\",\"\",VLOOKUP(Q227,referentes!$K$2:$R$209,2,FALSE))","v":""}]
[null,{"$f":"IF(C228=\"\",\"\",IF(COUNTIF($C$3:C228, C228)>1, \"\", C228))","v":""},{"$f":"IF(H228=\"\",\"\",CONCATENATE(DIGITADOR!$M$1,H228,E228))","v":""},"",{"$f":"IF(G228=\"\",\"\",VLOOKUP(G228,'Otras referencias'!$A$24:$E$48,2,FALSE))","v":""},null,null,null,null,null,null,null,null,null,null,{"$f":"IF(Q228=\"\",\"\",VLOOKUP(Q228,referentes!$K$2:$R$209,2,FALSE))","v":""}]
[null,{"$f":"IF(C229=\"\",\"\",IF(COUNTIF($C$3:C229, C229)>1, \"\", C229))","v":""},{"$f":"IF(H229=\"\",\"\",CONCATENATE(DIGITADOR!$M$1,H229,E229))","v":""},"",{"$f":"IF(G229=\"\",\"\",VLOOKUP(G229,'Otras referencias'!$A$24:$E$48,2,FALSE))","v":""},null,null,null,null,null,null,null,null,null,null,{"$f":"IF(Q229=\"\",\"\",VLOOKUP(Q229,referentes!$K$2:$R$209,2,FALSE))","v":""}]
[null,{"$f":"IF(C230=\"\",\"\",IF(COUNTIF($C$3:C230, C230)>1, \"\", C230))","v":""},{"$f":"IF(H230=\"\",\"\",CONCATENATE(DIGITADOR!$M$1,H230,E230))","v":""},"",{"$f":"IF(G230=\"\",\"\",VLOOKUP(G230,'Otras referencias'!$A$24:$E$48,2,FALSE))","v":""},null,null,null,null,null,null,null,null,null,null,{"$f":"IF(Q230=\"\",\"\",VLOOKUP(Q230,referentes!$K$2:$R$209,2,FALSE))","v":""}]
[null,{"$f":"IF(C231=\"\",\"\",IF(COUNTIF($C$3:C231, C231)>1, \"\", C231))","v":""},{"$f":"IF(H231=\"\",\"\",CONCATENATE(DIGITADOR!$M$1,H231,E231))","v":""},"",{"$f":"IF(G231=\"\",\"\",VLOOKUP(G231,'Otras referencias'!$A$24:$E$48,2,FALSE))","v":""},null,null,null,null,null,null,null,null,null,null,{"$f":"IF(Q231=\"\",\"\",VLOOKUP(Q231,referentes!$K$2:$R$209,2,FALSE))","v":""}]
[null,{"$f":"IF(C232=\"\",\"\",IF(COUNTIF($C$3:C232, C232)>1, \"\", C232))","v":""},{"$f":"IF(H232=\"\",\"\",CONCATENATE(DIGITADOR!$M$1,H232,E232))","v":""},"",{"$f":"IF(G232=\"\",\"\",VLOOKUP(G232,'Otras referencias'!$A$24:$E$48,2,FALSE))","v":""},null,null,null,null,null,null,null,null,null,null,{"$f":"IF(Q232=\"\",\"\",VLOOKUP(Q232,referentes!$K$2:$R$209,2,FALSE))","v":""}]
[null,{"$f":"IF(C233=\"\",\"\",IF(COUNTIF($C$3:C233, C233)>1, \"\", C233))","v":""},{"$f":"IF(H233=\"\",\"\",CONCATENATE(DIGITADOR!$M$1,H233,E233))","v":""},"",{"$f":"IF(G233=\"\",\"\",VLOOKUP(G233,'Otras referencias'!$A$24:$E$48,2,FALSE))","v":""},null,null,null,null,null,null,null,null,null,null,{"$f":"IF(Q233=\"\",\"\",VLOOKUP(Q233,referentes!$K$2:$R$209,2,FALSE))","v":""}]
[null,{"$f":"IF(C234=\"\",\"\",IF(COUNTIF($C$3:C234, C234)>1, \"\", C234))","v":""},{"$f":"IF(H234=\"\",\"\",CONCATENATE(DIGITADOR!$M$1,H234,E234))","v":""},"",{"$f":"IF(G234=\"\",\"\",VLOOKUP(G234,'Otras referencias'!$A$24:$E$48,2,FALSE))","v":""},null,null,null,null,null,null,null,null,null,null,{"$f":"IF(Q234=\"\",\"\",VLOOKUP(Q234,referentes!$K$2:$R$209,2,FALSE))","v":""}]
[null,{"$f":"IF(C235=\"\",\"\",IF(COUNTIF($C$3:C235, C235)>1, \"\", C235))","v":""},{"$f":"IF(H235=\"\",\"\",CONCATENATE(DIGITADOR!$M$1,H235,E235))","v":""},"",{"$f":"IF(G235=\"\",\"\",VLOOKUP(G235,'Otras referencias'!$A$24:$E$48,2,FALSE))","v":""},null,null,null,null,null,null,null,null,null,null,{"$f":"IF(Q235=\"\",\"\",VLOOKUP(Q235,referentes!$K$2:$R$209,2,FALSE))","v":""}]
[null,{"$f":"IF(C236=\"\",\"\",IF(COUNTIF($C$3:C236, C236)>1, \"\", C236))","v":""},{"$f":"IF(H236=\"\",\"\",CONCATENATE(DIGITADOR!$M$1,H236,E236))","v":""},"",{"$f":"IF(G236=\"\",\"\",VLOOKUP(G236,'Otras referencias'!$A$24:$E$48,2,FALSE))","v":""},null,null,null,null,null,null,null,null,null,null,{"$f":"IF(Q236=\"\",\"\",VLOOKUP(Q236,referentes!$K$2:$R$209,2,FALSE))","v":""}]
[null,{"$f":"IF(C237=\"\",\"\",IF(COUNTIF($C$3:C237, C237)>1, \"\", C237))","v":""},{"$f":"IF(H237=\"\",\"\",CONCATENATE(DIGITADOR!$M$1,H237,E237))","v":""},"",{"$f":"IF(G237=\"\",\"\",VLOOKUP(G237,'Otras referencias'!$A$24:$E$48,2,FALSE))","v":""},null,null,null,null,null,null,null,null,null,null,{"$f":"IF(Q237=\"\",\"\",VLOOKUP(Q237,referentes!$K$2:$R$209,2,FALSE))","v":""}]
[null,{"$f":"IF(C238=\"\",\"\",IF(COUNTIF($C$3:C238, C238)>1, \"\", C238))","v":""},{"$f":"IF(H238=\"\",\"\",CONCATENATE(DIGITADOR!$M$1,H238,E238))","v":""},"",{"$f":"IF(G238=\"\",\"\",VLOOKUP(G238,'Otras referencias'!$A$24:$E$48,2,FALSE))","v":""},null,null,null,null,null,null,null,null,null,null,{"$f":"IF(Q238=\"\",\"\",VLOOKUP(Q238,referentes!$K$2:$R$209,2,FALSE))","v":""}]
[null,{"$f":"IF(C239=\"\",\"\",IF(COUNTIF($C$3:C239, C239)>1, \"\", C239))","v":""},{"$f":"IF(H239=\"\",\"\",CONCATENATE(DIGITADOR!$M$1,H239,E239))","v":""},"",{"$f":"IF(G239=\"\",\"\",VLOOKUP(G239,'Otras referencias'!$A$24:$E$48,2,FALSE))","v":""},null,null,null,null,null,null,null,null,null,null,{"$f":"IF(Q239=\"\",\"\",VLOOKUP(Q239,referentes!$K$2:$R$209,2,FALSE))","v":""}]
[null,{"$f":"IF(C240=\"\",\"\",IF(COUNTIF($C$3:C240, C240)>1, \"\", C240))","v":""},{"$f":"IF(H240=\"\",\"\",CONCATENATE(DIGITADOR!$M$1,H240,E240))","v":""},"",{"$f":"IF(G240=\"\",\"\",VLOOKUP(G240,'Otras referencias'!$A$24:$E$48,2,FALSE))","v":""},null,null,null,null,null,null,null,null,null,null,{"$f":"IF(Q240=\"\",\"\",VLOOKUP(Q240,referentes!$K$2:$R$209,2,FALSE))","v":""}]
[null,{"$f":"IF(C241=\"\",\"\",IF(COUNTIF($C$3:C241, C241)>1, \"\", C241))","v":""},{"$f":"IF(H241=\"\",\"\",CONCATENATE(DIGITADOR!$M$1,H241,E241))","v":""},"",{"$f":"IF(G241=\"\",\"\",VLOOKUP(G241,'Otras referencias'!$A$24:$E$48,2,FALSE))","v":""},null,null,null,null,null,null,null,null,null,null,{"$f":"IF(Q241=\"\",\"\",VLOOKUP(Q241,referentes!$K$2:$R$209,2,FALSE))","v":""}]
[null,{"$f":"IF(C242=\"\",\"\",IF(COUNTIF($C$3:C242, C242)>1, \"\", C242))","v":""},{"$f":"IF(H242=\"\",\"\",CONCATENATE(DIGITADOR!$M$1,H242,E242))","v":""},"",{"$f":"IF(G242=\"\",\"\",VLOOKUP(G242,'Otras referencias'!$A$24:$E$48,2,FALSE))","v":""},null,null,null,null,null,null,null,null,null,null,{"$f":"IF(Q242=\"\",\"\",VLOOKUP(Q242,referentes!$K$2:$R$209,2,FALSE))","v":""}]
[null,{"$f":"IF(C243=\"\",\"\",IF(COUNTIF($C$3:C243, C243)>1, \"\", C243))","v":""},{"$f":"IF(H243=\"\",\"\",CONCATENATE(DIGITADOR!$M$1,H243,E243))","v":""},"",{"$f":"IF(G243=\"\",\"\",VLOOKUP(G243,'Otras referencias'!$A$24:$E$48,2,FALSE))","v":""},null,null,null,null,null,null,null,null,null,null,{"$f":"IF(Q243=\"\",\"\",VLOOKUP(Q243,referentes!$K$2:$R$209,2,FALSE))","v":""}]
[null,{"$f":"IF(C244=\"\",\"\",IF(COUNTIF($C$3:C244, C244)>1, \"\", C244))","v":""},{"$f":"IF(H244=\"\",\"\",CONCATENATE(DIGITADOR!$M$1,H244,E244))","v":""},"",{"$f":"IF(G244=\"\",\"\",VLOOKUP(G244,'Otras referencias'!$A$24:$E$48,2,FALSE))","v":""},null,null,null,null,null,null,null,null,null,null,{"$f":"IF(Q244=\"\",\"\",VLOOKUP(Q244,referentes!$K$2:$R$209,2,FALSE))","v":""}]
[null,{"$f":"IF(C245=\"\",\"\",IF(COUNTIF($C$3:C245, C245)>1, \"\", C245))","v":""},{"$f":"IF(H245=\"\",\"\",CONCATENATE(DIGITADOR!$M$1,H245,E245))","v":""},"",{"$f":"IF(G245=\"\",\"\",VLOOKUP(G245,'Otras referencias'!$A$24:$E$48,2,FALSE))","v":""},null,null,null,null,null,null,null,null,null,null,{"$f":"IF(Q245=\"\",\"\",VLOOKUP(Q245,referentes!$K$2:$R$209,2,FALSE))","v":""}]
[null,{"$f":"IF(C246=\"\",\"\",IF(COUNTIF($C$3:C246, C246)>1, \"\", C246))","v":""},{"$f":"IF(H246=\"\",\"\",CONCATENATE(DIGITADOR!$M$1,H246,E246))","v":""},"",{"$f":"IF(G246=\"\",\"\",VLOOKUP(G246,'Otras referencias'!$A$24:$E$48,2,FALSE))","v":""},null,null,null,null,null,null,null,null,null,null,{"$f":"IF(Q246=\"\",\"\",VLOOKUP(Q246,referentes!$K$2:$R$209,2,FALSE))","v":""}]
[null,{"$f":"IF(C247=\"\",\"\",IF(COUNTIF($C$3:C247, C247)>1, \"\", C247))","v":""},{"$f":"IF(H247=\"\",\"\",CONCATENATE(DIGITADOR!$M$1,H247,E247))","v":""},"",{"$f":"IF(G247=\"\",\"\",VLOOKUP(G247,'Otras referencias'!$A$24:$E$48,2,FALSE))","v":""},null,null,null,null,null,null,null,null,null,null,{"$f":"IF(Q247=\"\",\"\",VLOOKUP(Q247,referentes!$K$2:$R$209,2,FALSE))","v":""}]
[null,{"$f":"IF(C248=\"\",\"\",IF(COUNTIF($C$3:C248, C248)>1, \"\", C248))","v":""},{"$f":"IF(H248=\"\",\"\",CONCATENATE(DIGITADOR!$M$1,H248,E248))","v":""},"",{"$f":"IF(G248=\"\",\"\",VLOOKUP(G248,'Otras referencias'!$A$24:$E$48,2,FALSE))","v":""},null,null,null,null,null,null,null,null,null,null,{"$f":"IF(Q248=\"\",\"\",VLOOKUP(Q248,referentes!$K$2:$R$209,2,FALSE))","v":""}]
[null,{"$f":"IF(C249=\"\",\"\",IF(COUNTIF($C$3:C249, C249)>1, \"\", C249))","v":""},{"$f":"IF(H249=\"\",\"\",CONCATENATE(DIGITADOR!$M$1,H249,E249))","v":""},"",{"$f":"IF(G249=\"\",\"\",VLOOKUP(G249,'Otras referencias'!$A$24:$E$48,2,FALSE))","v":""},null,null,null,null,null,null,null,null,null,null,{"$f":"IF(Q249=\"\",\"\",VLOOKUP(Q249,referentes!$K$2:$R$209,2,FALSE))","v":""}]
[null,{"$f":"IF(C250=\"\",\"\",IF(COUNTIF($C$3:C250, C250)>1, \"\", C250))","v":""},{"$f":"IF(H250=\"\",\"\",CONCATENATE(DIGITADOR!$M$1,H250,E250))","v":""},"",{"$f":"IF(G250=\"\",\"\",VLOOKUP(G250,'Otras referencias'!$A$24:$E$48,2,FALSE))","v":""},null,null,null,null,null,null,null,null,null,null,{"$f":"IF(Q250=\"\",\"\",VLOOKUP(Q250,referentes!$K$2:$R$209,2,FALSE))","v":""}]
[null,{"$f":"IF(C251=\"\",\"\",IF(COUNTIF($C$3:C251, C251)>1, \"\", C251))","v":""},{"$f":"IF(H251=\"\",\"\",CONCATENATE(DIGITADOR!$M$1,H251,E251))","v":""},"",{"$f":"IF(G251=\"\",\"\",VLOOKUP(G251,'Otras referencias'!$A$24:$E$48,2,FALSE))","v":""},null,null,null,null,null,null,null,null,null,null,{"$f":"IF(Q251=\"\",\"\",VLOOKUP(Q251,referentes!$K$2:$R$209,2,FALSE))","v":""}]
[null,{"$f":"IF(C252=\"\",\"\",IF(COUNTIF($C$3:C252, C252)>1, \"\", C252))","v":""},{"$f":"IF(H252=\"\",\"\",CONCATENATE(DIGITADOR!$M$1,H252,E252))","v":""},"",{"$f":"IF(G252=\"\",\"\",VLOOKUP(G252,'Otras referencias'!$A$24:$E$48,2,FALSE))","v":""},null,null,null,null,null,null,null,null,null,null,{"$f":"IF(Q252=\"\",\"\",VLOOKUP(Q252,referentes!$K$2:$R$209,2,FALSE))","v":""}]
[null,{"$f":"IF(C253=\"\",\"\",IF(COUNTIF($C$3:C253, C253)>1, \"\", C253))","v":""},{"$f":"IF(H253=\"\",\"\",CONCATENATE(DIGITADOR!$M$1,H253,E253))","v":""},"",{"$f":"IF(G253=\"\",\"\",VLOOKUP(G253,'Otras referencias'!$A$24:$E$48,2,FALSE))","v":""},null,null,null,null,null,null,null,null,null,null,{"$f":"IF(Q253=\"\",\"\",VLOOKUP(Q253,referentes!$K$2:$R$209,2,FALSE))","v":""}]
[null,{"$f":"IF(C254=\"\",\"\",IF(COUNTIF($C$3:C254, C254)>1, \"\", C254))","v":""},{"$f":"IF(H254=\"\",\"\",CONCATENATE(DIGITADOR!$M$1,H254,E254))","v":""},"",{"$f":"IF(G254=\"\",\"\",VLOOKUP(G254,'Otras referencias'!$A$24:$E$48,2,FALSE))","v":""},null,null,null,null,null,null,null,null,null,null,{"$f":"IF(Q254=\"\",\"\",VLOOKUP(Q254,referentes!$K$2:$R$209,2,FALSE))","v":""}]
[null,{"$f":"IF(C255=\"\",\"\",IF(COUNTIF($C$3:C255, C255)>1, \"\", C255))","v":""},{"$f":"IF(H255=\"\",\"\",CONCATENATE(DIGITADOR!$M$1,H255,E255))","v":""},"",{"$f":"IF(G255=\"\",\"\",VLOOKUP(G255,'Otras referencias'!$A$24:$E$48,2,FALSE))","v":""},null,null,null,null,null,null,null,null,null,null,{"$f":"IF(Q255=\"\",\"\",VLOOKUP(Q255,referentes!$K$2:$R$209,2,FALSE))","v":""}]
[null,{"$f":"IF(C256=\"\",\"\",IF(COUNTIF($C$3:C256, C256)>1, \"\", C256))","v":""},{"$f":"IF(H256=\"\",\"\",CONCATENATE(DIGITADOR!$M$1,H256,E256))","v":""},"",{"$f":"IF(G256=\"\",\"\",VLOOKUP(G256,'Otras referencias'!$A$24:$E$48,2,FALSE))","v":""},null,null,null,null,null,null,null,null,null,null,{"$f":"IF(Q256=\"\",\"\",VLOOKUP(Q256,referentes!$K$2:$R$209,2,FALSE))","v":""}]
[null,{"$f":"IF(C257=\"\",\"\",IF(COUNTIF($C$3:C257, C257)>1, \"\", C257))","v":""},{"$f":"IF(H257=\"\",\"\",CONCATENATE(DIGITADOR!$M$1,H257,E257))","v":""},"",{"$f":"IF(G257=\"\",\"\",VLOOKUP(G257,'Otras referencias'!$A$24:$E$48,2,FALSE))","v":""},null,null,null,null,null,null,null,null,null,null,{"$f":"IF(Q257=\"\",\"\",VLOOKUP(Q257,referentes!$K$2:$R$209,2,FALSE))","v":""}]
[null,{"$f":"IF(C258=\"\",\"\",IF(COUNTIF($C$3:C258, C258)>1, \"\", C258))","v":""},{"$f":"IF(H258=\"\",\"\",CONCATENATE(DIGITADOR!$M$1,H258,E258))","v":""},"",{"$f":"IF(G258=\"\",\"\",VLOOKUP(G258,'Otras referencias'!$A$24:$E$48,2,FALSE))","v":""},null,null,null,null,null,null,null,null,null,null,{"$f":"IF(Q258=\"\",\"\",VLOOKUP(Q258,referentes!$K$2:$R$209,2,FALSE))","v":""}]
[null,{"$f":"IF(C259=\"\",\"\",IF(COUNTIF($C$3:C259, C259)>1, \"\", C259))","v":""},{"$f":"IF(H259=\"\",\"\",CONCATENATE(DIGITADOR!$M$1,H259,E259))","v":""},"",{"$f":"IF(G259=\"\",\"\",VLOOKUP(G259,'Otras referencias'!$A$24:$E$48,2,FALSE))","v":""},null,null,null,null,null,null,null,null,null,null,{"$f":"IF(Q259=\"\",\"\",VLOOKUP(Q259,referentes!$K$2:$R$209,2,FALSE))","v":""}]
[null,{"$f":"IF(C260=\"\",\"\",IF(COUNTIF($C$3:C260, C260)>1, \"\", C260))","v":""},{"$f":"IF(H260=\"\",\"\",CONCATENATE(DIGITADOR!$M$1,H260,E260))","v":""},{"$f":"IF(C260=\"\",\"\",CONCATENATE(C260,ROW()-2))","v":""},{"$f":"IF(G260=\"\",\"\",VLOOKUP(G260,'Otras referencias'!$A$24:$E$48,2,FALSE))","v":""},null,null,null,null,null,null,null,null,null,null,{"$f":"IF(Q260=\"\",\"\",VLOOKUP(Q260,referentes!$K$2:$R$209,2,FALSE))","v":""}]
[null,{"$f":"IF(C261=\"\",\"\",IF(COUNTIF($C$3:C261, C261)>1, \"\", C261))","v":""},{"$f":"IF(H261=\"\",\"\",CONCATENATE(DIGITADOR!$M$1,H261,E261))","v":""},"",{"$f":"IF(G261=\"\",\"\",VLOOKUP(G261,'Otras referencias'!$A$24:$E$48,2,FALSE))","v":""},null,null,null,null,null,null,null,null,null,null,{"$f":"IF(Q261=\"\",\"\",VLOOKUP(Q261,referentes!$K$2:$R$209,2,FALSE))","v":""}]
[null,{"$f":"IF(C262=\"\",\"\",IF(COUNTIF($C$3:C262, C262)>1, \"\", C262))","v":""},{"$f":"IF(H262=\"\",\"\",CONCATENATE(DIGITADOR!$M$1,H262,E262))","v":""},"",{"$f":"IF(G262=\"\",\"\",VLOOKUP(G262,'Otras referencias'!$A$24:$E$48,2,FALSE))","v":""},null,null,null,null,null,null,null,null,null,null,{"$f":"IF(Q262=\"\",\"\",VLOOKUP(Q262,referentes!$K$2:$R$209,2,FALSE))","v":""}]
[null,{"$f":"IF(C263=\"\",\"\",IF(COUNTIF($C$3:C263, C263)>1, \"\", C263))","v":""},{"$f":"IF(H263=\"\",\"\",CONCATENATE(DIGITADOR!$M$1,H263,E263))","v":""},"",{"$f":"IF(G263=\"\",\"\",VLOOKUP(G263,'Otras referencias'!$A$24:$E$48,2,FALSE))","v":""},null,null,null,null,null,null,null,null,null,null,{"$f":"IF(Q263=\"\",\"\",VLOOKUP(Q263,referentes!$K$2:$R$209,2,FALSE))","v":""}]
[null,{"$f":"IF(C264=\"\",\"\",IF(COUNTIF($C$3:C264, C264)>1, \"\", C264))","v":""},{"$f":"IF(H264=\"\",\"\",CONCATENATE(DIGITADOR!$M$1,H264,E264))","v":""},"",{"$f":"IF(G264=\"\",\"\",VLOOKUP(G264,'Otras referencias'!$A$24:$E$48,2,FALSE))","v":""},null,null,null,null,null,null,null,null,null,null,{"$f":"IF(Q264=\"\",\"\",VLOOKUP(Q264,referentes!$K$2:$R$209,2,FALSE))","v":""}]
[null,{"$f":"IF(C265=\"\",\"\",IF(COUNTIF($C$3:C265, C265)>1, \"\", C265))","v":""},{"$f":"IF(H265=\"\",\"\",CONCATENATE(DIGITADOR!$M$1,H265,E265))","v":""},"",{"$f":"IF(G265=\"\",\"\",VLOOKUP(G265,'Otras referencias'!$A$24:$E$48,2,FALSE))","v":""},null,null,null,null,null,null,null,null,null,null,{"$f":"IF(Q265=\"\",\"\",VLOOKUP(Q265,referentes!$K$2:$R$209,2,FALSE))","v":""}]
[null,{"$f":"IF(C266=\"\",\"\",IF(COUNTIF($C$3:C266, C266)>1, \"\", C266))","v":""},{"$f":"IF(H266=\"\",\"\",CONCATENATE(DIGITADOR!$M$1,H266,E266))","v":""},"",{"$f":"IF(G266=\"\",\"\",VLOOKUP(G266,'Otras referencias'!$A$24:$E$48,2,FALSE))","v":""},null,null,null,null,null,null,null,null,null,null,{"$f":"IF(Q266=\"\",\"\",VLOOKUP(Q266,referentes!$K$2:$R$209,2,FALSE))","v":""}]
[null,{"$f":"IF(C267=\"\",\"\",IF(COUNTIF($C$3:C267, C267)>1, \"\", C267))","v":""},{"$f":"IF(H267=\"\",\"\",CONCATENATE(DIGITADOR!$M$1,H267,E267))","v":""},"",{"$f":"IF(G267=\"\",\"\",VLOOKUP(G267,'Otras referencias'!$A$24:$E$48,2,FALSE))","v":""},null,null,null,null,null,null,null,null,null,null,{"$f":"IF(Q267=\"\",\"\",VLOOKUP(Q267,referentes!$K$2:$R$209,2,FALSE))","v":""}]
[null,{"$f":"IF(C268=\"\",\"\",IF(COUNTIF($C$3:C268, C268)>1, \"\", C268))","v":""},{"$f":"IF(H268=\"\",\"\",CONCATENATE(DIGITADOR!$M$1,H268,E268))","v":""},"",{"$f":"IF(G268=\"\",\"\",VLOOKUP(G268,'Otras referencias'!$A$24:$E$48,2,FALSE))","v":""},null,null,null,null,null,null,null,null,null,null,{"$f":"IF(Q268=\"\",\"\",VLOOKUP(Q268,referentes!$K$2:$R$209,2,FALSE))","v":""}]
[null,{"$f":"IF(C269=\"\",\"\",IF(COUNTIF($C$3:C269, C269)>1, \"\", C269))","v":""},{"$f":"IF(H269=\"\",\"\",CONCATENATE(DIGITADOR!$M$1,H269,E269))","v":""},"",{"$f":"IF(G269=\"\",\"\",VLOOKUP(G269,'Otras referencias'!$A$24:$E$48,2,FALSE))","v":""},null,null,null,null,null,null,null,null,null,null,{"$f":"IF(Q269=\"\",\"\",VLOOKUP(Q269,referentes!$K$2:$R$209,2,FALSE))","v":""}]
[null,{"$f":"IF(C270=\"\",\"\",IF(COUNTIF($C$3:C270, C270)>1, \"\", C270))","v":""},{"$f":"IF(H270=\"\",\"\",CONCATENATE(DIGITADOR!$M$1,H270,E270))","v":""},"",{"$f":"IF(G270=\"\",\"\",VLOOKUP(G270,'Otras referencias'!$A$24:$E$48,2,FALSE))","v":""},null,null,null,null,null,null,null,null,null,null,{"$f":"IF(Q270=\"\",\"\",VLOOKUP(Q270,referentes!$K$2:$R$209,2,FALSE))","v":""}]
[null,{"$f":"IF(C271=\"\",\"\",IF(COUNTIF($C$3:C271, C271)>1, \"\", C271))","v":""},{"$f":"IF(H271=\"\",\"\",CONCATENATE(DIGITADOR!$M$1,H271,E271))","v":""},"",{"$f":"IF(G271=\"\",\"\",VLOOKUP(G271,'Otras referencias'!$A$24:$E$48,2,FALSE))","v":""},null,null,null,null,null,null,null,null,null,null,{"$f":"IF(Q271=\"\",\"\",VLOOKUP(Q271,referentes!$K$2:$R$209,2,FALSE))","v":""}]
[null,{"$f":"IF(C272=\"\",\"\",IF(COUNTIF($C$3:C272, C272)>1, \"\", C272))","v":""},{"$f":"IF(H272=\"\",\"\",CONCATENATE(DIGITADOR!$M$1,H272,E272))","v":""},"",{"$f":"IF(G272=\"\",\"\",VLOOKUP(G272,'Otras referencias'!$A$24:$E$48,2,FALSE))","v":""},null,null,null,null,null,null,null,null,null,null,{"$f":"IF(Q272=\"\",\"\",VLOOKUP(Q272,referentes!$K$2:$R$209,2,FALSE))","v":""}]
[null,{"$f":"IF(C273=\"\",\"\",IF(COUNTIF($C$3:C273, C273)>1, \"\", C273))","v":""},{"$f":"IF(H273=\"\",\"\",CONCATENATE(DIGITADOR!$M$1,H273,E273))","v":""},"",{"$f":"IF(G273=\"\",\"\",VLOOKUP(G273,'Otras referencias'!$A$24:$E$48,2,FALSE))","v":""},null,null,null,null,null,null,null,null,null,null,{"$f":"IF(Q273=\"\",\"\",VLOOKUP(Q273,referentes!$K$2:$R$209,2,FALSE))","v":""}]
[null,{"$f":"IF(C274=\"\",\"\",IF(COUNTIF($C$3:C274, C274)>1, \"\", C274))","v":""},{"$f":"IF(H274=\"\",\"\",CONCATENATE(DIGITADOR!$M$1,H274,E274))","v":""},"",{"$f":"IF(G274=\"\",\"\",VLOOKUP(G274,'Otras referencias'!$A$24:$E$48,2,FALSE))","v":""},null,null,null,null,null,null,null,null,null,null,{"$f":"IF(Q274=\"\",\"\",VLOOKUP(Q274,referentes!$K$2:$R$209,2,FALSE))","v":""}]
[null,{"$f":"IF(C275=\"\",\"\",IF(COUNTIF($C$3:C275, C275)>1, \"\", C275))","v":""},{"$f":"IF(H275=\"\",\"\",CONCATENATE(DIGITADOR!$M$1,H275,E275))","v":""},"",{"$f":"IF(G275=\"\",\"\",VLOOKUP(G275,'Otras referencias'!$A$24:$E$48,2,FALSE))","v":""},null,null,null,null,null,null,null,null,null,null,{"$f":"IF(Q275=\"\",\"\",VLOOKUP(Q275,referentes!$K$2:$R$209,2,FALSE))","v":""}]
[null,{"$f":"IF(C276=\"\",\"\",IF(COUNTIF($C$3:C276, C276)>1, \"\", C276))","v":""},{"$f":"IF(H276=\"\",\"\",CONCATENATE(DIGITADOR!$M$1,H276,E276))","v":""},"",{"$f":"IF(G276=\"\",\"\",VLOOKUP(G276,'Otras referencias'!$A$24:$E$48,2,FALSE))","v":""},null,null,null,null,null,null,null,null,null,null,{"$f":"IF(Q276=\"\",\"\",VLOOKUP(Q276,referentes!$K$2:$R$209,2,FALSE))","v":""}]
[null,{"$f":"IF(C277=\"\",\"\",IF(COUNTIF($C$3:C277, C277)>1, \"\", C277))","v":""},{"$f":"IF(H277=\"\",\"\",CONCATENATE(DIGITADOR!$M$1,H277,E277))","v":""},"",{"$f":"IF(G277=\"\",\"\",VLOOKUP(G277,'Otras referencias'!$A$24:$E$48,2,FALSE))","v":""},null,null,null,null,null,null,null,null,null,null,{"$f":"IF(Q277=\"\",\"\",VLOOKUP(Q277,referentes!$K$2:$R$209,2,FALSE))","v":""}]
[null,{"$f":"IF(C278=\"\",\"\",IF(COUNTIF($C$3:C278, C278)>1, \"\", C278))","v":""},{"$f":"IF(H278=\"\",\"\",CONCATENATE(DIGITADOR!$M$1,H278,E278))","v":""},"",{"$f":"IF(G278=\"\",\"\",VLOOKUP(G278,'Otras referencias'!$A$24:$E$48,2,FALSE))","v":""},null,null,null,null,null,null,null,null,null,null,{"$f":"IF(Q278=\"\",\"\",VLOOKUP(Q278,referentes!$K$2:$R$209,2,FALSE))","v":""}]
[null,{"$f":"IF(C279=\"\",\"\",IF(COUNTIF($C$3:C279, C279)>1, \"\", C279))","v":""},{"$f":"IF(H279=\"\",\"\",CONCATENATE(DIGITADOR!$M$1,H279,E279))","v":""},"",{"$f":"IF(G279=\"\",\"\",VLOOKUP(G279,'Otras referencias'!$A$24:$E$48,2,FALSE))","v":""},null,null,null,null,null,null,null,null,null,null,{"$f":"IF(Q279=\"\",\"\",VLOOKUP(Q279,referentes!$K$2:$R$209,2,FALSE))","v":""}]
[null,{"$f":"IF(C280=\"\",\"\",IF(COUNTIF($C$3:C280, C280)>1, \"\", C280))","v":""},{"$f":"IF(H280=\"\",\"\",CONCATENATE(DIGITADOR!$M$1,H280,E280))","v":""},"",{"$f":"IF(G280=\"\",\"\",VLOOKUP(G280,'Otras referencias'!$A$24:$E$48,2,FALSE))","v":""},null,null,null,null,null,null,null,null,null,null,{"$f":"IF(Q280=\"\",\"\",VLOOKUP(Q280,referentes!$K$2:$R$209,2,FALSE))","v":""}]
[null,{"$f":"IF(C281=\"\",\"\",IF(COUNTIF($C$3:C281, C281)>1, \"\", C281))","v":""},{"$f":"IF(H281=\"\",\"\",CONCATENATE(DIGITADOR!$M$1,H281,E281))","v":""},"",{"$f":"IF(G281=\"\",\"\",VLOOKUP(G281,'Otras referencias'!$A$24:$E$48,2,FALSE))","v":""},null,null,null,null,null,null,null,null,null,null,{"$f":"IF(Q281=\"\",\"\",VLOOKUP(Q281,referentes!$K$2:$R$209,2,FALSE))","v":""}]
[null,{"$f":"IF(C282=\"\",\"\",IF(COUNTIF($C$3:C282, C282)>1, \"\", C282))","v":""},{"$f":"IF(H282=\"\",\"\",CONCATENATE(DIGITADOR!$M$1,H282,E282))","v":""},"",{"$f":"IF(G282=\"\",\"\",VLOOKUP(G282,'Otras referencias'!$A$24:$E$48,2,FALSE))","v":""},null,null,null,null,null,null,null,null,null,null,{"$f":"IF(Q282=\"\",\"\",VLOOKUP(Q282,referentes!$K$2:$R$209,2,FALSE))","v":""}]
[null,{"$f":"IF(C283=\"\",\"\",IF(COUNTIF($C$3:C283, C283)>1, \"\", C283))","v":""},{"$f":"IF(H283=\"\",\"\",CONCATENATE(DIGITADOR!$M$1,H283,E283))","v":""},"",{"$f":"IF(G283=\"\",\"\",VLOOKUP(G283,'Otras referencias'!$A$24:$E$48,2,FALSE))","v":""},null,null,null,null,null,null,null,null,null,null,{"$f":"IF(Q283=\"\",\"\",VLOOKUP(Q283,referentes!$K$2:$R$209,2,FALSE))","v":""}]
[null,{"$f":"IF(C284=\"\",\"\",IF(COUNTIF($C$3:C284, C284)>1, \"\", C284))","v":""},{"$f":"IF(H284=\"\",\"\",CONCATENATE(DIGITADOR!$M$1,H284,E284))","v":""},"",{"$f":"IF(G284=\"\",\"\",VLOOKUP(G284,'Otras referencias'!$A$24:$E$48,2,FALSE))","v":""},null,null,null,null,null,null,null,null,null,null,{"$f":"IF(Q284=\"\",\"\",VLOOKUP(Q284,referentes!$K$2:$R$209,2,FALSE))","v":""}]
[null,{"$f":"IF(C285=\"\",\"\",IF(COUNTIF($C$3:C285, C285)>1, \"\", C285))","v":""},{"$f":"IF(H285=\"\",\"\",CONCATENATE(DIGITADOR!$M$1,H285,E285))","v":""},"",{"$f":"IF(G285=\"\",\"\",VLOOKUP(G285,'Otras referencias'!$A$24:$E$48,2,FALSE))","v":""},null,null,null,null,null,null,null,null,null,null,{"$f":"IF(Q285=\"\",\"\",VLOOKUP(Q285,referentes!$K$2:$R$209,2,FALSE))","v":""}]
[null,{"$f":"IF(C286=\"\",\"\",IF(COUNTIF($C$3:C286, C286)>1, \"\", C286))","v":""},{"$f":"IF(H286=\"\",\"\",CONCATENATE(DIGITADOR!$M$1,H286,E286))","v":""},"",{"$f":"IF(G286=\"\",\"\",VLOOKUP(G286,'Otras referencias'!$A$24:$E$48,2,FALSE))","v":""},null,null,null,null,null,null,null,null,null,null,{"$f":"IF(Q286=\"\",\"\",VLOOKUP(Q286,referentes!$K$2:$R$209,2,FALSE))","v":""}]
[null,{"$f":"IF(C287=\"\",\"\",IF(COUNTIF($C$3:C287, C287)>1, \"\", C287))","v":""},{"$f":"IF(H287=\"\",\"\",CONCATENATE(DIGITADOR!$M$1,H287,E287))","v":""},"",{"$f":"IF(G287=\"\",\"\",VLOOKUP(G287,'Otras referencias'!$A$24:$E$48,2,FALSE))","v":""},null,null,null,null,null,null,null,null,null,null,{"$f":"IF(Q287=\"\",\"\",VLOOKUP(Q287,referentes!$K$2:$R$209,2,FALSE))","v":""}]
[null,{"$f":"IF(C288=\"\",\"\",IF(COUNTIF($C$3:C288, C288)>1, \"\", C288))","v":""},{"$f":"IF(H288=\"\",\"\",CONCATENATE(DIGITADOR!$M$1,H288,E288))","v":""},"",{"$f":"IF(G288=\"\",\"\",VLOOKUP(G288,'Otras referencias'!$A$24:$E$48,2,FALSE))","v":""},null,null,null,null,null,null,null,null,null,null,{"$f":"IF(Q288=\"\",\"\",VLOOKUP(Q288,referentes!$K$2:$R$209,2,FALSE))","v":""}]
[null,{"$f":"IF(C289=\"\",\"\",IF(COUNTIF($C$3:C289, C289)>1, \"\", C289))","v":""},{"$f":"IF(H289=\"\",\"\",CONCATENATE(DIGITADOR!$M$1,H289,E289))","v":""},"",{"$f":"IF(G289=\"\",\"\",VLOOKUP(G289,'Otras referencias'!$A$24:$E$48,2,FALSE))","v":""},null,null,null,null,null,null,null,null,null,null,{"$f":"IF(Q289=\"\",\"\",VLOOKUP(Q289,referentes!$K$2:$R$209,2,FALSE))","v":""}]
[null,{"$f":"IF(C290=\"\",\"\",IF(COUNTIF($C$3:C290, C290)>1, \"\", C290))","v":""},{"$f":"IF(H290=\"\",\"\",CONCATENATE(DIGITADOR!$M$1,H290,E290))","v":""},"",{"$f":"IF(G290=\"\",\"\",VLOOKUP(G290,'Otras referencias'!$A$24:$E$48,2,FALSE))","v":""},null,null,null,null,null,null,null,null,null,null,{"$f":"IF(Q290=\"\",\"\",VLOOKUP(Q290,referentes!$K$2:$R$209,2,FALSE))","v":""}]
[null,{"$f":"IF(C291=\"\",\"\",IF(COUNTIF($C$3:C291, C291)>1, \"\", C291))","v":""},{"$f":"IF(H291=\"\",\"\",CONCATENATE(DIGITADOR!$M$1,H291,E291))","v":""},"",{"$f":"IF(G291=\"\",\"\",VLOOKUP(G291,'Otras referencias'!$A$24:$E$48,2,FALSE))","v":""},null,null,null,null,null,null,null,null,null,null,{"$f":"IF(Q291=\"\",\"\",VLOOKUP(Q291,referentes!$K$2:$R$209,2,FALSE))","v":""}]
[null,{"$f":"IF(C292=\"\",\"\",IF(COUNTIF($C$3:C292, C292)>1, \"\", C292))","v":""},{"$f":"IF(H292=\"\",\"\",CONCATENATE(DIGITADOR!$M$1,H292,E292))","v":""},"",{"$f":"IF(G292=\"\",\"\",VLOOKUP(G292,'Otras referencias'!$A$24:$E$48,2,FALSE))","v":""},null,null,null,null,null,null,null,null,null,null,{"$f":"IF(Q292=\"\",\"\",VLOOKUP(Q292,referentes!$K$2:$R$209,2,FALSE))","v":""}]
[null,{"$f":"IF(C293=\"\",\"\",IF(COUNTIF($C$3:C293, C293)>1, \"\", C293))","v":""},{"$f":"IF(H293=\"\",\"\",CONCATENATE(DIGITADOR!$M$1,H293,E293))","v":""},"",{"$f":"IF(G293=\"\",\"\",VLOOKUP(G293,'Otras referencias'!$A$24:$E$48,2,FALSE))","v":""},null,null,null,null,null,null,null,null,null,null,{"$f":"IF(Q293=\"\",\"\",VLOOKUP(Q293,referentes!$K$2:$R$209,2,FALSE))","v":""}]
[null,{"$f":"IF(C294=\"\",\"\",IF(COUNTIF($C$3:C294, C294)>1, \"\", C294))","v":""},{"$f":"IF(H294=\"\",\"\",CONCATENATE(DIGITADOR!$M$1,H294,E294))","v":""},"",{"$f":"IF(G294=\"\",\"\",VLOOKUP(G294,'Otras referencias'!$A$24:$E$48,2,FALSE))","v":""},null,null,null,null,null,null,null,null,null,null,{"$f":"IF(Q294=\"\",\"\",VLOOKUP(Q294,referentes!$K$2:$R$209,2,FALSE))","v":""}]
[null,{"$f":"IF(C295=\"\",\"\",IF(COUNTIF($C$3:C295, C295)>1, \"\", C295))","v":""},{"$f":"IF(H295=\"\",\"\",CONCATENATE(DIGITADOR!$M$1,H295,E295))","v":""},"",{"$f":"IF(G295=\"\",\"\",VLOOKUP(G295,'Otras referencias'!$A$24:$E$48,2,FALSE))","v":""},null,null,null,null,null,null,null,null,null,null,{"$f":"IF(Q295=\"\",\"\",VLOOKUP(Q295,referentes!$K$2:$R$209,2,FALSE))","v":""}]
[null,{"$f":"IF(C296=\"\",\"\",IF(COUNTIF($C$3:C296, C296)>1, \"\", C296))","v":""},{"$f":"IF(H296=\"\",\"\",CONCATENATE(DIGITADOR!$M$1,H296,E296))","v":""},"",{"$f":"IF(G296=\"\",\"\",VLOOKUP(G296,'Otras referencias'!$A$24:$E$48,2,FALSE))","v":""},null,null,null,null,null,null,null,null,null,null,{"$f":"IF(Q296=\"\",\"\",VLOOKUP(Q296,referentes!$K$2:$R$209,2,FALSE))","v":""}]
[null,{"$f":"IF(C297=\"\",\"\",IF(COUNTIF($C$3:C297, C297)>1, \"\", C297))","v":""},{"$f":"IF(H297=\"\",\"\",CONCATENATE(DIGITADOR!$M$1,H297,E297))","v":""},"",{"$f":"IF(G297=\"\",\"\",VLOOKUP(G297,'Otras referencias'!$A$24:$E$48,2,FALSE))","v":""},null,null,null,null,null,null,null,null,null,null,{"$f":"IF(Q297=\"\",\"\",VLOOKUP(Q297,referentes!$K$2:$R$209,2,FALSE))","v":""}]
[null,{"$f":"IF(C298=\"\",\"\",IF(COUNTIF($C$3:C298, C298)>1, \"\", C298))","v":""},{"$f":"IF(H298=\"\",\"\",CONCATENATE(DIGITADOR!$M$1,H298,E298))","v":""},"",{"$f":"IF(G298=\"\",\"\",VLOOKUP(G298,'Otras referencias'!$A$24:$E$48,2,FALSE))","v":""},null,null,null,null,null,null,null,null,null,null,{"$f":"IF(Q298=\"\",\"\",VLOOKUP(Q298,referentes!$K$2:$R$209,2,FALSE))","v":""}]
[null,{"$f":"IF(C299=\"\",\"\",IF(COUNTIF($C$3:C299, C299)>1, \"\", C299))","v":""},{"$f":"IF(H299=\"\",\"\",CONCATENATE(DIGITADOR!$M$1,H299,E299))","v":""},"",{"$f":"IF(G299=\"\",\"\",VLOOKUP(G299,'Otras referencias'!$A$24:$E$48,2,FALSE))","v":""},null,null,null,null,null,null,null,null,null,null,{"$f":"IF(Q299=\"\",\"\",VLOOKUP(Q299,referentes!$K$2:$R$209,2,FALSE))","v":""}]
[null,{"$f":"IF(C300=\"\",\"\",IF(COUNTIF($C$3:C300, C300)>1, \"\", C300))","v":""},{"$f":"IF(H300=\"\",\"\",CONCATENATE(DIGITADOR!$M$1,H300,E300))","v":""},"",{"$f":"IF(G300=\"\",\"\",VLOOKUP(G300,'Otras referencias'!$A$24:$E$48,2,FALSE))","v":""},null,null,null,null,null,null,null,null,null,null,{"$f":"IF(Q300=\"\",\"\",VLOOKUP(Q300,referentes!$K$2:$R$209,2,FALSE))","v":""}]
[null,{"$f":"IF(C301=\"\",\"\",IF(COUNTIF($C$3:C301, C301)>1, \"\", C301))","v":""},{"$f":"IF(H301=\"\",\"\",CONCATENATE(DIGITADOR!$M$1,H301,E301))","v":""},"",{"$f":"IF(G301=\"\",\"\",VLOOKUP(G301,'Otras referencias'!$A$24:$E$48,2,FALSE))","v":""},null,null,null,null,null,null,null,null,null,null,{"$f":"IF(Q301=\"\",\"\",VLOOKUP(Q301,referentes!$K$2:$R$209,2,FALSE))","v":""}]
[null,{"$f":"IF(C302=\"\",\"\",IF(COUNTIF($C$3:C302, C302)>1, \"\", C302))","v":""},{"$f":"IF(H302=\"\",\"\",CONCATENATE(DIGITADOR!$M$1,H302,E302))","v":""},"",{"$f":"IF(G302=\"\",\"\",VLOOKUP(G302,'Otras referencias'!$A$24:$E$48,2,FALSE))","v":""},null,null,null,null,null,null,null,null,null,null,{"$f":"IF(Q302=\"\",\"\",VLOOKUP(Q302,referentes!$K$2:$R$209,2,FALSE))","v":""}]
[null,{"$f":"IF(C303=\"\",\"\",IF(COUNTIF($C$3:C303, C303)>1, \"\", C303))","v":""},{"$f":"IF(H303=\"\",\"\",CONCATENATE(DIGITADOR!$M$1,H303,E303))","v":""},"",{"$f":"IF(G303=\"\",\"\",VLOOKUP(G303,'Otras referencias'!$A$24:$E$48,2,FALSE))","v":""},null,null,null,null,null,null,null,null,null,null,{"$f":"IF(Q303=\"\",\"\",VLOOKUP(Q303,referentes!$K$2:$R$209,2,FALSE))","v":""}]

{"sheet":"referentes","index":4,"n_rows":209,"n_cols":32,"rows_kept":209,"cut":false,"hidden":false,"merged":[]}
["codigo","descripcion",null,"codigo","descripcion",null,"codigo","descripcion",null,null,"cod_letras","descripcion","clave_sibm","phylum","clase","orden","familia","genero",null,"secuencia_loc","prefijo_cdg_est_loc","codigo_estacion_loc","descripcion_estacion_loc","lugar",null,"codigo","nombre"]
["CORALINA","CORALINA",null,"SARA","Sparisoma radians",null,3343,"ANH Pastos Guajira Choco (3343)",null,null,"AAFE","Alphestes afer",null,"Chordata","Teleostei","Perciformes","Serranidae",null,null,57180,"AHUY",1,"MN-Ahuyama","Ahuyama",null,3907,"Ameth  Vargas Campo",null,null,null,"AD Pto. Moin C.R.","Administración Desarrollo Complejo Portuario  Limón Moin Costa Rica"]
["F. Malpelo","Fundacion Malpelo",null,"ABAH","Acanthurus bahianus",null,3422,"Coralina 02 2018 (3422)",null,null,"ABAH","Acanthurus bahianus","70.55.666","CHORDATA",null,null,"ACANTHURIDAE",null,null,43727,"BPOR",3,"MN-Bahía Portete","Bahía Portete",null,593,"Andrea Polanco",null,null,null,"ANADARKO","Anadarko Colombia Company"]
["INVEMAR","Instituto de Investigaciones Marinas y Costeras",null,"DAME","Dasyatis americana",null,"Monitoreo Pastos - BPIN","Monitoreo Pastos - BPIN (COD_ALFABETICO anterior: 3494)",null,null,"ACBE","Acyrtops beryllinus",null,"Chordata","Teleostei","Gobiesociformes","Gobiesocidae",null,null,48586,"BALL",1,"MN-Ballenas","Ballenas",null,4408,"Andres Felipe Acosta Chaparro",null,null,null,"AQUABIOSFERA","Aquabiosfera SAS"]
["ParquesNacionales","Parques Nacionales",null,"GERR","Gerres sp.",null,3304,"ANH Pastos Marinos. PRY-BEM-012-15_T2",null,null,"ACHI","Acanthurus chirurgus","70.55.667","Chordata","Teleostei","Acanthuriformes","Acanthuridae",null,null,48584,"CVEL",3,"MN-Cabo de la Vela","Cabo de la Vela",null,4109,"Angélica Rodríguez",null,null,null,"CALIDRIS","Asociación Calidris"]
["PNN_GORGONA","PNN_GORGONA",null,"HFLA","Haemulon flaviguttatus",null,null,null,null,null,"ACOE","Acanthurus coeruleus","70.55.668","Chordata","Teleostei","Acanthuriformes","Acanthuridae",null,null,49303,"CVNU",2,"MN-Cabo Nuevo","Cabo de la Vela",null,3956,"Carlos Aponte",null,null,null,"ASOCARS","Asociación de Corporaciones Autónomas Regionales"]
["UJTL","UJTL",null,"HMAC","Haemulon maculicauda",null,null,null,null,null,"ACYA","Azurina cyanea",null,"Chordata","Teleostei","Ovalentaria incertae sedis","Pomacentridae",null,null,57179,"CPLA",1,"MN-Cabo playa","Cabo playa",null,3147,"Christian Michael Díaz Sánchez",null,null,null,"ANLA","Autoridad Nacional de Licencias Ambientales"]
["UNal","Universidad Nacional",null,"RTRI","Rhinesomus triqueter",null,null,null,null,null,"AEGM","Ahlia egmontis",null,"Chordata","Teleostei","Anguilliformes","Ophichthidae",null,null,57178,"CARR",1,"MN-Carrizal","Carrizal",null,4407,"Cristian Camilo Salinas zapata",null,null,null,"ARAP","Autoridad de Recursos Acuáticos de Panamá"]
["UNIVALLE","Universidad del Valle",null,"CLUP","CLUPEIFORMES",null,null,null,null,null,"AMAC","Apogon maculatus","70.55.351","Chordata","Teleostei","Kurtiformes","Apogonidae",null,null,43120,"CHEN",2,"MN-Chengue","Chengue",null,3829,"Diana Carolina Ballesteros Contreras",null,null,null,"CWOP","Caribbean-Wide Orca Project"]
[null,null,null,"CARA","Caranx sp.",null,null,null,null,null,"AMUL","Azurina multilineata",null,"Chordata","Teleostei","Ovalentaria incertae sedis","Pomacentridae",null,null,43121,"CINT",3,"MN-Cinto","Cinto",null,1834,"Diana Isabel Gómez López",null,null,null,"CEAC","Centro de Estudios Ambientales de Cienfuegos"]
[null,null,null,"ELUS","Elacatinus sp.",null,null,null,null,null,"ANAR","Aetobatus narinari","70.55.40","Chordata","Elasmobranchii","Myliobatiformes","Myliobatidae",null,null,48964,"CCAY",1,"MN-Cotton Cay","Cotton Cay",null,3957,"Diana Vergara",null,null,null,"CECIMAR","Centro de Estudios en Ciencias del Mar - Universidad Nacional"]
[null,null,null,"HCHR","Haemulon chrysargyreum",null,null,null,null,null,"APOG","Apogon sp.","70.46.183","Chordata","Teleostei","Kurtiformes","Apogonidae",null,null,43118,"IMAN",2,"MN-Isla Mangle","Isla Mangle",null,1775,"Diego Duque",null,null,null,"CIEMAT","Centro de Investigaciones Energéticas, Medioambientales y Tecnológicas"]
[null,null,null,"HAEM","Haemulon sp.",null,null,null,null,null,"APOL","Acanthostracion polygonium","70.55.750","Chordata","Teleostei","Tetraodontiformes","Ostraciidae",null,null,43117,"IROS",1,"MN-Isla Rosario","Isla Rosario",null,3646,"Elizabeth Galeano Galeano",null,null,null,"CIOH","Centro de Investigaciones Oceanográficas e Hidrográficas"]
[null,null,null,"LUTJ","Lutjanus sp.",null,null,null,null,null,"AQUA","Acanthostracion quadricornis","70.55.751","Chordata","Teleostei","Tetraodontiformes","Ostraciidae",null,null,48966,"ISLE",1,"MN-Isleño","Isleño",null,3809,"Esteban Zarza",null,null,null,"C.C.C.P.","Centro de Investigaciones Oceanográficas e Hidrográficas del Pacífico"]
[null,null,null,"SCAR","Scarus sp.",null,null,null,null,null,"ARIV","Acanthemblemaria rivasi",null,"Chordata","Teleostei","Blenniiformes","Chaenopsidae",null,null,51465,"KAUR",1,"MN-Kaurrele","Manaure",null,4106,"Johana Vega",null,null,null,"CEINER","Centro de Investigación Educación y Recreación Islas del Rosario"]
[null,null,null,"SSPL","Sphoeroides spengleri",null,null,null,null,null,"ARRH","Archosargus rhomboidalis",null,"Chordata","Teleostei","Eupercaria incertae sedis","Sparidae",null,null,48585,"MANA",2,"MN-Manaure","Manaure",null,3905,"Juan David González Corredor",null,null,null,"CIRA","Centro de Investigación de los Recursos Acuáticos de Nicaragua (CIRA)"]
[null,null,null,"ASAX","Abudefduf saxatilis",null,null,null,null,null,"ASAX","Abudefduf saxatilis","70.55.513","Chordata","Teleostei","Ovalentaria incertae sedis","Pomacentridae",null,null,48965,"MARA",1,"MN-Marazul","Marazul",null,3505,"Juan Manuel Rodriguez Pineda",null,null,null,"CICA","Centro de Investigación en Contaminación Ambiental"]
[null,null,null,"ATAU","Abudefduf taurus",null,null,null,null,null,"ASCR","Aluterus scriptus","70.55.743","Chordata","Teleostei","Tetraodontiformes","Monacanthidae",null,null,43123,"MBAY",1,"MN-Mauricio Bay","Mauricio Bay",null,4409,"Karen Melissa Serna Rodriguez",null,null,null,"CRBMUV","Colección de Referencia Biología Marina Universidad del Valle"]
[null,null,null,"ARIV","Acanthemblemaria rivasi",null,null,null,null,null,"ASSP","Astrapogon sp.",null,"Chordata","Teleostei","Kurtiformes","Apogonidae",null,null,43119,"NEGU",1,"MN-Neguanje","Neguanje",null,4107,"Kelly Gómez",null,null,null,"Coleccion_Personal","Colección personal"]
[null,null,null,"APOL","Acanthostracion polygonium",null,null,null,null,null,"ASTI","Atherinomorus stipes",null,"Chordata","Teleostei","Atheriniformes","Atherinidae",null,null,43122,"OCRE",2,"MN-Oyster Creek","Oyster Creek",null,8265,"Kevin Samuel Moreno",null,null,null,"CPPS","Comisión Permanente del Pacífico Sur"]
[null,null,null,"AQUA","Acanthostracion quadricornis",null,null,null,null,null,"ASUR","Anisotremis surinamensis",null,"Chordata","Teleostei","Eupercaria incertae sedis","Haemulidae",null,null,48582,"PINO",2,"MN-Pinorroa","Pinorroa",null,5020,"Laura Alejandra Londoño",null,null,null,"CI","Conservación Internacional Colombia "]
[null,null,null,"ACHI","Acanthurus chirurgus",null,null,null,null,null,"ATAU","Abudefduf taurus","70.55.514","Chordata","Teleostei","Ovalentaria incertae sedis","Pomacentridae",null,null,52866,"PBLA",1,"MN-Playa Blanca-Barú","Playa Blanca-Barú (PNN Corales del Rosario y San Bernardo)",null,3647,"Laura Muñoz Escobar",null,null,null,"CONSULTOR","Consultor independiente "]
[null,null,null,"ACOE","Acanthurus coeruleus",null,null,null,null,null,"ATOW","Apogon townsendi",null,"Chordata","Teleostei","Kurtiformes","Apogonidae",null,null,48583,"TRIG",1,"MN-Trigana","Trigana",null,4227,"Laura Sanchez Valencia",null,null,null,"CMS","Consultoria y Monitoreo Ambiental"]
[null,null,null,"ATRA","Acanthurus tractus",null,null,null,null,null,"ATRA","Acanthurus tractus","70.55.666","Chordata","Teleostei","Acanthuriformes","Acanthuridae",null,null,null,null,null,null,null,null,3281,"Leonardo José Arias Alemán (2022)",null,null,null,"CVC","Corporacion  Autonoma Regional del Valle del Cauca"]
[null,null,null,"ACBE","Acyrtops beryllinus",null,null,null,null,null,"AUMA","Aulostomus maculatus","70.55.247","Chordata","Teleostei","Syngnathiformes","Aulostomidae",null,null,null,null,null,null,null,null,287,"Marcela Cano Correa",null,null,null,"CORPONARIÑO","Corporacion Autonoma Regional de Nariño"]
[null,null,null,"ANAR","Aetobatus narinari",null,null,null,null,null,"AVIR","Anisotremus virginicus","70.55.432","Chordata","Teleostei","Eupercaria incertae sedis","Haemulidae",null,null,null,null,null,null,null,null,5021,"Maria Juliana Vanegas Gonzalez",null,null,null,"CARSUCRE","Corporacion Autonoma Regional de Sucre"]
[null,null,null,"AEGM","Ahlia egmontis",null,null,null,null,null,"BAMA","Batrachoides manglae",null,"Chordata","Teleostei","Batrachoidiformes","Batrachoididae",null,null,null,null,null,null,null,null,3810,"Maria Paula Molina",null,null,null,"CRA","Corporacion Autonoma Regional del Atlàntico"]
[null,null,null,"AAFE","Alphestes afer",null,null,null,null,null,"BASO","Bathygobius soporator",null,"Chordata","Teleostei","Gobiiformes","Gobiidae",null,null,null,null,null,null,null,null,3401,"Maria del Pilar Parrado Cortes",null,null,null,"CARDIQUE","Corporacion Autonoma Regional del Canal del Dique"]
[null,null,null,"ASCR","Aluterus scriptus",null,null,null,null,null,"BASP","Bairdiella sp.",null,"Chordata","Teleostei","Eupercaria incertae sedis","Sciaenidae",null,null,null,null,null,null,null,null,3139,"Milena Marrugo",null,null,null,"CRC","Corporacion Autonoma Regional del Cauca"]
[null,null,null,"ASUR","Anisotremis surinamensis",null,null,null,null,null,"BCHR","Brachygenys chrysargyreum","70.55.439","Chordata","Teleostei","Eupercaria incertae sedis","Haemulidae",null,null,null,null,null,null,null,null,1809,"Raul Navas Camacho",null,null,null,"CODECHOCO","Corporacion para el Desarrollo Sostenible del Choco"]
[null,null,null,"AVIR","Anisotremus virginicus",null,null,null,null,null,"BLUN","Bothus lunatus","70.55.699","Chordata","Teleostei","Pleuronectiformes","Bothidae",null,null,null,null,null,null,null,null,4754,"Sandra Torres",null,null,null,"CORPOGUAJIRA","Corporación Autónoma Regional de la Guajira"]
[null,null,null,"AMAC","Apogon maculatus",null,null,null,null,null,"BMAC","Bothus maculiferus",null,"Chordata","Teleostei","Pleuronectiformes","Bothidae",null,null,null,null,null,null,null,null,4167,"Santiago Millan",null,null,null,"CORALINA","Corporación Autónoma Regional de las Islas de San Andrés, Providencia y Santa Catalina"]
[null,null,null,"APOG","Apogon sp.",null,null,null,null,null,"BOOC","Bothus ocellatus",null,"Chordata","Teleostei","Pleuronectiformes","Bothidae",null,null,null,null,null,null,null,null,5749,"Shanly Carolina Coneo Gómez",null,null,null,"CORPAMAG","Corporación Autónoma Regional del Magdalena"]
[null,null,null,"ATOW","Apogon townsendi",null,null,null,null,null,"BRDU","Bryx dunckeri",null,"Chordata","Teleostei","Syngnathiformes","Syngnathidae",null,null,null,null,null,null,null,null,4995,"Simon Robledo Cardona",null,null,null,"CORPOURABA","Corporación Autónoma Regional del Uraba"]
[null,null,null,"ARRH","Archosargus rhomboidalis",null,null,null,null,null,"BRON","Bairdiella ronchus",null,"Chordata","Teleostei","Eupercaria incertae sedis","Sciaenidae",null,null,null,null,null,null,null,null,4108,"Tomás López",null,null,null,"CVC-UNPA","Corporación Autónoma Regional del Valle del Cauca-Universidad del Pacifico"]
[null,null,null,"ASSP","Astrapogon sp.",null,null,null,null,null,"BRUF","Bodianus rufus","70.55.527","Chordata","Teleostei","Eupercaria incertae sedis","Labridae",null,null,null,null,null,null,null,null,6956,"Violeta Posada Riaño",null,null,null,"CORALINA OMACHA","Corporación Coralina - Fundación Omacha"]
[null,null,null,"ASTI","Atherinomorus stipes",null,null,null,null,null,"CALA","Calamus sp.",null,"Chordata","Teleostei","Eupercaria incertae sedis","Sparidae",null,null,null,null,null,null,null,null,8266,"Zulay Saudith González Herrera",null,null,null,"CORPOURABA - OMACHA","Corporación Corpouraba - Fundación Omacha"]
[null,null,null,"AUMA","Aulostomus maculatus",null,null,null,null,null,"CALB","Cosmocampus albirostris",null,"Chordata","Teleostei","Syngnathiformes","Syngnathidae",null,null,null,null,null,null,null,null,null,null,null,null,null,"CVS","Corporación Regional de Valle del Sinu y San Jorge"]
[null,null,null,"ACYA","Azurina cyanea",null,null,null,null,null,"CANT","Chilomycterus antennatus","70.55.765","Chordata","Teleostei","Tetraodontiformes","Diodontidae",null,null,null,null,null,null,null,null,null,null,null,null,null,"DADSA","DEPARTAMENT0 ADMiNISTRATIVO DISTRITAL DE SOSTENIBILIDAD AMBIENTAL"]
[null,null,null,"AMUL","Azurina multilineata",null,null,null,null,null,"CARA","Caranx sp.",null,null,null,null,null,null,null,null,null,null,null,null,null,null,null,null,null,null,"DAMARENA","Departamento Administrativo del Medio Ambiente de Cartagena -  EPA Cartagena"]
[null,null,null,"BRON","Bairdiella ronchus",null,null,null,null,null,"CBAI","Callionymus bairdi",null,"Chordata","Teleostei","Callionymiformes","Callionymidae",null,null,null,null,null,null,null,null,null,null,null,null,null,"DAMAB","Departamento Técnico Administrativo del Medio Ambiente Barranquilla"]
[null,null,null,"BASP","Bairdiella sp.",null,null,null,null,null,"CBAR","Caranx bartholomaei","70.55.375","Chordata","Teleostei","Carangiformes","Carangidae",null,null,null,null,null,null,null,null,null,null,null,null,null,"DIMAR","Dirección General Maritima"]
[null,null,null,"BASO","Bathygobius soporator",null,null,null,null,null,"CCAP","Chaetodon capistratus","70.55.500","Chordata","Teleostei","Acanthuriformes","Chaetodontidae",null,null,null,null,null,null,null,null,null,null,null,null,null,"ECOREEF","ECOREEF Colombia LTDA"]
[null,null,null,"BAMA","Batrachoides manglae",null,null,null,null,null,"CCHY","Chloroscombrus chrysurus",null,"Chordata","Teleostei","Carangiformes","Carangidae",null,null,null,null,null,null,null,null,null,null,null,null,null,"ETH Zurich","EIDGENÖSSISCHE TECHNISCHE HOCHSCHULE ZÜRICH (Politécnico)\r\r\nEIDGENÖSSISCHE TECHNISCHE HOCHSCHULE ZÜRICH"]
[null,null,null,"BRUF","Bodianus rufus",null,null,null,null,null,"CCRU","Cephalopholis cruentata","70.55.283","Chordata","Teleostei","Perciformes","Serranidae",null,null,null,null,null,null,null,null,null,null,null,null,null,"ECOMAR","Ecomar Consultoría  Ambiental S.A.S."]
[null,null,null,"BLUN","Bothus lunatus",null,null,null,null,null,"CCRY","Caranx crysos","70.55.376","Chordata","Teleostei","Carangiformes","Carangidae",null,null,null,null,null,null,null,null,null,null,null,null,null,"EPA BARRANQUILLA","Establecimiento Publico Ambiental Barranquilla"]
[null,null,null,"BMAC","Bothus maculiferus",null,null,null,null,null,"CHSP","Chaenopsis sp.",null,"Chordata","Teleostei","Blenniiformes","Chaenopsidae",null,null,null,null,null,null,null,null,null,null,null,null,null,"EPA BUENAVENTURA","Establecimiento Publico Ambiental Buenaventura"]
[null,null,null,"BOOC","Bothus ocellatus",null,null,null,null,null,"CLIM","Chaenopsis limbaughi",null,"Chordata","Teleostei","Blenniiformes","Chaenopsidae",null,null,null,null,null,null,null,null,null,null,null,null,null,"EPA CARTAGENA","Establecimiento Publico Ambiental Cartagena"]
[null,null,null,"BCHR","Brachygenys chrysargyreum",null,null,null,null,null,"CLUP","CLUPEIFORMES","70.18.200","CHORDATA",null,"CLUPEIFORMES",null,null,null,null,null,null,null,null,null,null,null,null,null,null,"ZOOCALI","FUNDACIÓN ZOOLÓGICA DE CALI"]
[null,null,null,"BRDU","Bryx dunckeri",null,null,null,null,null,"COCE","Chaetodon ocellatus",null,"Chordata","Teleostei","Acanthuriformes","Chaetodontidae",null,null,null,null,null,null,null,null,null,null,null,null,null,"Fundabas","Fundacion Para El Desarrollo De La Biologia Aplicada"]
[null,null,null,"CPEN","Calamus pennatula",null,null,null,null,null,"CODI","Coryphopterus dicrus",null,"Chordata","Teleostei","Gobiiformes","Gobiidae",null,null,null,null,null,null,null,null,null,null,null,null,null,"F. Bucea Colombia","Fundación Bucea Colombia"]
[null,null,null,"CALA","Calamus sp.",null,null,null,null,null,"COEL","Cosmocampus elucens",null,"Chordata","Teleostei","Syngnathiformes","Syngnathidae",null,null,null,null,null,null,null,null,null,null,null,null,null,"F.CORALES","Fundación Corales de Paz"]
[null,null,null,"CBAI","Callionymus bairdi",null,null,null,null,null,"CORY","Coryphopterus sp.","70.46.318","Chordata","Teleostei","Gobiiformes","Gobiidae",null,null,null,null,null,null,null,null,null,null,null,null,null,"F. Malpelo","Fundación Malpelo / Marviva"]
[null,null,null,"CROS","Canthigaster rostrata",null,null,null,null,null,"CPEN","Calamus pennatula",null,"Chordata","Teleostei","Eupercaria incertae sedis","Sparidae",null,null,null,null,null,null,null,null,null,null,null,null,null,"OMACHA","Fundación Omacha"]
[null,null,null,"CBAR","Caranx bartholomaei",null,null,null,null,null,"CPER","Coryphopterus personatus","70.55.623","Chordata","Teleostei","Gobiiformes","Gobiidae",null,null,null,null,null,null,null,null,null,null,null,null,null,"OMACHA - OFM","Fundación Omacha - Observadores Fauna Marina"]
[null,null,null,"CCRY","Caranx crysos",null,null,null,null,null,"CROS","Canthigaster rostrata","70.55.755","Chordata","Teleostei","Tetraodontiformes","Tetraodontidae",null,null,null,null,null,null,null,null,null,null,null,null,null,"OMACHA - OFM - AQUAB","Fundación Omacha - Observadores Fauna Marina - Aquabiosfera"]
[null,null,null,"CRUB","Caranx ruber",null,null,null,null,null,"CRRO","Cryptotomus roseus","70.55.541","Chordata","Teleostei","Eupercaria incertae sedis","Scaridae",null,null,null,null,null,null,null,null,null,null,null,null,null,"Sila Kangama","Fundación Sila Kangama"]
[null,null,null,"CCRU","Cephalopholis cruentata",null,null,null,null,null,"CRUB","Caranx ruber","70.55.379","Chordata","Teleostei","Carangiformes","Carangidae",null,null,null,null,null,null,null,null,null,null,null,null,null,"CIAA-UJTL","Fundación Universidad Jorge Tadeo Lozano - Centro de Investigaciones y Asesorías Agroindustriales,"]
[null,null,null,"CLIM","Chaenopsis limbaughi",null,null,null,null,null,"CSAE","Ctenogobius saepepallens",null,"Chordata","Teleostei","Gobiiformes","Gobiidae",null,null,null,null,null,null,null,null,null,null,null,null,null,"UJTL","Fundación Universidad de Bogotá Jorge Tadeo Lozano"]
[null,null,null,"CHSP","Chaenopsis sp.",null,null,null,null,null,"CSTR","Chaetodon striatus","70.55.503","Chordata","Teleostei","Acanthuriformes","Chaetodontidae",null,null,null,null,null,null,null,null,null,null,null,null,null,"CERG","Geochemical & Environmental Research Group"]
[null,null,null,"CCAP","Chaetodon capistratus",null,null,null,null,null,"CVEN","Coryphopterus glaucofraenum","70.55.620","Chordata","Teleostei","Gobiiformes","Gobiidae",null,null,null,null,null,null,null,null,null,null,null,null,null,"IED_San José","INSTITUCIÓN EDUCATIVA DEPARTAMENTAL SAN JOSÉ"]
[null,null,null,"COCE","Chaetodon ocellatus",null,null,null,null,null,"DAME","Dasyatis americana","70.55.34",null,null,null,null,null,null,null,null,null,null,null,null,null,null,null,null,null,"IRD","Institut de Recherche pour le Developpement"]
[null,null,null,"CSTR","Chaetodon striatus",null,null,null,null,null,"DFOR","Diplectrum formosum",null,"Chordata","Teleostei","Perciformes","Serranidae",null,null,null,null,null,null,null,null,null,null,null,null,null,"COLCIENCIAS","Instituto Colombiano para el Desarrollo de la Ciencia y la Tecnología"]
[null,null,null,"CANT","Chilomycterus antennatus",null,null,null,null,null,"DHYS","Diodon hystrix","70.55.768","Chordata","Teleostei","Tetraodontiformes","Diodontidae",null,null,null,null,null,null,null,null,null,null,null,null,null,"ICAL","Instituto Colombo Alemán de Investigaciones Científicas de Punta de Betín"]
[null,null,null,"CCHY","Chloroscombrus chrysurus",null,null,null,null,null,"DIHO","Diodon holocanthus","70.55.767","Chordata","Teleostei","Tetraodontiformes","Diodontidae",null,null,null,null,null,null,null,null,null,null,null,null,null,"INVEMAR - OMACHA","Instituto INVEMAR - Fundación Omacha"]
[null,null,null,"CODI","Coryphopterus dicrus",null,null,null,null,null,"DIPL","Diplectrum sp.",null,"Chordata","Teleostei","Perciformes","Serranidae",null,null,null,null,null,null,null,null,null,null,null,null,null,"INDERENA","Instituto Nacional de los Recursos Naturales Renovables y del Ambiente"]
[null,null,null,"CVEN","Coryphopterus glaucofraenum",null,null,null,null,null,"DISP","Diplogrammus sp.",null,"Chordata","Teleostei","Callionymiformes","Callionymidae",null,null,null,null,null,null,null,null,null,null,null,null,null,"ICML","Instituto de Ciencias del Mar y Limnología (ICML)"]
[null,null,null,"CPER","Coryphopterus personatus",null,null,null,null,null,"DOME","Doratonotus megalepis",null,"Chordata","Teleostei","Eupercaria incertae sedis","Labridae",null,null,null,null,null,null,null,null,null,null,null,null,null,"IIAP","Instituto de Investigaciones Ambientales del Pacifico"]
[null,null,null,"CORY","Coryphopterus sp.",null,null,null,null,null,"DPAU","Diplogrammus pauciradiatus",null,"Chordata","Teleostei","Callionymiformes","Callionymidae",null,null,null,null,null,null,null,null,null,null,null,null,null,"INVEMAR","Instituto de Investigaciones Marinas y Costeras"]
[null,null,null,"CALB","Cosmocampus albirostris",null,null,null,null,null,"DVOL","Dactylopterus volitans",null,"Chordata","Teleostei","Dactylopteriformes","Dactylopteridae",null,null,null,null,null,null,null,null,null,null,null,null,null,"INVEMAR-AGR","Instituto de Investigaciones Marinas y Costeras - AGR"]
[null,null,null,"COEL","Cosmocampus elucens",null,null,null,null,null,"ECAT","Echidna catenata","70.55.58","Chordata","Teleostei","Anguilliformes","Muraenidae",null,null,null,null,null,null,null,null,null,null,null,null,null,"INVEMAR-BVT","Instituto de Investigaciones Marinas y Costeras - BVT"]
[null,null,null,"CRRO","Cryptotomus roseus",null,null,null,null,null,"EILL","Elacatinus illecebrosus","70.55.628","Chordata","Teleostei","Gobiiformes","Gobiidae",null,null,null,null,null,null,null,null,null,null,null,null,null,"INVEMAR-CPT","Instituto de Investigaciones Marinas y Costeras - CPT"]
[null,null,null,"CSAE","Ctenogobius saepepallens",null,null,null,null,null,"ELAC","Elacatinus sp.","70.46.319","Chordata","Teleostei","Gobiiformes","Gobiidae",null,null,null,null,null,null,null,null,null,null,null,null,null,"IAvH","Instituto de Investigación Recursos Biológicos Alexander von Humboldt"]
[null,null,null,"DVOL","Dactylopterus volitans",null,null,null,null,null,"ELAN","Eques lanceolatus","70.55.469","Chordata","Teleostei","Eupercaria incertae sedis","Sciaenidae",null,null,null,null,null,null,null,null,null,null,null,null,null,"IDO_Cuba","Instituto de Oceanologia Cuba"]
[null,null,null,"DIHO","Diodon holocanthus",null,null,null,null,null,"ELUS","Elacatinus sp.","70.46.319","CHORDATA",null,null,"GOBIIDAE",null,null,null,null,null,null,null,null,null,null,null,null,null,"IATTC","Inter-American Tropical Tuna Commission"]
[null,null,null,"DHYS","Diodon hystrix",null,null,null,null,null,"ENAU","Echeneis naucrates",null,"Chordata","Teleostei","Carangiformes","Echeneidae",null,null,null,null,null,null,null,null,null,null,null,null,null,"LABORMAR","Laboratorio Microbiológico Ortiz Martinez "]
[null,null,null,"DFOR","Diplectrum formosum",null,null,null,null,null,"ENEU","Echeneis neucratoides","70.55.369","Chordata","Teleostei","Carangiformes","Echeneidae",null,null,null,null,null,null,null,null,null,null,null,null,null,"Literature report","Literature report"]
[null,null,null,"DIPL","Diplectrum sp.",null,null,null,null,null,"EPUN","Equetus punctatus","70.55.470","Chordata","Teleostei","Eupercaria incertae sedis","Sciaenidae",null,null,null,null,null,null,null,null,null,null,null,null,null,"MCS Consultoría","MCS Consultoría y Monitoreo ambiental S.A.S"]
[null,null,null,"DPAU","Diplogrammus pauciradiatus",null,null,null,null,null,"ESTR","Epinephelus striatus","70.55.296","Chordata","Teleostei","Perciformes","Serranidae",null,null,null,null,null,null,null,null,null,null,null,null,null,"MAKARELA","Makarela S.A.S"]
[null,null,null,"DISP","Diplogrammus sp.",null,null,null,null,null,"EUSP","Eucinostomus sp.",null,"Chordata","Teleostei","Eupercaria incertae sedis","Gerreidae",null,null,null,null,null,null,null,null,null,null,null,null,null,"MHNMC","Makuriwa - Museo de Historia Natural Marina de Colombia"]
[null,null,null,"DOME","Doratonotus megalepis",null,null,null,null,null,"FTAB","Fistularia tabacaria","70.55.249","Chordata","Teleostei","Syngnathiformes","Fistulariidae",null,null,null,null,null,null,null,null,null,null,null,null,null,"MMU","Manchester Metropolitan University"]
[null,null,null,"ENAU","Echeneis naucrates",null,null,null,null,null,"GCIN","Gerres cinereus",null,"Chordata","Teleostei","Eupercaria incertae sedis","Gerreidae",null,null,null,null,null,null,null,null,null,null,null,null,null,"M_P","Marine & Port Consultants"]
[null,null,null,"ENEU","Echeneis neucratoides",null,null,null,null,null,"GCIR","Ginglymostoma cirratum","70.55.1","Chordata","Elasmobranchii","Orectolobiformes","Ginglymostomatidae",null,null,null,null,null,null,null,null,null,null,null,null,null,"IAEA-MEL","Marine Environment Laboratories"]
[null,null,null,"ECAT","Echidna catenata",null,null,null,null,null,"GERR","Gerres sp.","70.46.218","CHORDATA",null,null,"GERREIDAE",null,null,null,null,null,null,null,null,null,null,null,null,null,"MINCIENCIAS","Ministerio de Ciencia, Tecnología e Innovación"]
[null,null,null,"EILL","Elacatinus illecebrosus",null,null,null,null,null,"GMIL","Gymnothorax miliaris","70.55.64","Chordata","Teleostei","Anguilliformes","Muraenidae",null,null,null,null,null,null,null,null,null,null,null,null,null,"MA","Ministerio del Ambiente Haiti"]
[null,null,null,"ELAC","Elacatinus sp.",null,null,null,null,null,"GMOR","Gymnothorax moringa","70.55.65","Chordata","Teleostei","Anguilliformes","Muraenidae",null,null,null,null,null,null,null,null,null,null,null,null,null,"MADS","Ministerio del Ambiente y Desarrollo Sostenible"]
[null,null,null,"ESTR","Epinephelus striatus",null,null,null,null,null,"GOSP","Gobionellus sp.",null,"Chordata","Teleostei","Gobiiformes","Gobiidae",null,null,null,null,null,null,null,null,null,null,null,null,null,"MINAMBIENTE","Ministerio del Ambiente y Desarrollo Sostenible"]
[null,null,null,"ELAN","Eques lanceolatus",null,null,null,null,null,"GTHO","Gnatholepis thompsoni","70.55.635","Chordata","Teleostei","Gobiiformes","Gobiidae",null,null,null,null,null,null,null,null,null,null,null,null,null,"MHN-UC","Museo Historia Natural Universidad del Cauca"]
[null,null,null,"EPUN","Equetus punctatus",null,null,null,null,null,"GVIC","Gymnothorax vicinus","70.55.67","Chordata","Teleostei","Anguilliformes","Muraenidae",null,null,null,null,null,null,null,null,null,null,null,null,null,"MZUSP","Museu de Zoologia da Universidade de São Paulo"]
[null,null,null,"EUSP","Eucinostomus sp.",null,null,null,null,null,"HADS","Holocentrus adscensionis","70.55.225","Chordata","Teleostei","Holocentriformes","Holocentridae",null,null,null,null,null,null,null,null,null,null,null,null,null,"NOAA FISHERIES","NOAA Southwest Fisheries Science Center"]
[null,null,null,"FTAB","Fistularia tabacaria",null,null,null,null,null,"HAEM","Haemulon sp.","70.46.221","CHORDATA",null,null,"HAEMULIDAE",null,null,null,null,null,null,null,null,null,null,null,null,null,"NEPA","National Environment and Planning Agency"]
[null,null,null,"GCIN","Gerres cinereus",null,null,null,null,null,"HALC","Halichoeres sp.","70.46.269","Chordata","Teleostei","Eupercaria incertae sedis","Labridae",null,null,null,null,null,null,null,null,null,null,null,null,null,"NOAA","National Oceanic and Atmospheric Administration"]
[null,null,null,"GCIR","Ginglymostoma cirratum",null,null,null,null,null,"HAMA","Halichoeres maculipinna","70.55.534","Chordata","Teleostei","Eupercaria incertae sedis","Labridae",null,null,null,null,null,null,null,null,null,null,null,null,null,"OBIMAR","OBIMAR. Empresa Portuaria Quetzal"]
[null,null,null,"GTHO","Gnatholepis thompsoni",null,null,null,null,null,"HAME","Hypanus americanus","70.55.34","Chordata","Elasmobranchii","Myliobatiformes","Dasyatidae",null,null,null,null,null,null,null,null,null,null,null,null,null,"OBIS-SEAMAP","OBIS-SEAMAP"]
[null,null,null,"GOSP","Gobionellus sp.",null,null,null,null,null,"HAUR","Haemulon aurolineatum","70.55.435","Chordata","Teleostei","Eupercaria incertae sedis","Haemulidae",null,null,null,null,null,null,null,null,null,null,null,null,null,"OBIS","Ocean Biogeographic Information System"]
[null,null,null,"GMIL","Gymnothorax miliaris",null,null,null,null,null,"HBIV","Halichoeres bivittatus",null,"Chordata","Teleostei","Eupercaria incertae sedis","Labridae",null,null,null,null,null,null,null,null,null,null,null,null,null,"OIR","Oceanario de las Islas del Rosario - CEINER"]
[null,null,null,"GMOR","Gymnothorax moringa",null,null,null,null,null,"HBON","Haemulon bonariense","70.55.436","Chordata","Teleostei","Eupercaria incertae sedis","Haemulidae",null,null,null,null,null,null,null,null,null,null,null,null,null,"OIEA","Orgánismo Internacional de Energía Atómica"]
[null,null,null,"GVIC","Gymnothorax vicinus",null,null,null,null,null,"HCHR","Haemulon chrysargyreum","70.55.439","CHORDATA",null,null,"HAEMULIDAE",null,null,null,null,null,null,null,null,null,null,null,null,null,"PNN_GORGONA","Parque Nacional Natural Gorgona"]
[null,null,null,"HAUR","Haemulon aurolineatum",null,null,null,null,null,"HCIL","Holacanthus ciliaris","70.55.506","Chordata","Teleostei","Acanthuriformes","Pomacanthidae",null,null,null,null,null,null,null,null,null,null,null,null,null,"UAESPNN","Parques Nacionales Naturales de Colombia"]
[null,null,null,"HBON","Haemulon bonariense",null,null,null,null,null,"HCLU","Harengula clupeola",null,"Chordata","Teleostei","Clupeiformes","Dorosomatidae",null,null,null,null,null,null,null,null,null,null,null,null,null,"PNN","Parques Nacionales Naturales de Colombia "]
[null,null,null,"HFLO","Haemulon flavolineatum",null,null,null,null,null,"HFLA","Haemulon flaviguttatus","70.55.3236","CHORDATA",null,null,"HAEMULIDAE",null,null,null,null,null,null,null,null,null,null,null,null,null,"PARTICULAR","Particular"]
[null,null,null,"HMEL","Haemulon melanurum",null,null,null,null,null,"HFLO","Haemulon flavolineatum","70.55.3236","Chordata","Teleostei","Eupercaria incertae sedis","Haemulidae",null,null,null,null,null,null,null,null,null,null,null,null,null,"PUJ","Pontificia Universidad Javeriana"]
[null,null,null,"HPLU","Haemulon plumierii",null,null,null,null,null,"HGAR","Halichoeres garnoti",null,"Chordata","Teleostei","Eupercaria incertae sedis","Labridae",null,null,null,null,null,null,null,null,null,null,null,null,null,"RAC-CIMAB","RAC-CIMAB"]
[null,null,null,"HSCI","Haemulon sciurus",null,null,null,null,null,"HHUM","Harengula humeralis","70.55.125","Chordata","Teleostei","Clupeiformes","Dorosomatidae",null,null,null,null,null,null,null,null,null,null,null,null,null,"REPSOL","Repsol Exploración Colombia S.A."]
[null,null,null,"HBIV","Halichoeres bivittatus",null,null,null,null,null,"HMAC","Haemulon maculicauda","70.55.2731","CHORDATA",null,null,"HAEMULIDAE",null,null,null,null,null,null,null,null,null,null,null,null,null,"SERNA","Secretaría de Recursos Naturales y Ambiente (SERNA)/Centro de Estudios y Control de Contaminantes (CESCCO)"]
[null,null,null,"HGAR","Halichoeres garnoti",null,null,null,null,null,"HMEL","Haemulon melanurum","70.55.442","Chordata","Teleostei","Eupercaria incertae sedis","Haemulidae",null,null,null,null,null,null,null,null,null,null,null,null,null,"SERAMBIENTE","Servicios de Ingeniería Ambiental"]
[null,null,null,"HAMA","Halichoeres maculipinna",null,null,null,null,null,"HNIG","Hypoplectrus nigricans","70.55.300","Chordata","Teleostei","Perciformes","Serranidae",null,null,null,null,null,null,null,null,null,null,null,null,null,"SEPC","Shell Exploration & Production Colombia GMBH"]
[null,null,null,"HPIC","Halichoeres pictus",null,null,null,null,null,"HPIC","Halichoeres pictus","70.55.535","Chordata","Teleostei","Eupercaria incertae sedis","Labridae",null,null,null,null,null,null,null,null,null,null,null,null,null,"NMHN Smithsonian","Smithsonian Institution"]
[null,null,null,"HPOE","Halichoeres poeyi",null,null,null,null,null,"HPLU","Haemulon plumierii","70.55.444","Chordata","Teleostei","Eupercaria incertae sedis","Haemulidae",null,null,null,null,null,null,null,null,null,null,null,null,null,"SPRC - CNR","Sociedad Portuaria Rio Cordoba - Colombian Natural Resources S.A.S."]
[null,null,null,"HRAD","Halichoeres radiatus",null,null,null,null,null,"HPOE","Halichoeres poeyi","70.55.536","Chordata","Teleostei","Eupercaria incertae sedis","Labridae",null,null,null,null,null,null,null,null,null,null,null,null,null,"SPSM","Sociedad Portuaria de Santa Marta"]
[null,null,null,"HALC","Halichoeres sp.",null,null,null,null,null,"HPUE","Hypoplectrus puella","70.55.301","Chordata","Teleostei","Perciformes","Serranidae",null,null,null,null,null,null,null,null,null,null,null,null,null,"UPR Humacao","UNIVERSIDAD DE PUERTO RICO EN HUMACAO"]
[null,null,null,"HCLU","Harengula clupeola",null,null,null,null,null,"HRAD","Halichoeres radiatus","70.55.537","Chordata","Teleostei","Eupercaria incertae sedis","Labridae",null,null,null,null,null,null,null,null,null,null,null,null,null,"UR Camelia, IRD","UR Camelia, IRD"]
[null,null,null,"HHUM","Harengula humeralis",null,null,null,null,null,"HREI","Hippocampus reidi",null,"Chordata","Teleostei","Syngnathiformes","Syngnathidae",null,null,null,null,null,null,null,null,null,null,null,null,null,"UNEP CAR/RCU","United Nations Environment Programme - Caribbean Regional Coordinating Unit"]
[null,null,null,"HREI","Hippocampus reidi",null,null,null,null,null,"HRUF","Holocentrus rufus","70.55.226","Chordata","Teleostei","Holocentriformes","Holocentridae",null,null,null,null,null,null,null,null,null,null,null,null,null,"UASD","Universidad Autónoma de Santo Domingo"]
[null,null,null,"HCIL","Holacanthus ciliaris",null,null,null,null,null,"HSCH","Styracura schmardae",null,"Chordata","Elasmobranchii","Myliobatiformes","Potamotrygonidae",null,null,null,null,null,null,null,null,null,null,null,null,null,"UFB","Universidad Federal de Bahía"]
[null,null,null,"HADS","Holocentrus adscensionis",null,null,null,null,null,"HSCI","Haemulon sciurus","70.55.445","Chordata","Teleostei","Eupercaria incertae sedis","Haemulidae",null,null,null,null,null,null,null,null,null,null,null,null,null,"UJTL-MM","Universidad Jorje Tadeo Lozano-Museo del Mar"]
[null,null,null,"HRUF","Holocentrus rufus",null,null,null,null,null,"JENK","Jenkinsia sp.","70.46.79","Chordata","Teleostei","Clupeiformes","Spratelloididae",null,null,null,null,null,null,null,null,null,null,null,null,null,"UNMSM","Universidad Nacional Mayor de San Marcos"]
[null,null,null,"HAME","Hypanus americanus",null,null,null,null,null,"LABR","Labrisomus sp.","70.46.284","Chordata","Teleostei","Blenniiformes","Labrisomidae",null,null,null,null,null,null,null,null,null,null,null,null,null,"UNal","Universidad Nacional de Colombia"]
[null,null,null,"HNIG","Hypoplectrus nigricans",null,null,null,null,null,"LANA","Lutjanus analis","70.55.406","Chordata","Teleostei","Eupercaria incertae sedis","Lutjanidae",null,null,null,null,null,null,null,null,null,null,null,null,null,"USB","Universidad Simón Bolivar"]
[null,null,null,"HPUE","Hypoplectrus puella",null,null,null,null,null,"LAPO","Lutjanus apodus","70.55.407","Chordata","Teleostei","Eupercaria incertae sedis","Lutjanidae",null,null,null,null,null,null,null,null,null,null,null,null,null,"UDEA","Universidad de Antioquia"]
[null,null,null,"JENK","Jenkinsia sp.",null,null,null,null,null,"LCYP","Lophogobius cyprinoides",null,"Chordata","Teleostei","Gobiiformes","Gobiidae",null,null,null,null,null,null,null,null,null,null,null,null,null,"UJTL-FCM","Universidad de Bogotá Jorge Tadeo Lozano, Fac. de Ciencias Naturales e Ingenieria"]
[null,null,null,"LNUC","Labrisomus nuchipinnis",null,null,null,null,null,"LGRI","Lutjanus griseus","70.55.410","Chordata","Teleostei","Eupercaria incertae sedis","Lutjanidae",null,null,null,null,null,null,null,null,null,null,null,null,null,"UCartagena","Universidad de Cartagena"]
[null,null,null,"LABR","Labrisomus sp.",null,null,null,null,null,"LJOC","Lutjanus jocu","70.55.411","Chordata","Teleostei","Eupercaria incertae sedis","Lutjanidae",null,null,null,null,null,null,null,null,null,null,null,null,null,"UCO","Universidad de Córdoba"]
[null,null,null,"LTRG","Lactophrys trigonus",null,null,null,null,null,"LNUC","Labrisomus nuchipinnis",null,"Chordata","Teleostei","Blenniiformes","Labrisomidae",null,null,null,null,null,null,null,null,null,null,null,null,null,"UF","Universidad de Florida"]
[null,null,null,"LTRI","Lactophrys triqueter",null,null,null,null,null,"LSYN","Lutjanus synagris","70.55.414","Chordata","Teleostei","Eupercaria incertae sedis","Lutjanidae",null,null,null,null,null,null,null,null,null,null,null,null,null,"UniGie","Universidad de Giessen"]
[null,null,null,"LCYP","Lophogobius cyprinoides",null,null,null,null,null,"LTRG","Lactophrys trigonus",null,"Chordata","Teleostei","Tetraodontiformes","Ostraciidae",null,null,null,null,null,null,null,null,null,null,null,null,null,"UNIBAGUE","Universidad de Ibague"]
[null,null,null,"LANA","Lutjanus analis",null,null,null,null,null,"LTRI","Lactophrys triqueter",null,"Chordata","Teleostei","Tetraodontiformes","Ostraciidae",null,null,null,null,null,null,null,null,null,null,null,null,null,"UDES","Universidad de La Sabana"]
[null,null,null,"LAPO","Lutjanus apodus",null,null,null,null,null,"LUTJ","Lutjanus sp.","70.46.210","CHORDATA",null,null,"LUTJANIDAE",null,null,null,null,null,null,null,null,null,null,null,null,null,"UDO - NS","Universidad de Oriente - Núcleo de Sucre"]
[null,null,null,"LGRI","Lutjanus griseus",null,null,null,null,null,"MASP","Malacoctenus sp.","70.46.285","Chordata","Teleostei","Blenniiformes","Labrisomidae",null,null,null,null,null,null,null,null,null,null,null,null,null,"UNIGUAJIRA","Universidad de la Guajira"]
[null,null,null,"LJOC","Lutjanus jocu",null,null,null,null,null,"MBIR","Mobula birostris","70.55.41","Chordata","Elasmobranchii","Myliobatiformes","Myliobatidae",null,null,null,null,null,null,null,null,null,null,null,null,null,"UniMagdalena","Universidad del Magdalena"]
[null,null,null,"LSYN","Lutjanus synagris",null,null,null,null,null,"MBON","Mycteroperca bonaci","70.55.306","Chordata","Teleostei","Perciformes","Serranidae",null,null,null,null,null,null,null,null,null,null,null,null,null,"UNINORTE","Universidad del Norte"]
[null,null,null,"MERD","Malacoctenus erdmani",null,null,null,null,null,"MBRE","Myrichthys ocellatus",null,"Chordata","Teleostei","Anguilliformes","Ophichthidae",null,null,null,null,null,null,null,null,null,null,null,null,null,"UPacifico","Universidad del Pacífico"]
[null,null,null,"MGIL","Malacoctenus gilli",null,null,null,null,null,"MCHR","Microspathodon chrysurus","70.55.519","Chordata","Teleostei","Ovalentaria incertae sedis","Pomacentridae",null,null,null,null,null,null,null,null,null,null,null,null,null,"UT","Universidad del Tolima"]
[null,null,null,"MMAC","Malacoctenus macropus",null,null,null,null,null,"MCUR","Mugil curema",null,"Chordata","Teleostei","Mugiliformes","Mugilidae",null,null,null,null,null,null,null,null,null,null,null,null,null,"UNIVALLE","Universidad del Valle"]
[null,null,null,"MASP","Malacoctenus sp.",null,null,null,null,null,"MERD","Malacoctenus erdmani",null,"Chordata","Teleostei","Blenniiformes","Labrisomidae",null,null,null,null,null,null,null,null,null,null,null,null,null,"UC","Universidae do Cerá, Estaçao de Biologia Marinha"]
[null,null,null,"MTRI","Malacoctenus triangulatus",null,null,null,null,null,"MGIL","Malacoctenus gilli",null,"Chordata","Teleostei","Blenniiformes","Labrisomidae",null,null,null,null,null,null,null,null,null,null,null,null,null,"UNH","University of New Hampshire"]
[null,null,null,"MSIG","Microgobius signatus",null,null,null,null,null,"MICR","Microgobius sp.",null,"Chordata","Teleostei","Gobiiformes","Gobiidae",null,null,null,null,null,null,null,null,null,null,null,null,null,"UM Francia","Université de Montpellier"]
[null,null,null,"MICR","Microgobius sp.",null,null,null,null,null,"MJAC","Myripristis jacobus","70.55.227","Chordata","Teleostei","Holocentriformes","Holocentridae",null,null,null,null,null,null,null,null,null,null,null,null,null,"VIMS-SI","Virginia Institute of Marine Science / Smithsonian Institution"]
[null,null,null,"MCHR","Microspathodon chrysurus",null,null,null,null,null,"MLIZ","Mugil liza",null,"Chordata","Teleostei","Mugiliformes","Mugilidae",null,null,null,null,null,null,null,null,null,null,null,null,null,"WCS","Wildlife Conservation Society"]
[null,null,null,"MBIR","Mobula birostris",null,null,null,null,null,"MMAC","Malacoctenus macropus",null,"Chordata","Teleostei","Blenniiformes","Labrisomidae"]
[null,null,null,"MOCI","Monacanthus ciliatus",null,null,null,null,null,"MMAR","Mulloidichthys martinicus","70.55.494","Chordata","Teleostei","Mulliformes","Mullidae"]
[null,null,null,"MTUC","Monacanthus tuckeri",null,null,null,null,null,"MOCE","Myrichthys breviceps",null,"Chordata","Teleostei","Anguilliformes","Ophichthidae"]
[null,null,null,"MCUR","Mugil curema",null,null,null,null,null,"MOCI","Monacanthus ciliatus",null,"Chordata","Teleostei","Tetraodontiformes","Monacanthidae"]
[null,null,null,"MLIZ","Mugil liza",null,null,null,null,null,"MSIG","Microgobius signatus",null,"Chordata","Teleostei","Gobiiformes","Gobiidae"]
[null,null,null,"MMAR","Mulloidichthys martinicus",null,null,null,null,null,"MTRI","Malacoctenus triangulatus","70.55.569","Chordata","Teleostei","Blenniiformes","Labrisomidae"]
[null,null,null,"MBON","Mycteroperca bonaci",null,null,null,null,null,"MTUC","Monacanthus tuckeri","70.55.747","Chordata","Teleostei","Tetraodontiformes","Monacanthidae"]
[null,null,null,"MVEN","Mycteroperca venenosa",null,null,null,null,null,"MVEN","Mycteroperca venenosa","70.55.311","Chordata","Teleostei","Perciformes","Serranidae"]
[null,null,null,"MOCE","Myrichthys breviceps",null,null,null,null,null,"NBAN","Narcine bancroftii",null,"Chordata","Elasmobranchii","Torpediniformes","Narcinidae"]
[null,null,null,"MBRE","Myrichthys ocellatus",null,null,null,null,null,"NLON","Nes longus",null,"Chordata","Teleostei","Gobiiformes","Gobiidae"]
[null,null,null,"MJAC","Myripristis jacobus",null,null,null,null,null,"NUST","Nicholsina usta",null,"Chordata","Teleostei","Eupercaria incertae sedis","Scaridae"]
[null,null,null,"NBAN","Narcine bancroftii",null,null,null,null,null,"OAUR","Opistognathus aurifrons",null,"Chordata","Teleostei","Ovalentaria incertae sedis","Opistognathidae"]
[null,null,null,"NLON","Nes longus",null,null,null,null,null,"OCHR","Ocyurus chrysurus","70.55.416","Chordata","Teleostei","Eupercaria incertae sedis","Lutjanidae"]
[null,null,null,"NUST","Nicholsina usta",null,null,null,null,null,"ODEN","Odontoscion dentex","70.55.479","Chordata","Teleostei","Eupercaria incertae sedis","Sciaenidae"]
[null,null,null,"OCHR","Ocyurus chrysurus",null,null,null,null,null,"OGCO","Ogcocephalus sp.","70.46.114","Chordata","Teleostei","Lophiiformes","Ogcocephalidae"]
[null,null,null,"ODEN","Odontoscion dentex",null,null,null,null,null,"OPMA","Ophioblennius macclurei","70.55.595","Chordata","Teleostei","Blenniiformes","Blenniidae"]
[null,null,null,"OGCO","Ogcocephalus sp.",null,null,null,null,null,"OSAU","Oligoplites saurus",null,"Chordata","Teleostei","Carangiformes","Carangidae"]
[null,null,null,"OSAU","Oligoplites saurus",null,null,null,null,null,"OSTI","Oxyurichthys stigmalophius",null,"Chordata","Teleostei","Gobiiformes","Gobiidae"]
[null,null,null,"OPMA","Ophioblennius macclurei",null,null,null,null,null,"OWHI","Opistognathus whitehursti",null,"Chordata","Teleostei","Ovalentaria incertae sedis","Opistognathidae"]
[null,null,null,"OAUR","Opistognathus aurifrons",null,null,null,null,null,"PACU","Pareques acuminatus","70.55.482","Chordata","Teleostei","Eupercaria incertae sedis","Sciaenidae"]
[null,null,null,"OWHI","Opistognathus whitehursti",null,null,null,null,null,"PARC","Pomacanthus arcuatus","70.55.508","Chordata","Teleostei","Acanthuriformes","Pomacanthidae"]
[null,null,null,"OSTI","Oxyurichthys stigmalophius",null,null,null,null,null,"PFAS","Paraclinus fasciatus",null,"Chordata","Teleostei","Blenniiformes","Labrisomidae"]
[null,null,null,"PFAS","Paraclinus fasciatus",null,null,null,null,null,"PMAC","Pseudupeneus maculatus","70.55.496","Chordata","Teleostei","Mulliformes","Mullidae"]
[null,null,null,"PACU","Pareques acuminatus",null,null,null,null,null,"PPAR","Pomacanthus paru","70.55.509","Chordata","Teleostei","Acanthuriformes","Pomacanthidae"]
[null,null,null,"PARC","Pomacanthus arcuatus",null,null,null,null,null,"PVOL","Pterois volitans",null,"Chordata","Teleostei","Perciformes","Scorpaenidae"]
[null,null,null,"PPAR","Pomacanthus paru",null,null,null,null,null,"RREM","Remora remora","70.55.370","Chordata","Teleostei","Carangiformes","Echeneidae"]
[null,null,null,"PMAC","Pseudupeneus maculatus",null,null,null,null,null,"RTRI","Rhinesomus triqueter","70.55.754","CHORDATA",null,null,"OSTRACIIDAE"]
[null,null,null,"PVOL","Pterois volitans",null,null,null,null,null,"SADU","Stegastes adustus","70.55.521","Chordata","Teleostei","Ovalentaria incertae sedis","Pomacentridae"]
[null,null,null,"RREM","Remora remora",null,null,null,null,null,"SARA","Sparisoma radians","70.55.552","CHORDATA",null,null,"SCARIDAE"]
[null,null,null,"SCCO","Scarus coelestinus",null,null,null,null,null,"SATO","Sparisoma atomarium","70.55.549","Chordata","Teleostei","Eupercaria incertae sedis","Scaridae"]
[null,null,null,"SCOE","Scarus coeruleus",null,null,null,null,null,"SAUR","Sparisoma aurofrenatum","70.55.550","Chordata","Teleostei","Eupercaria incertae sedis","Scaridae"]
[null,null,null,"SISE","Scarus iseri",null,null,null,null,null,"SBAL","Serranus baldwini","70.55.325","Chordata","Teleostei","Perciformes","Serranidae"]
[null,null,null,"STAE","Scarus taeniopterus",null,null,null,null,null,"SBAR","Sphyraena barracuda","70.55.669","Chordata","Teleostei","Carangaria incertae sedis","Sphyraenidae"]
[null,null,null,"SVET","Scarus vetula",null,null,null,null,null,"SCAR","Scarus sp.","70.46.275","CHORDATA",null,null,"SCARIDAE"]
[null,null,null,"SPLU","Scorpaena plumieri",null,null,null,null,null,"SCCO","Scarus coelestinus",null,"Chordata","Teleostei","Eupercaria incertae sedis","Scaridae"]
[null,null,null,"SBAL","Serranus baldwini",null,null,null,null,null,"SCHR","Sparisoma chrysopterum","70.55.551","Chordata","Teleostei","Eupercaria incertae sedis","Scaridae"]
[null,null,null,"SFLA","Serranus flaviventris",null,null,null,null,null,"SCOE","Scarus coeruleus","70.55.544","Chordata","Teleostei","Eupercaria incertae sedis","Scaridae"]
[null,null,null,"STAB","Serranus tabacarius",null,null,null,null,null,"SDIE","Stegastes diencaeus","70.55.520","Chordata","Teleostei","Ovalentaria incertae sedis","Pomacentridae"]
[null,null,null,"STIG","Serranus tigrinus",null,null,null,null,null,"SFLA","Serranus flaviventris",null,"Chordata","Teleostei","Perciformes","Serranidae"]
[null,null,null,"STOR","Serranus tortugarum",null,null,null,null,null,"SGRE","Sphoeroides greeleyi",null,"Chordata","Teleostei","Tetraodontiformes","Tetraodontidae"]
[null,null,null,"SATO","Sparisoma atomarium",null,null,null,null,null,"SISE","Scarus iseri","70.55.3576","Chordata","Teleostei","Eupercaria incertae sedis","Scaridae"]
[null,null,null,"SAUR","Sparisoma aurofrenatum",null,null,null,null,null,"SLEU","Stegastes leucostictus","70.55.522","Chordata","Teleostei","Ovalentaria incertae sedis","Pomacentridae"]
[null,null,null,"SCHR","Sparisoma chrysopterum",null,null,null,null,null,"SPAR","Stegastes partitus","70.55.523","Chordata","Teleostei","Ovalentaria incertae sedis","Pomacentridae"]
[null,null,null,"SPRA","Sparisoma radians",null,null,null,null,null,"SPIC","Sphyraena picudilla","70.55.671","Chordata","Teleostei","Carangaria incertae sedis","Sphyraenidae"]
[null,null,null,"SRUB","Sparisoma rubripinne",null,null,null,null,null,"SPLA","Stegastes planifrons","70.55.524","Chordata","Teleostei","Ovalentaria incertae sedis","Pomacentridae"]
[null,null,null,"SVIR","Sparisoma viride",null,null,null,null,null,"SPLU","Scorpaena plumieri","70.55.264","Chordata","Teleostei","Perciformes","Scorpaenidae"]
[null,null,null,"SGRE","Sphoeroides greeleyi",null,null,null,null,null,"SPRA","Sparisoma radians","70.55.552","Chordata","Teleostei","Eupercaria incertae sedis","Scaridae"]
[null,null,null,"SSPE","Sphoeroides spengleri",null,null,null,null,null,"SRUB","Sparisoma rubripinne","70.55.553","Chordata","Teleostei","Eupercaria incertae sedis","Scaridae"]
[null,null,null,"STES","Sphoeroides testudineus",null,null,null,null,null,"SSIN","Synodus synodus",null,"Chordata","Teleostei","Aulopiformes","Synodontidae"]
[null,null,null,"SBAR","Sphyraena barracuda",null,null,null,null,null,"SSPE","Sphoeroides spengleri","70.55.762","Chordata","Teleostei","Tetraodontiformes","Tetraodontidae"]
[null,null,null,"SPIC","Sphyraena picudilla",null,null,null,null,null,"SSPL","Sphoeroides spengleri","70.55.762","CHORDATA",null,null,"TETRAODONTIDAE"]
[null,null,null,"SADU","Stegastes adustus",null,null,null,null,null,"STAB","Serranus tabacarius","70.46.175","Chordata","Teleostei","Perciformes","Serranidae"]
[null,null,null,"SDIE","Stegastes diencaeus",null,null,null,null,null,"STAE","Scarus taeniopterus","70.55.547","Chordata","Teleostei","Eupercaria incertae sedis","Scaridae"]
[null,null,null,"SLEU","Stegastes leucostictus",null,null,null,null,null,"STES","Sphoeroides testudineus",null,"Chordata","Teleostei","Tetraodontiformes","Tetraodontidae"]
[null,null,null,"SPAR","Stegastes partitus",null,null,null,null,null,"STIG","Serranus tigrinus","70.55.331","Chordata","Teleostei","Perciformes","Serranidae"]
[null,null,null,"SPLA","Stegastes planifrons",null,null,null,null,null,"STOR","Serranus tortugarum",null,"Chordata","Teleostei","Perciformes","Serranidae"]
[null,null,null,"STSP","Stegastes sp.",null,null,null,null,null,"STSE","Stephanolepis setifer",null,"Chordata","Teleostei","Tetraodontiformes","Monacanthidae"]
[null,null,null,"STSE","Stephanolepis setifer",null,null,null,null,null,"STSP","Stegastes sp.",null,"Chordata","Teleostei","Ovalentaria incertae sedis","Pomacentridae"]
[null,null,null,"HSCH","Styracura schmardae",null,null,null,null,null,"SVET","Scarus vetula",null,"Chordata","Teleostei","Eupercaria incertae sedis","Scaridae"]
[null,null,null,"SYCA","Syngnathus caribbaeus",null,null,null,null,null,"SVIR","Sparisoma viride","70.55.554","Chordata","Teleostei","Eupercaria incertae sedis","Scaridae"]
[null,null,null,"SYIN","Synodus intermedius",null,null,null,null,null,"SYCA","Syngnathus caribbaeus",null,"Chordata","Teleostei","Syngnathiformes","Syngnathidae"]
[null,null,null,"SSIN","Synodus synodus",null,null,null,null,null,"SYIN","Synodus intermedius","70.55.142","Chordata","Teleostei","Aulopiformes","Synodontidae"]
[null,null,null,"TBIF","Thalassoma bifasciatum",null,null,null,null,null,"TBIF","Thalassoma bifasciatum","70.55.539","Chordata","Teleostei","Eupercaria incertae sedis","Labridae"]
[null,null,null,"TMAC","Thalassophryne maculosa",null,null,null,null,null,"TDIL","Tigrigobius dilepis",null,"Chordata","Teleostei","Gobiiformes","Gobiidae"]
[null,null,null,"TDIL","Tigrigobius dilepis",null,null,null,null,null,"TFAL","Trachinotus falcatus","70.55.399","Chordata","Teleostei","Carangiformes","Carangidae"]
[null,null,null,"TFAL","Trachinotus falcatus",null,null,null,null,null,"TGOO","Trachinotus goodei",null,"Chordata","Teleostei","Carangiformes","Carangidae"]
[null,null,null,"TGOO","Trachinotus goodei",null,null,null,null,null,"TMAC","Thalassophryne maculosa",null,"Chordata","Teleostei","Batrachoidiformes","Batrachoididae"]
[null,null,null,"UJAM","Urobatis jamaicensis",null,null,null,null,null,"UJAM","Urobatis jamaicensis","70.55.38","Chordata","Elasmobranchii","Myliobatiformes","Urotrygonidae"]
[null,null,null,"XMAR","Xyrichtys martinicensis",null,null,null,null,null,"XMAR","Xyrichtys martinicensis",null,"Chordata","Teleostei","Eupercaria incertae sedis","Labridae"]
[null,null,null,"XSPL","Xyrichtys splendens",null,null,null,null,null,"XSPL","Xyrichtys splendens",null,"Chordata","Teleostei","Eupercaria incertae sedis","Labridae"]

{"sheet":"Otras referencias","index":5,"n_rows":48,"n_cols":16,"rows_kept":48,"cut":false,"hidden":false,"merged":[[0,0,2,6],[4,0,4,1],[4,10,4,11],[22,5,24,5],[25,5,47,5],[21,0,21,5],[4,13,4,15],[4,3,4,5],[4,7,4,8],[9,13,9,15]]}
["Estas son listas para variables con valores que no se encuentran codificados, pero que deben manejarse de manera estandarizada. \nSi se requiere agregar un valor nuevo hagalo debajo de la lista correspondiente"]
[]
[]
[]
["UNIDADES DE MEDIDA",null,null,"PROYECTO",null,null,null,"ROLES",null,null,"METODOLOGIAS",null,null,"TEMATICAS"]
["CODIGO","DESCRIPCION",null,"COD","PROYECTO","PROYECTO DESC",null,4,"Captura en campo",null,"CODIGO","DESCRIPCION",null,"COD METODOLOGIA","COD TEMATICA","DESCRIPCION"]
[10,"cm",null,3036,"Monitoreo Pastos - BPIN","Monitoreo de Pastos Marinos de Colombia",null,6,"Revisar datos",null,818,"Pastos-Abundancia Peces",null,818,222,"ABUNDANCIA"]
[11,"m",null,null,null,null,null,3497,"Coordinador actividad de campo"]
[69,"g",null,null,null,null,null,4526,"Procesamiento en laboratorio"]
[142,"Ind/Estación",null,null,null,null,null,null,null,null,null,null,null,"CODIGOS LOV"]
[null,null,null,null,null,null,null,null,null,null,null,null,null,"DESCRIPCIÓN","CÓDIGO","GRUPO"]
[null,null,null,null,null,null,null,null,null,null,null,null,null,"Departamento",10,2]
[null,null,null,null,null,null,null,null,null,null,null,null,null,"Sector",20,2]
[null,null,null,null,null,null,null,null,null,null,null,null,null,"Punto",30,2]
[null,null,null,null,null,null,null,null,null,null,null,null,null,"Parcela",35,2]
[null,null,null,null,null,null,null,null,null,null,null,null,null,"Estaciones",40,2]
[null,null,null,null,null,null,null,null,null,null,null,null,null,"Region",50,2]
[null,null,null,null,null,null,null,null,null,null,null,null,null,"Unidad_de_Manejo",60,2]
[null,null,null,null,null,null,null,null,null,null,null,null,null,"Unidad_Ambiental_Costera",70,2]
[null,null,null,null,null,null,null,null,null,null,null,null,null,"Localidad",80,2]
[null,null,null,null,null,null,null,null,null,null,null,null,null,"Bloque_Exploracion",85,2]
["ESTACIONES",null,null,null,null,null,null,null,null,null,null,null,null,"Area",90,2]
["PrefijoCdgEstLoc","SecuenciaLoc","Lugar","CodigoEstacionLoc","DescripcionEstacionLoc","Estaciones CORALINA - ID Proyecto 3422"]
["CAMP",49089,"Camp",1,"COR-Camp"]
["MCOR",49087,"McBean",1,"COR-McBean"]
["SFEL",49088,"San Felipe",1,"COR-San Felipe","Estaciones PASTOS - ID PROYECTO 3036"]
[{"$f":"IF(referentes!U2=\"\",\"\",referentes!U2)","v":"AHUY"},{"$f":"IF(referentes!T2=\"\",\"\",referentes!T2)","v":57180},{"$f":"IF(referentes!X2=\"\",\"\",referentes!X2)","v":"Ahuyama"},{"$f":"IF(referentes!V2=\"\",\"\",referentes!V2)","v":1},{"$f":"IF(referentes!W2=\"\",\"\",referentes!W2)","v":"MN-Ahuyama"}]
[{"$f":"IF(referentes!U3=\"\",\"\",referentes!U3)","v":"BPOR"},{"$f":"IF(referentes!T3=\"\",\"\",referentes!T3)","v":43727},{"$f":"IF(referentes!X3=\"\",\"\",referentes!X3)","v":"Bahía Portete"},{"$f":"IF(referentes!V3=\"\",\"\",referentes!V3)","v":3},{"$f":"IF(referentes!W3=\"\",\"\",referentes!W3)","v":"MN-Bahía Portete"}]
[{"$f":"IF(referentes!U4=\"\",\"\",referentes!U4)","v":"BALL"},{"$f":"IF(referentes!T4=\"\",\"\",referentes!T4)","v":48586},{"$f":"IF(referentes!X4=\"\",\"\",referentes!X4)","v":"Ballenas"},{"$f":"IF(referentes!V4=\"\",\"\",referentes!V4)","v":1},{"$f":"IF(referentes!W4=\"\",\"\",referentes!W4)","v":"MN-Ballenas"}]
[{"$f":"IF(referentes!U5=\"\",\"\",referentes!U5)","v":"CVEL"},{"$f":"IF(referentes!T5=\"\",\"\",referentes!T5)","v":48584},{"$f":"IF(referentes!X5=\"\",\"\",referentes!X5)","v":"Cabo de la Vela"},{"$f":"IF(referentes!V5=\"\",\"\",referentes!V5)","v":3},{"$f":"IF(referentes!W5=\"\",\"\",referentes!W5)","v":"MN-Cabo de la Vela"}]
[{"$f":"IF(referentes!U6=\"\",\"\",referentes!U6)","v":"CVNU"},{"$f":"IF(referentes!T6=\"\",\"\",referentes!T6)","v":49303},{"$f":"IF(referentes!X6=\"\",\"\",referentes!X6)","v":"Cabo de la Vela"},{"$f":"IF(referentes!V6=\"\",\"\",referentes!V6)","v":2},{"$f":"IF(referentes!W6=\"\",\"\",referentes!W6)","v":"MN-Cabo Nuevo"}]
[{"$f":"IF(referentes!U7=\"\",\"\",referentes!U7)","v":"CPLA"},{"$f":"IF(referentes!T7=\"\",\"\",referentes!T7)","v":57179},{"$f":"IF(referentes!X7=\"\",\"\",referentes!X7)","v":"Cabo playa"},{"$f":"IF(referentes!V7=\"\",\"\",referentes!V7)","v":1},{"$f":"IF(referentes!W7=\"\",\"\",referentes!W7)","v":"MN-Cabo playa"}]
[{"$f":"IF(referentes!U8=\"\",\"\",referentes!U8)","v":"CARR"},{"$f":"IF(referentes!T8=\"\",\"\",referentes!T8)","v":57178},{"$f":"IF(referentes!X8=\"\",\"\",referentes!X8)","v":"Carrizal"},{"$f":"IF(referentes!V8=\"\",\"\",referentes!V8)","v":1},{"$f":"IF(referentes!W8=\"\",\"\",referentes!W8)","v":"MN-Carrizal"}]
[{"$f":"IF(referentes!U9=\"\",\"\",referentes!U9)","v":"CHEN"},{"$f":"IF(referentes!T9=\"\",\"\",referentes!T9)","v":43120},{"$f":"IF(referentes!X9=\"\",\"\",referentes!X9)","v":"Chengue"},{"$f":"IF(referentes!V9=\"\",\"\",referentes!V9)","v":2},{"$f":"IF(referentes!W9=\"\",\"\",referentes!W9)","v":"MN-Chengue"}]
[{"$f":"IF(referentes!U10=\"\",\"\",referentes!U10)","v":"CINT"},{"$f":"IF(referentes!T10=\"\",\"\",referentes!T10)","v":43121},{"$f":"IF(referentes!X10=\"\",\"\",referentes!X10)","v":"Cinto"},{"$f":"IF(referentes!V10=\"\",\"\",referentes!V10)","v":3},{"$f":"IF(referentes!W10=\"\",\"\",referentes!W10)","v":"MN-Cinto"}]
[{"$f":"IF(referentes!U11=\"\",\"\",referentes!U11)","v":"CCAY"},{"$f":"IF(referentes!T11=\"\",\"\",referentes!T11)","v":48964},{"$f":"IF(referentes!X11=\"\",\"\",referentes!X11)","v":"Cotton Cay"},{"$f":"IF(referentes!V11=\"\",\"\",referentes!V11)","v":1},{"$f":"IF(referentes!W11=\"\",\"\",referentes!W11)","v":"MN-Cotton Cay"}]
[{"$f":"IF(referentes!U12=\"\",\"\",referentes!U12)","v":"IMAN"},{"$f":"IF(referentes!T12=\"\",\"\",referentes!T12)","v":43118},{"$f":"IF(referentes!X12=\"\",\"\",referentes!X12)","v":"Isla Mangle"},{"$f":"IF(referentes!V12=\"\",\"\",referentes!V12)","v":2},{"$f":"IF(referentes!W12=\"\",\"\",referentes!W12)","v":"MN-Isla Mangle"}]
[{"$f":"IF(referentes!U13=\"\",\"\",referentes!U13)","v":"IROS"},{"$f":"IF(referentes!T13=\"\",\"\",referentes!T13)","v":43117},{"$f":"IF(referentes!X13=\"\",\"\",referentes!X13)","v":"Isla Rosario"},{"$f":"IF(referentes!V13=\"\",\"\",referentes!V13)","v":1},{"$f":"IF(referentes!W13=\"\",\"\",referentes!W13)","v":"MN-Isla Rosario"}]
[{"$f":"IF(referentes!U14=\"\",\"\",referentes!U14)","v":"ISLE"},{"$f":"IF(referentes!T14=\"\",\"\",referentes!T14)","v":48966},{"$f":"IF(referentes!X14=\"\",\"\",referentes!X14)","v":"Isleño"},{"$f":"IF(referentes!V14=\"\",\"\",referentes!V14)","v":1},{"$f":"IF(referentes!W14=\"\",\"\",referentes!W14)","v":"MN-Isleño"}]
[{"$f":"IF(referentes!U15=\"\",\"\",referentes!U15)","v":"KAUR"},{"$f":"IF(referentes!T15=\"\",\"\",referentes!T15)","v":51465},{"$f":"IF(referentes!X15=\"\",\"\",referentes!X15)","v":"Manaure"},{"$f":"IF(referentes!V15=\"\",\"\",referentes!V15)","v":1},{"$f":"IF(referentes!W15=\"\",\"\",referentes!W15)","v":"MN-Kaurrele"}]
[{"$f":"IF(referentes!U16=\"\",\"\",referentes!U16)","v":"MANA"},{"$f":"IF(referentes!T16=\"\",\"\",referentes!T16)","v":48585},{"$f":"IF(referentes!X16=\"\",\"\",referentes!X16)","v":"Manaure"},{"$f":"IF(referentes!V16=\"\",\"\",referentes!V16)","v":2},{"$f":"IF(referentes!W16=\"\",\"\",referentes!W16)","v":"MN-Manaure"}]
[{"$f":"IF(referentes!U17=\"\",\"\",referentes!U17)","v":"MARA"},{"$f":"IF(referentes!T17=\"\",\"\",referentes!T17)","v":48965},{"$f":"IF(referentes!X17=\"\",\"\",referentes!X17)","v":"Marazul"},{"$f":"IF(referentes!V17=\"\",\"\",referentes!V17)","v":1},{"$f":"IF(referentes!W17=\"\",\"\",referentes!W17)","v":"MN-Marazul"}]
[{"$f":"IF(referentes!U18=\"\",\"\",referentes!U18)","v":"MBAY"},{"$f":"IF(referentes!T18=\"\",\"\",referentes!T18)","v":43123},{"$f":"IF(referentes!X18=\"\",\"\",referentes!X18)","v":"Mauricio Bay"},{"$f":"IF(referentes!V18=\"\",\"\",referentes!V18)","v":1},{"$f":"IF(referentes!W18=\"\",\"\",referentes!W18)","v":"MN-Mauricio Bay"}]
[{"$f":"IF(referentes!U19=\"\",\"\",referentes!U19)","v":"NEGU"},{"$f":"IF(referentes!T19=\"\",\"\",referentes!T19)","v":43119},{"$f":"IF(referentes!X19=\"\",\"\",referentes!X19)","v":"Neguanje"},{"$f":"IF(referentes!V19=\"\",\"\",referentes!V19)","v":1},{"$f":"IF(referentes!W19=\"\",\"\",referentes!W19)","v":"MN-Neguanje"}]
[{"$f":"IF(referentes!U20=\"\",\"\",referentes!U20)","v":"OCRE"},{"$f":"IF(referentes!T20=\"\",\"\",referentes!T20)","v":43122},{"$f":"IF(referentes!X20=\"\",\"\",referentes!X20)","v":"Oyster Creek"},{"$f":"IF(referentes!V20=\"\",\"\",referentes!V20)","v":2},{"$f":"IF(referentes!W20=\"\",\"\",referentes!W20)","v":"MN-Oyster Creek"}]
[{"$f":"IF(referentes!U21=\"\",\"\",referentes!U21)","v":"PINO"},{"$f":"IF(referentes!T21=\"\",\"\",referentes!T21)","v":48582},{"$f":"IF(referentes!X21=\"\",\"\",referentes!X21)","v":"Pinorroa"},{"$f":"IF(referentes!V21=\"\",\"\",referentes!V21)","v":2},{"$f":"IF(referentes!W21=\"\",\"\",referentes!W21)","v":"MN-Pinorroa"}]
[{"$f":"IF(referentes!U22=\"\",\"\",referentes!U22)","v":"PBLA"},{"$f":"IF(referentes!T22=\"\",\"\",referentes!T22)","v":52866},{"$f":"IF(referentes!X22=\"\",\"\",referentes!X22)","v":"Playa Blanca-Barú (PNN Corales del Rosario y San Bernardo)"},{"$f":"IF(referentes!V22=\"\",\"\",referentes!V22)","v":1},{"$f":"IF(referentes!W22=\"\",\"\",referentes!W22)","v":"MN-Playa Blanca-Barú"}]
[{"$f":"IF(referentes!U23=\"\",\"\",referentes!U23)","v":"TRIG"},{"$f":"IF(referentes!T23=\"\",\"\",referentes!T23)","v":48583},{"$f":"IF(referentes!X23=\"\",\"\",referentes!X23)","v":"Trigana"},{"$f":"IF(referentes!V23=\"\",\"\",referentes!V23)","v":1},{"$f":"IF(referentes!W23=\"\",\"\",referentes!W23)","v":"MN-Trigana"}]

{"sheet":"AGD_MUESTREOS","index":6,"n_rows":0,"n_cols":0,"rows_kept":0,"cut":false,"hidden":true,"merged":[]}

{"sheet":"AGD_PARAMETRO","index":7,"n_rows":0,"n_cols":0,"rows_kept":0,"cut":false,"hidden":true,"merged":[]}

{"sheet":"AGD_MUESTRAS","index":8,"n_rows":0,"n_cols":0,"rows_kept":0,"cut":false,"hidden":true,"merged":[]}

{"sheet":"AGD_MUESTRAS_VARIABLES","index":9,"n_rows":0,"n_cols":0,"rows_kept":0,"cut":false,"hidden":true,"merged":[]}

{"sheet":"AGD_AUTORIAS","index":10,"n_rows":0,"n_cols":0,"rows_kept":0,"cut":false,"hidden":true,"merged":[]}